Workbook

Sheet Feuil1
O1: nombre mini: | P1: 100000
A2: Pour générer une nouvelle grille appuyez sur F9 | O2: nombre maxi: | P2: 999999999999
O3: Nombre de zéros: | P3: 2
O4: nombre décimal: | P4: non
O5: Nombre de décimales: | P5: 2
O6: Partie décimale: | P6: virgule
V7: 1000000000000
A8: Dictée de nombres
A9: 1 | B9: =IF(P4="oui",Feuil2!B14,Feuil2!B11) -> cent quatre-vingts milliards vingt-sept millions huit cent dix-neuf mille cinquante-sept | P9: =Feuil2!Q14+Feuil2!T14 -> 1.800278191e+11
A10: =A9+1 -> 2 | B10: =IF(P4="oui",Feuil2!B19,Feuil2!B16) -> neuf cent vingt-huit milliards sept cent soixante et onze mille trois cent soixante-dix | P10: =Feuil2!Q19+Feuil2!T19 -> 9.280007714e+11
A11: =A10+1 -> 3 | B11: =IF(P4="oui",Feuil2!B24,Feuil2!B21) -> neuf cent vingt-six milliards six cent seize millions trois cents mille deux cent quatorze | P11: =Feuil2!Q24+Feuil2!T24 -> 9.266163002e+11
A12: =A11+1 -> 4 | B12: =IF(P4="oui",Feuil2!B29,Feuil2!B26) -> neuf cent quarante-trois milliards cinquante-quatre millions huit cent soixante-dix mille quatre-vingt-neuf | P12: =Feuil2!Q29+Feuil2!T29 -> 9.430548701e+11
A13: 5 | B13: =IF(P4="oui",Feuil2!B34,Feuil2!B31) -> quatre cent vingt et un milliards deux cent soixante-huit millions soixante-trois mille deux | P13: =Feuil2!Q34+Feuil2!T34 -> 4.21268063e+11
A14: 6 | B14: =IF(P4="oui",Feuil2!B39,Feuil2!B36) -> cinq cents milliards sept cent vingt-six millions sept cent soixante-sept mille deux cent vingt-trois | P14: =Feuil2!Q39+Feuil2!T39 -> 5.007267672e+11
A15: 7 | B15: =IF(P4="oui",Feuil2!B44,Feuil2!B41) -> cent quarante-deux milliards quatre cent dix-sept millions deux cent soixante-dix mille cinquante-deux | P15: =Feuil2!Q44+Feuil2!T44 -> 1.424172701e+11
A16: 8 | B16: =IF(P4="oui",Feuil2!B49,Feuil2!B46) -> trois cent quarante-deux milliards cinq cent quatre-vingt-quatorze millions deux mille neuf cent quatre-vingts | P16: =Feuil2!Q49+Feuil2!T49 -> 3.42594003e+11
A17: 9 | B17: =IF(P4="oui",Feuil2!B54,Feuil2!B51) -> cent vingt-cinq milliards cinq cents millions deux cent quatre-vingt-un mille trois cent quarante et un | P17: =Feuil2!Q54+Feuil2!T54 -> 1.255002813e+11
A18: 10 | B18: =IF(P4="oui",Feuil2!B59,Feuil2!B56) -> cent dix-sept milliards trois cents millions dix-huit mille huit cent quatre-vingt-sept | P18: =Feuil2!Q59+Feuil2!T59 -> 1.173000189e+11
A21: Dictée de nombres
A22: 1 | B22: =B9 -> cent quatre-vingts milliards vingt-sept millions huit cent dix-neuf mille cinquante-sept
B23: milliards | E23: millions | H23: mille | K23: unités simples | O23: 1/10 | P23: 1/100 | Q23: 1/1000 | R23: 1/10 000 | S23: 1/100 000 | U23: 1/1 000 000
N24: =IF(P$4="non","",",") -> 
A26: =1+A22 -> 2 | B26: =B10 -> neuf cent vingt-huit milliards sept cent soixante et onze mille trois cent soixante-dix
B27: milliards | E27: millions | H27: mille | K27: unités simples | O27: 1/10 | P27: 1/100 | Q27: 1/1000 | R27: 1/10 000 | S27: 1/100 000 | U27: 1/1 000 000
N28: =IF(P$4="non","",",") -> 
A30: =1+A26 -> 3 | B30: =B11 -> neuf cent vingt-six milliards six cent seize millions trois cents mille deux cent quatorze
B31: milliards | E31: millions | H31: mille | K31: unités simples | O31: 1/10 | P31: 1/100 | Q31: 1/1000 | R31: 1/10 000 | S31: 1/100 000 | U31: 1/1 000 000
N32: =IF(P$4="non","",",") -> 
A34: =1+A30 -> 4 | B34: =B12 -> neuf cent quarante-trois milliards cinquante-quatre millions huit cent soixante-dix mille quatre-vingt-neuf
B35: milliards | E35: millions | H35: mille | K35: unités simples | O35: 1/10 | P35: 1/100 | Q35: 1/1000 | R35: 1/10 000 | S35: 1/100 000 | U35: 1/1 000 000
N36: =IF(P$4="non","",",") -> 
A37: =1+A34 -> 5 | B37: =B13 -> quatre cent vingt et un milliards deux cent soixante-huit millions soixante-trois mille deux
B38: milliards | E38: millions | H38: mille | K38: unités simples | O38: 1/10 | P38: 1/100 | Q38: 1/1000 | R38: 1/10 000 | S38: 1/100 000 | U38: 1/1 000 000
N39: =IF(P$4="non","",",") -> 
A41: =1+A37 -> 6 | B41: =B14 -> cinq cents milliards sept cent vingt-six millions sept cent soixante-sept mille deux cent vingt-trois
B42: milliards | E42: millions | H42: mille | K42: unités simples | O42: 1/10 | P42: 1/100 | Q42: 1/1000 | R42: 1/10 000 | S42: 1/100 000 | U42: 1/1 000 000
N43: =IF(P$4="non","",",") -> 
A45: =1+A41 -> 7 | B45: =B15 -> cent quarante-deux milliards quatre cent dix-sept millions deux cent soixante-dix mille cinquante-deux
B46: milliards | E46: millions | H46: mille | K46: unités simples | O46: 1/10 | P46: 1/100 | Q46: 1/1000 | R46: 1/10 000 | S46: 1/100 000 | U46: 1/1 000 000
N47: =IF(P$4="non","",",") -> 
A49: =1+A45 -> 8 | B49: =B16 -> trois cent quarante-deux milliards cinq cent quatre-vingt-quatorze millions deux mille neuf cent quatre-vingts
B50: milliards | E50: millions | H50: mille | K50: unités simples | O50: 1/10 | P50: 1/100 | Q50: 1/1000 | R50: 1/10 000 | S50: 1/100 000 | U50: 1/1 000 000
N51: =IF(P$4="non","",",") -> 
A53: =1+A49 -> 9 | B53: =B17 -> cent vingt-cinq milliards cinq cents millions deux cent quatre-vingt-un mille trois cent quarante et un
B54: milliards | E54: millions | H54: mille | K54: unités simples | O54: 1/10 | P54: 1/100 | Q54: 1/1000 | R54: 1/10 000 | S54: 1/100 000 | U54: 1/1 000 000
N55: =IF(P$4="non","",",") -> 
A57: =1+A53 -> 10 | B57: =B18 -> cent dix-sept milliards trois cents millions dix-huit mille huit cent quatre-vingt-sept
B58: milliards | E58: millions | H58: mille | K58: unités simples | O58: 1/10 | P58: 1/100 | Q58: 1/1000 | R58: 1/10 000 | S58: 1/100 000 | U58: 1/1 000 000
N59: =IF(P$4="non","",",") -> 
A61: Dictée de nombres
A63: 1 | B63: =B22 -> cent quatre-vingts milliards vingt-sept millions huit cent dix-neuf mille cinquante-sept
A66: =1+A63 -> 2 | B66: =B26 -> neuf cent vingt-huit milliards sept cent soixante et onze mille trois cent soixante-dix
A69: =1+A66 -> 3 | B69: =B30 -> neuf cent vingt-six milliards six cent seize millions trois cents mille deux cent quatorze
A72: =1+A69 -> 4 | B72: =B34 -> neuf cent quarante-trois milliards cinquante-quatre millions huit cent soixante-dix mille quatre-vingt-neuf
A75: =1+A72 -> 5 | B75: =B37 -> quatre cent vingt et un milliards deux cent soixante-huit millions soixante-trois mille deux
A78: =1+A75 -> 6 | B78: =B41 -> cinq cents milliards sept cent vingt-six millions sept cent soixante-sept mille deux cent vingt-trois
A81: =1+A78 -> 7 | B81: =B45 -> cent quarante-deux milliards quatre cent dix-sept millions deux cent soixante-dix mille cinquante-deux
A84: =1+A81 -> 8 | B84: =B49 -> trois cent quarante-deux milliards cinq cent quatre-vingt-quatorze millions deux mille neuf cent quatre-vingts
A87: =1+A84 -> 9 | B87: =B53 -> cent vingt-cinq milliards cinq cents millions deux cent quatre-vingt-un mille trois cent quarante et un
A90: =1+A87 -> 10 | B90: =B57 -> cent dix-sept milliards trois cents millions dix-huit mille huit cent quatre-vingt-sept

Sheet Feuil2
H1: oui | I1: virgule
B2: Numération | H2: non | I2: fractionnaire | N2: =E12*10^(F7) -> 10000000000
B3: nombre mini: | C3: =Feuil1!P1 -> 100000
B4: nombre maxi: | C4: =Feuil1!P2 -> 999999999999
B5: Nombre de zéros | C5: =Feuil1!P3 -> 2
B6: nombre décimal | C6: =Feuil1!P4 -> non | Q6: -1 | R6: -2 | S6: -3 | T6: -4 | U6: -5 | V6: -6
B7: Nombre de décimales | C7: =Feuil1!P5 -> 2 | E7: 11 | F7: 10 | G7: 9 | H7: 8 | I7: 7 | J7: 6 | K7: 5 | L7: 4 | M7: 3 | N7: 2 | O7: 1 | P7: 0 | Q7: 10 | R7: 100 | S7: 1000 | T7: 10000 | U7: 100000 | V7: 1000000 | Z7: place du premier zéro | AA7: Place du dernier zéro | AE7: place du premier zéro | AF7: Place du dernier zéro
B8: séparation décimale | C8: =Feuil1!P6 -> virgule | E8: Milliards | H8: Millions | K8: Milliers | N8: Unités | Q8: Unités décimales | X8: partie entière | Y8: nb chiffres | AC8: partie décimale | AD8: nb chiffres
E9: C | F9: D | G9: U | H9: C | I9: D | J9: U | K9: C | L9: D | M9: U | N9: C | O9: D | P9: U | Q9: dixième | R9: centième | S9: millième | T9: dix millième | U9: cent millième | V9: millionième
E10: =IF(X10>100000000000,INT(RIGHT($X10,12)/100000000000),0) -> 1 | F10: =IF(X10>10000000000,INT(RIGHT($X10,11)/10000000000),0) -> 8 | G10: =IF(X10>1000000000,INT(RIGHT($X10,10)/1000000000),0) -> 4 | H10: =IF(X10>100000000,INT(RIGHT($X10,9)/100000000),0) -> 7 | I10: =IF(X10>10000000,INT(RIGHT($X10,8)/10000000),0) -> 2 | J10: =IF(X10>1000000,INT(RIGHT($X10,7)/1000000),0) -> 7 | K10: =IF(X10>100000,INT(RIGHT($X10,6)/100000),0) -> 8 | L10: =IF(X10>10000,INT(RIGHT($X10,5)/10000),0) -> 1 | M10: =IF(X10>1000,INT(RIGHT($X10,4)/1000),0) -> 9 | N10: =IF(X10>100,INT(RIGHT($X10,3)/100),0) -> 0 | O10: =IF(X10>10,INT(RIGHT($X10,2)/10),0) -> 5 | P10: =INT(RIGHT($X10,1)/1) -> 7 | Q10: =INT(RIGHT($AC10,1)) -> 8 | R10: =INT(RIGHT($AC10,2)/10) -> 2 | S10: =INT(RIGHT($AC10,3)/100) -> 0 | T10: =INT(RIGHT($AC10,4)/1000) -> 0 | U10: =INT(RIGHT($AC10,5)/10000) -> 0 | V10: =INT(RIGHT($AC10,6)/100000) -> 0 | W10: =((Q10*100000)+(R10*10000)+(S10*1000)+(T10*100)+(U10*10)+V10) -> 820000 | X10: =C$3+INT(RAND()*(C$4-C$3+1)) -> 184727819057 | Y10: =LEN(X10) -> 12 | Z10: =INT(RAND()*(Y10-C$5))+C$5 -> 9 | AA10: =Z10-C$5 -> 7 | AC10: =INT(RAND()*(POWER(10,$C$7))+1) -> 28 | AD10: =LEN(AC10) -> 2 | AE10: =INT(RAND()*(AD10-H$5))+H$5 -> 0 | AF10: =AE10-H$5 -> 0 | AG10: =(Q10*10^Q$6)+(R10*10^R$6)+(S10*10^S$6)+(T10*10^T$6)+(U10*10^U$6)+(V10*10^V$6) -> 0.82
A11: 1 | B11: =convnumberletter(C11) -> cent quatre-vingts milliards vingt-sept millions huit cent dix-neuf mille cinquante-sept | C11: =(E12*10^E$7)+(F12*10^F$7)+(G12*10^G$7)+(H12*10^H$7)+(I12*10^I$7)+(J12*10^J$7)+(K12*10^K$7)+(L12*10^L$7)+(M12*10^M$7)+(N12*10^N$7)+(O12*10^O$7)+(P12*10^P$7) -> 180027819057 | E11: =IF(Z10=12,TRUE,FALSE) -> FALSE | F11: =IF(Z10=11,TRUE,FALSE) -> FALSE | G11: =IF(Z10=10,TRUE,FALSE) -> FALSE | H11: =IF(Z10=9,TRUE,FALSE) -> TRUE | I11: =IF(Z10=8,TRUE,FALSE) -> FALSE | J11: =IF(Z10=7,TRUE,FALSE) -> FALSE | K11: =IF(Z10=6,TRUE,FALSE) -> FALSE | L11: =IF(Z10=5,TRUE,FALSE) -> FALSE | M11: =IF(Z10=4,TRUE,FALSE) -> FALSE | N11: =IF(Z10=3,TRUE,FALSE) -> FALSE | O11: =IF(Z10=2,TRUE,FALSE) -> FALSE | P11: =IF(Z10=1,TRUE,FALSE) -> FALSE | Q11: =IF(AND(Q10=0,R11=FALSE),FALSE,TRUE) -> TRUE | R11: =IF(AND(R10=0,S11=FALSE),FALSE,TRUE) -> TRUE | S11: =IF(AND(S10=0,T11=FALSE),FALSE,TRUE) -> FALSE | T11: =IF(AND(T10=0,U11=FALSE),FALSE,TRUE) -> FALSE | U11: =IF(AND(U10=0,V11=FALSE),FALSE,TRUE) -> FALSE | V11: =IF(V10=0,FALSE,TRUE) -> FALSE | W11: =W10/(1000000/W12) -> 82
B12: =convnumberletter(C12) -> quatre-vingt-deux | C12: =W11 -> 82 | E12: =IF(AND(E$7-1<$Z10,E$7-1>=$AA10),0,E10) -> 1 | F12: 8 | G12: 0 | H12: 0 | I12: 2 | J12: 7 | K12: 8 | L12: 1 | M12: =IF(AND(M$7-1<$Z10,M$7-1>=$AA10),0,M10) -> 9 | N12: =IF(AND(N$7-1<$Z10,N$7-1>=$AA10),0,N10) -> 0 | O12: =IF(AND(O$7-1<$Z10,O$7-1>=$AA10),0,O10) -> 5 | P12: =IF(AND(P$7-1<$Z10,P$7-1>=$AA10),0,P10) -> 7 | Q12: =IF(Q11=FALSE,"",Q10) -> 8 | R12: 2 | W12: =SUM(Q13:V13) -> 100
B13: =IF(C12>1,CONCATENATE(HLOOKUP(C13,$Q$7:$V$9,3,TRUE),"s"),HLOOKUP(C13,$Q$7:$V$9,3,TRUE)) -> centièmes | C13: =W12 -> 100 | Q13: =IF(AND(R12="",Q12<>""),Q$7,0) -> 0 | R13: =IF(AND(S12="",R12<>""),R$7,0) -> 100 | S13: =IF(AND(T12="",S12<>""),S$7,0) -> 0 | T13: =IF(AND(U12="",T12<>""),T$7,0) -> 0 | U13: =IF(AND(V12="",U12<>""),U$7,0) -> 0 | V13: =IF(AND(W13="",V12<>""),V$7,0) -> 0
B14: =IF($C$8="virgule",CONCATENATE(B11," virgule ",B12),CONCATENATE(B11," et ",B12," ",B13)) -> cent quatre-vingts milliards vingt-sept millions huit cent dix-neuf mille cinquante-sept virgule quatre-vingt-deux | Q14: =C11 -> 180027819057 | T14: =AG10 -> 0.82
E15: =IF(X15>100000000000,INT(RIGHT($X15,12)/100000000000),0) -> 9 | F15: =IF(X15>10000000000,INT(RIGHT($X15,11)/10000000000),0) -> 2 | G15: =IF(X15>1000000000,INT(RIGHT($X15,10)/1000000000),0) -> 8 | H15: =IF(X15>100000000,INT(RIGHT($X15,9)/100000000),0) -> 0 | I15: =IF(X15>10000000,INT(RIGHT($X15,8)/10000000),0) -> 2 | J15: =IF(X15>1000000,INT(RIGHT($X15,7)/1000000),0) -> 2 | K15: =IF(X15>100000,INT(RIGHT($X15,6)/100000),0) -> 7 | L15: =IF(X15>10000,INT(RIGHT($X15,5)/10000),0) -> 7 | M15: =IF(X15>1000,INT(RIGHT($X15,4)/1000),0) -> 1 | N15: =IF(X15>100,INT(RIGHT($X15,3)/100),0) -> 3 | O15: =IF(X15>10,INT(RIGHT($X15,2)/10),0) -> 7 | P15: =INT(RIGHT($X15,1)/1) -> 0 | Q15: =INT(RIGHT($AC15,1)) -> 9 | R15: =INT(RIGHT($AC15,2)/10) -> 3 | S15: =INT(RIGHT($AC15,3)/100) -> 0 | T15: =INT(RIGHT($AC15,4)/1000) -> 0 | U15: =INT(RIGHT($AC15,5)/10000) -> 0 | V15: =INT(RIGHT($AC15,6)/100000) -> 0 | W15: =((Q15*100000)+(R15*10000)+(S15*1000)+(T15*100)+(U15*10)+V15) -> 930000 | X15: =C$3+INT(RAND()*(C$4-C$3+1)) -> 928022771370 | Y15: =LEN(X15) -> 12 | Z15: =INT(RAND()*(Y15-C$5))+C$5 -> 7 | AA15: =Z15-C$5 -> 5 | AC15: =INT(RAND()*(POWER(10,$C$7))+1) -> 39 | AD15: =LEN(AC15) -> 2 | AE15: =INT(RAND()*(AD15-H$5))+H$5 -> 1 | AF15: =AE15-H$5 -> 1 | AG15: =(Q15*10^Q$6)+(R15*10^R$6)+(S15*10^S$6)+(T15*10^T$6)+(U15*10^U$6)+(V15*10^V$6) -> 0.93
A16: 2 | B16: =convnumberletter(C16) -> neuf cent vingt-huit milliards sept cent soixante et onze mille trois cent soixante-dix | C16: =(E17*10^E$7)+(F17*10^F$7)+(G17*10^G$7)+(H17*10^H$7)+(I17*10^I$7)+(J17*10^J$7)+(K17*10^K$7)+(L17*10^L$7)+(M17*10^M$7)+(N17*10^N$7)+(O17*10^O$7)+(P17*10^P$7) -> 928000771370 | E16: =IF(Z15=12,TRUE,FALSE) -> FALSE | F16: =IF(Z15=11,TRUE,FALSE) -> FALSE | G16: =IF(Z15=10,TRUE,FALSE) -> FALSE | H16: =IF(Z15=9,TRUE,FALSE) -> FALSE | I16: =IF(Z15=8,TRUE,FALSE) -> FALSE | J16: =IF(Z15=7,TRUE,FALSE) -> TRUE | K16: =IF(Z15=6,TRUE,FALSE) -> FALSE | L16: =IF(Z15=5,TRUE,FALSE) -> FALSE | M16: =IF(Z15=4,TRUE,FALSE) -> FALSE | N16: =IF(Z15=3,TRUE,FALSE) -> FALSE | O16: =IF(Z15=2,TRUE,FALSE) -> FALSE | P16: =IF(Z15=1,TRUE,FALSE) -> FALSE | Q16: =IF(AND(Q15=0,R16=FALSE),FALSE,TRUE) -> TRUE | R16: =IF(AND(R15=0,S16=FALSE),FALSE,TRUE) -> TRUE | S16: =IF(AND(S15=0,T16=FALSE),FALSE,TRUE) -> FALSE | T16: =IF(AND(T15=0,U16=FALSE),FALSE,TRUE) -> FALSE | U16: =IF(AND(U15=0,V16=FALSE),FALSE,TRUE) -> FALSE | V16: =IF(V15=0,FALSE,TRUE) -> FALSE | W16: =W15/(1000000/W17) -> 93
B17: =convnumberletter(C17) -> quatre-vingt-treize | C17: =W16 -> 93 | E17: =IF(AND(E$7-1<$Z15,E$7-1>=$AA15),0,E15) -> 9 | F17: 2 | G17: 8 | H17: 0 | I17: 0 | J17: 0 | K17: 7 | L17: 7 | M17: =IF(AND(M$7-1<$Z15,M$7-1>=$AA15),0,M15) -> 1 | N17: =IF(AND(N$7-1<$Z15,N$7-1>=$AA15),0,N15) -> 3 | O17: =IF(AND(O$7-1<$Z15,O$7-1>=$AA15),0,O15) -> 7 | P17: =IF(AND(P$7-1<$Z15,P$7-1>=$AA15),0,P15) -> 0 | Q17: =IF(Q16=FALSE,"",Q15) -> 9 | R17: 3 | W17: =SUM(Q18:V18) -> 100
B18: =IF(C17>1,CONCATENATE(HLOOKUP(C18,$Q$7:$V$9,3,TRUE),"s"),HLOOKUP(C18,$Q$7:$V$9,3,TRUE)) -> centièmes | C18: =W17 -> 100 | Q18: =IF(AND(R17="",Q17<>""),Q$7,0) -> 0 | R18: =IF(AND(S17="",R17<>""),R$7,0) -> 100 | S18: =IF(AND(T17="",S17<>""),S$7,0) -> 0 | T18: =IF(AND(U17="",T17<>""),T$7,0) -> 0 | U18: =IF(AND(V17="",U17<>""),U$7,0) -> 0 | V18: =IF(AND(W18="",V17<>""),V$7,0) -> 0
B19: =IF($C$8="virgule",CONCATENATE(B16," virgule ",B17),CONCATENATE(B16," et ",B17," ",B18)) -> neuf cent vingt-huit milliards sept cent soixante et onze mille trois cent soixante-dix virgule quatre-vingt-treize | Q19: =C16 -> 928000771370 | T19: =AG15 -> 0.93
E20: =IF(X20>100000000000,INT(RIGHT($X20,12)/100000000000),0) -> 9 | F20: =IF(X20>10000000000,INT(RIGHT($X20,11)/10000000000),0) -> 2 | G20: =IF(X20>1000000000,INT(RIGHT($X20,10)/1000000000),0) -> 6 | H20: =IF(X20>100000000,INT(RIGHT($X20,9)/100000000),0) -> 6 | I20: =IF(X20>10000000,INT(RIGHT($X20,8)/10000000),0) -> 1 | J20: =IF(X20>1000000,INT(RIGHT($X20,7)/1000000),0) -> 6 | K20: =IF(X20>100000,INT(RIGHT($X20,6)/100000),0) -> 3 | L20: =IF(X20>10000,INT(RIGHT($X20,5)/10000),0) -> 2 | M20: =IF(X20>1000,INT(RIGHT($X20,4)/1000),0) -> 7 | N20: =IF(X20>100,INT(RIGHT($X20,3)/100),0) -> 2 | O20: =IF(X20>10,INT(RIGHT($X20,2)/10),0) -> 1 | P20: =INT(RIGHT($X20,1)/1) -> 4 | Q20: =INT(RIGHT($AC20,1)) -> 7 | R20: =INT(RIGHT($AC20,2)/10) -> 8 | S20: =INT(RIGHT($AC20,3)/100) -> 0 | T20: =INT(RIGHT($AC20,4)/1000) -> 0 | U20: =INT(RIGHT($AC20,5)/10000) -> 0 | V20: =INT(RIGHT($AC20,6)/100000) -> 0 | W20: =((Q20*100000)+(R20*10000)+(S20*1000)+(T20*100)+(U20*10)+V20) -> 780000 | X20: =C$3+INT(RAND()*(C$4-C$3+1)) -> 926616327214 | Y20: =LEN(X20) -> 12 | Z20: =INT(RAND()*(Y20-C$5))+C$5 -> 4 | AA20: =Z20-C$5 -> 2 | AC20: =INT(RAND()*(POWER(10,$C$7))+1) -> 87 | AD20: =LEN(AC20) -> 2 | AE20: =INT(RAND()*(AD20-H$5))+H$5 -> 1 | AF20: =AE20-H$5 -> 1 | AG20: =(Q20*10^Q$6)+(R20*10^R$6)+(S20*10^S$6)+(T20*10^T$6)+(U20*10^U$6)+(V20*10^V$6) -> 0.78
A21: 3 | B21: =convnumberletter(C21) -> neuf cent vingt-six milliards six cent seize millions trois cents mille deux cent quatorze | C21: =(E22*10^E$7)+(F22*10^F$7)+(G22*10^G$7)+(H22*10^H$7)+(I22*10^I$7)+(J22*10^J$7)+(K22*10^K$7)+(L22*10^L$7)+(M22*10^M$7)+(N22*10^N$7)+(O22*10^O$7)+(P22*10^P$7) -> 926616300214 | E21: =IF(Z20=12,TRUE,FALSE) -> FALSE | F21: =IF(Z20=11,TRUE,FALSE) -> FALSE | G21: =IF(Z20=10,TRUE,FALSE) -> FALSE | H21: =IF(Z20=9,TRUE,FALSE) -> FALSE | I21: =IF(Z20=8,TRUE,FALSE) -> FALSE | J21: =IF(Z20=7,TRUE,FALSE) -> FALSE | K21: =IF(Z20=6,TRUE,FALSE) -> FALSE | L21: =IF(Z20=5,TRUE,FALSE) -> FALSE | M21: =IF(Z20=4,TRUE,FALSE) -> TRUE | N21: =IF(Z20=3,TRUE,FALSE) -> FALSE | O21: =IF(Z20=2,TRUE,FALSE) -> FALSE | P21: =IF(Z20=1,TRUE,FALSE) -> FALSE | Q21: =IF(AND(Q20=0,R21=FALSE),FALSE,TRUE) -> TRUE | R21: =IF(AND(R20=0,S21=FALSE),FALSE,TRUE) -> TRUE | S21: =IF(AND(S20=0,T21=FALSE),FALSE,TRUE) -> FALSE | T21: =IF(AND(T20=0,U21=FALSE),FALSE,TRUE) -> FALSE | U21: =IF(AND(U20=0,V21=FALSE),FALSE,TRUE) -> FALSE | V21: =IF(V20=0,FALSE,TRUE) -> FALSE | W21: =W20/(1000000/W22) -> 78
B22: =convnumberletter(C22) -> soixante-dix-huit | C22: =W21 -> 78 | E22: =IF(AND(E$7-1<$Z20,E$7-1>=$AA20),0,E20) -> 9 | F22: 2 | G22: 6 | H22: 6 | I22: 1 | J22: 6 | K22: 3 | L22: 0 | M22: =IF(AND(M$7-1<$Z20,M$7-1>=$AA20),0,M20) -> 0 | N22: =IF(AND(N$7-1<$Z20,N$7-1>=$AA20),0,N20) -> 2 | O22: =IF(AND(O$7-1<$Z20,O$7-1>=$AA20),0,O20) -> 1 | P22: =IF(AND(P$7-1<$Z20,P$7-1>=$AA20),0,P20) -> 4 | Q22: =IF(Q21=FALSE,"",Q20) -> 7 | R22: 8 | W22: =SUM(Q23:V23) -> 100
B23: =IF(C22>1,CONCATENATE(HLOOKUP(C23,$Q$7:$V$9,3,TRUE),"s"),HLOOKUP(C23,$Q$7:$V$9,3,TRUE)) -> centièmes | C23: =W22 -> 100 | Q23: =IF(AND(R22="",Q22<>""),Q$7,0) -> 0 | R23: =IF(AND(S22="",R22<>""),R$7,0) -> 100 | S23: =IF(AND(T22="",S22<>""),S$7,0) -> 0 | T23: =IF(AND(U22="",T22<>""),T$7,0) -> 0 | U23: =IF(AND(V22="",U22<>""),U$7,0) -> 0 | V23: =IF(AND(W23="",V22<>""),V$7,0) -> 0
B24: =IF($C$8="virgule",CONCATENATE(B21," virgule ",B22),CONCATENATE(B21," et ",B22," ",B23)) -> neuf cent vingt-six milliards six cent seize millions trois cents mille deux cent quatorze virgule soixante-dix-huit | Q24: =C21 -> 926616300214 | T24: =AG20 -> 0.78
E25: =IF(X25>100000000000,INT(RIGHT($X25,12)/100000000000),0) -> 9 | F25: =IF(X25>10000000000,INT(RIGHT($X25,11)/10000000000),0) -> 4 | G25: =IF(X25>1000000000,INT(RIGHT($X25,10)/1000000000),0) -> 3 | H25: =IF(X25>100000000,INT(RIGHT($X25,9)/100000000),0) -> 0 | I25: =IF(X25>10000000,INT(RIGHT($X25,8)/10000000),0) -> 5 | J25: =IF(X25>1000000,INT(RIGHT($X25,7)/1000000),0) -> 4 | K25: =IF(X25>100000,INT(RIGHT($X25,6)/100000),0) -> 8 | L25: =IF(X25>10000,INT(RIGHT($X25,5)/10000),0) -> 7 | M25: =IF(X25>1000,INT(RIGHT($X25,4)/1000),0) -> 5 | N25: =IF(X25>100,INT(RIGHT($X25,3)/100),0) -> 0 | O25: =IF(X25>10,INT(RIGHT($X25,2)/10),0) -> 8 | P25: =INT(RIGHT($X25,1)/1) -> 9 | Q25: =INT(RIGHT($AC25,1)) -> 1 | R25: =INT(RIGHT($AC25,2)/10) -> 8 | S25: =INT(RIGHT($AC25,3)/100) -> 0 | T25: =INT(RIGHT($AC25,4)/1000) -> 0 | U25: =INT(RIGHT($AC25,5)/10000) -> 0 | V25: =INT(RIGHT($AC25,6)/100000) -> 0 | W25: =((Q25*100000)+(R25*10000)+(S25*1000)+(T25*100)+(U25*10)+V25) -> 180000 | X25: =C$3+INT(RAND()*(C$4-C$3+1)) -> 943054875089 | Y25: =LEN(X25) -> 12 | Z25: =INT(RAND()*(Y25-C$5))+C$5 -> 3 | AA25: =Z25-C$5 -> 1 | AC25: =INT(RAND()*(POWER(10,$C$7))+1) -> 81 | AD25: =LEN(AC25) -> 2 | AE25: =INT(RAND()*(AD25-H$5))+H$5 -> 0 | AF25: =AE25-H$5 -> 0 | AG25: =(Q25*10^Q$6)+(R25*10^R$6)+(S25*10^S$6)+(T25*10^T$6)+(U25*10^U$6)+(V25*10^V$6) -> 0.18
A26: 4 | B26: =convnumberletter(C26) -> neuf cent quarante-trois milliards cinquante-quatre millions huit cent soixante-dix mille quatre-vingt-neuf | C26: =(E27*10^E$7)+(F27*10^F$7)+(G27*10^G$7)+(H27*10^H$7)+(I27*10^I$7)+(J27*10^J$7)+(K27*10^K$7)+(L27*10^L$7)+(M27*10^M$7)+(N27*10^N$7)+(O27*10^O$7)+(P27*10^P$7) -> 943054870089 | E26: =IF(Z25=12,TRUE,FALSE) -> FALSE | F26: =IF(Z25=11,TRUE,FALSE) -> FALSE | G26: =IF(Z25=10,TRUE,FALSE) -> FALSE | H26: =IF(Z25=9,TRUE,FALSE) -> FALSE | I26: =IF(Z25=8,TRUE,FALSE) -> FALSE | J26: =IF(Z25=7,TRUE,FALSE) -> FALSE | K26: =IF(Z25=6,TRUE,FALSE) -> FALSE | L26: =IF(Z25=5,TRUE,FALSE) -> FALSE | M26: =IF(Z25=4,TRUE,FALSE) -> FALSE | N26: =IF(Z25=3,TRUE,FALSE) -> TRUE | O26: =IF(Z25=2,TRUE,FALSE) -> FALSE | P26: =IF(Z25=1,TRUE,FALSE) -> FALSE | Q26: =IF(AND(Q25=0,R26=FALSE),FALSE,TRUE) -> TRUE | R26: =IF(AND(R25=0,S26=FALSE),FALSE,TRUE) -> TRUE | S26: =IF(AND(S25=0,T26=FALSE),FALSE,TRUE) -> FALSE | T26: =IF(AND(T25=0,U26=FALSE),FALSE,TRUE) -> FALSE | U26: =IF(AND(U25=0,V26=FALSE),FALSE,TRUE) -> FALSE | V26: =IF(V25=0,FALSE,TRUE) -> FALSE | W26: =W25/(1000000/W27) -> 18
B27: =convnumberletter(C27) -> dix-huit | C27: =W26 -> 18 | E27: =IF(AND(E$7-1<$Z25,E$7-1>=$AA25),0,E25) -> 9 | F27: 4 | G27: 3 | H27: 0 | I27: 5 | J27: 4 | K27: 8 | L27: 7 | M27: =IF(AND(M$7-1<$Z25,M$7-1>=$AA25),0,M25) -> 0 | N27: =IF(AND(N$7-1<$Z25,N$7-1>=$AA25),0,N25) -> 0 | O27: =IF(AND(O$7-1<$Z25,O$7-1>=$AA25),0,O25) -> 8 | P27: =IF(AND(P$7-1<$Z25,P$7-1>=$AA25),0,P25) -> 9 | Q27: =IF(Q26=FALSE,"",Q25) -> 1 | R27: 8 | W27: =SUM(Q28:V28) -> 100
B28: =IF(C27>1,CONCATENATE(HLOOKUP(C28,$Q$7:$V$9,3,TRUE),"s"),HLOOKUP(C28,$Q$7:$V$9,3,TRUE)) -> centièmes | C28: =W27 -> 100 | Q28: =IF(AND(R27="",Q27<>""),Q$7,0) -> 0 | R28: =IF(AND(S27="",R27<>""),R$7,0) -> 100 | S28: =IF(AND(T27="",S27<>""),S$7,0) -> 0 | T28: =IF(AND(U27="",T27<>""),T$7,0) -> 0 | U28: =IF(AND(V27="",U27<>""),U$7,0) -> 0 | V28: =IF(AND(W28="",V27<>""),V$7,0) -> 0
B29: =IF($C$8="virgule",CONCATENATE(B26," virgule ",B27),CONCATENATE(B26," et ",B27," ",B28)) -> neuf cent quarante-trois milliards cinquante-quatre millions huit cent soixante-dix mille quatre-vingt-neuf virgule dix-huit | Q29: =C26 -> 943054870089 | T29: =AG25 -> 0.18
E30: =IF(X30>100000000000,INT(RIGHT($X30,12)/100000000000),0) -> 4 | F30: =IF(X30>10000000000,INT(RIGHT($X30,11)/10000000000),0) -> 2 | G30: =IF(X30>1000000000,INT(RIGHT($X30,10)/1000000000),0) -> 1 | H30: =IF(X30>100000000,INT(RIGHT($X30,9)/100000000),0) -> 2 | I30: =IF(X30>10000000,INT(RIGHT($X30,8)/10000000),0) -> 6 | J30: =IF(X30>1000000,INT(RIGHT($X30,7)/1000000),0) -> 8 | K30: =IF(X30>100000,INT(RIGHT($X30,6)/100000),0) -> 0 | L30: =IF(X30>10000,INT(RIGHT($X30,5)/10000),0) -> 6 | M30: =IF(X30>1000,INT(RIGHT($X30,4)/1000),0) -> 3 | N30: =IF(X30>100,INT(RIGHT($X30,3)/100),0) -> 1 | O30: =IF(X30>10,INT(RIGHT($X30,2)/10),0) -> 4 | P30: =INT(RIGHT($X30,1)/1) -> 2 | Q30: =INT(RIGHT($AC30,1)) -> 7 | R30: =INT(RIGHT($AC30,2)/10) -> 0 | S30: =INT(RIGHT($AC30,3)/100) -> 0 | T30: =INT(RIGHT($AC30,4)/1000) -> 0 | U30: =INT(RIGHT($AC30,5)/10000) -> 0 | V30: =INT(RIGHT($AC30,6)/100000) -> 0 | W30: =((Q30*100000)+(R30*10000)+(S30*1000)+(T30*100)+(U30*10)+V30) -> 700000 | X30: =C$3+INT(RAND()*(C$4-C$3+1)) -> 421268063142 | Y30: =LEN(X30) -> 12 | Z30: =INT(RAND()*(Y30-C$5))+C$5 -> 2 | AA30: =Z30-C$5 -> 0 | AC30: =INT(RAND()*(POWER(10,$C$7))+1) -> 7 | AD30: =LEN(AC30) -> 1 | AE30: =INT(RAND()*(AD30-H$5))+H$5 -> 0 | AF30: =AE30-H$5 -> 0 | AG30: =(Q30*10^Q$6)+(R30*10^R$6)+(S30*10^S$6)+(T30*10^T$6)+(U30*10^U$6)+(V30*10^V$6) -> 0.7
A31: 5 | B31: =convnumberletter(C31) -> quatre cent vingt et un milliards deux cent soixante-huit millions soixante-trois mille deux | C31: =(E32*10^E$7)+(F32*10^F$7)+(G32*10^G$7)+(H32*10^H$7)+(I32*10^I$7)+(J32*10^J$7)+(K32*10^K$7)+(L32*10^L$7)+(M32*10^M$7)+(N32*10^N$7)+(O32*10^O$7)+(P32*10^P$7) -> 421268063002 | E31: =IF(Z30=12,TRUE,FALSE) -> FALSE | F31: =IF(Z30=11,TRUE,FALSE) -> FALSE | G31: =IF(Z30=10,TRUE,FALSE) -> FALSE | H31: =IF(Z30=9,TRUE,FALSE) -> FALSE | I31: =IF(Z30=8,TRUE,FALSE) -> FALSE | J31: =IF(Z30=7,TRUE,FALSE) -> FALSE | K31: =IF(Z30=6,TRUE,FALSE) -> FALSE | L31: =IF(Z30=5,TRUE,FALSE) -> FALSE | M31: =IF(Z30=4,TRUE,FALSE) -> FALSE | N31: =IF(Z30=3,TRUE,FALSE) -> FALSE | O31: =IF(Z30=2,TRUE,FALSE) -> TRUE | P31: =IF(Z30=1,TRUE,FALSE) -> FALSE | Q31: =IF(AND(Q30=0,R31=FALSE),FALSE,TRUE) -> TRUE | R31: =IF(AND(R30=0,S31=FALSE),FALSE,TRUE) -> FALSE | S31: =IF(AND(S30=0,T31=FALSE),FALSE,TRUE) -> FALSE | T31: =IF(AND(T30=0,U31=FALSE),FALSE,TRUE) -> FALSE | U31: =IF(AND(U30=0,V31=FALSE),FALSE,TRUE) -> FALSE | V31: =IF(V30=0,FALSE,TRUE) -> FALSE | W31: =W30/(1000000/W32) -> 7
B32: =convnumberletter(C32) -> sept | C32: =W31 -> 7 | E32: =IF(AND(E$7-1<$Z30,E$7-1>=$AA30),0,E30) -> 4 | F32: 2 | G32: 1 | H32: 2 | I32: 6 | J32: 8 | K32: 0 | L32: 6 | M32: =IF(AND(M$7-1<$Z30,M$7-1>=$AA30),0,M30) -> 3 | N32: =IF(AND(N$7-1<$Z30,N$7-1>=$AA30),0,N30) -> 0 | O32: =IF(AND(O$7-1<$Z30,O$7-1>=$AA30),0,O30) -> 0 | P32: =IF(AND(P$7-1<$Z30,P$7-1>=$AA30),0,P30) -> 2 | Q32: =IF(Q31=FALSE,"",Q30) -> 7 | W32: =SUM(Q33:V33) -> 10
B33: =IF(C32>1,CONCATENATE(HLOOKUP(C33,$Q$7:$V$9,3,TRUE),"s"),HLOOKUP(C33,$Q$7:$V$9,3,TRUE)) -> dixièmes | C33: =W32 -> 10 | Q33: =IF(AND(R32="",Q32<>""),Q$7,0) -> 10 | R33: =IF(AND(S32="",R32<>""),R$7,0) -> 0 | S33: =IF(AND(T32="",S32<>""),S$7,0) -> 0 | T33: =IF(AND(U32="",T32<>""),T$7,0) -> 0 | U33: =IF(AND(V32="",U32<>""),U$7,0) -> 0 | V33: =IF(AND(W33="",V32<>""),V$7,0) -> 0
B34: =IF($C$8="virgule",CONCATENATE(B31," virgule ",B32),CONCATENATE(B31," et ",B32," ",B33)) -> quatre cent vingt et un milliards deux cent soixante-huit millions soixante-trois mille deux virgule sept | Q34: =C31 -> 421268063002 | T34: =AG30 -> 0.7
E35: =IF(X35>100000000000,INT(RIGHT($X35,12)/100000000000),0) -> 5 | F35: =IF(X35>10000000000,INT(RIGHT($X35,11)/10000000000),0) -> 3 | G35: =IF(X35>1000000000,INT(RIGHT($X35,10)/1000000000),0) -> 5 | H35: =IF(X35>100000000,INT(RIGHT($X35,9)/100000000),0) -> 7 | I35: =IF(X35>10000000,INT(RIGHT($X35,8)/10000000),0) -> 2 | J35: =IF(X35>1000000,INT(RIGHT($X35,7)/1000000),0) -> 6 | K35: =IF(X35>100000,INT(RIGHT($X35,6)/100000),0) -> 7 | L35: =IF(X35>10000,INT(RIGHT($X35,5)/10000),0) -> 6 | M35: =IF(X35>1000,INT(RIGHT($X35,4)/1000),0) -> 7 | N35: =IF(X35>100,INT(RIGHT($X35,3)/100),0) -> 2 | O35: =IF(X35>10,INT(RIGHT($X35,2)/10),0) -> 2 | P35: =INT(RIGHT($X35,1)/1) -> 3 | Q35: =INT(RIGHT($AC35,1)) -> 0 | R35: =INT(RIGHT($AC35,2)/10) -> 8 | S35: =INT(RIGHT($AC35,3)/100) -> 0 | T35: =INT(RIGHT($AC35,4)/1000) -> 0 | U35: =INT(RIGHT($AC35,5)/10000) -> 0 | V35: =INT(RIGHT($AC35,6)/100000) -> 0 | W35: =((Q35*100000)+(R35*10000)+(S35*1000)+(T35*100)+(U35*10)+V35) -> 80000 | X35: =C$3+INT(RAND()*(C$4-C$3+1)) -> 535726767223 | Y35: =LEN(X35) -> 12 | Z35: =INT(RAND()*(Y35-C$5))+C$5 -> 10 | AA35: =Z35-C$5 -> 8 | AC35: =INT(RAND()*(POWER(10,$C$7))+1) -> 80 | AD35: =LEN(AC35) -> 2 | AE35: =INT(RAND()*(AD35-H$5))+H$5 -> 0 | AF35: =AE35-H$5 -> 0 | AG35: =(Q35*10^Q$6)+(R35*10^R$6)+(S35*10^S$6)+(T35*10^T$6)+(U35*10^U$6)+(V35*10^V$6) -> 0.08
A36: 6 | B36: =convnumberletter(C36) -> cinq cents milliards sept cent vingt-six millions sept cent soixante-sept mille deux cent vingt-trois | C36: =(E37*10^E$7)+(F37*10^F$7)+(G37*10^G$7)+(H37*10^H$7)+(I37*10^I$7)+(J37*10^J$7)+(K37*10^K$7)+(L37*10^L$7)+(M37*10^M$7)+(N37*10^N$7)+(O37*10^O$7)+(P37*10^P$7) -> 500726767223 | E36: =IF(Z35=12,TRUE,FALSE) -> FALSE | F36: =IF(Z35=11,TRUE,FALSE) -> FALSE | G36: =IF(Z35=10,TRUE,FALSE) -> TRUE | H36: =IF(Z35=9,TRUE,FALSE) -> FALSE | I36: =IF(Z35=8,TRUE,FALSE) -> FALSE | J36: =IF(Z35=7,TRUE,FALSE) -> FALSE | K36: =IF(Z35=6,TRUE,FALSE) -> FALSE | L36: =IF(Z35=5,TRUE,FALSE) -> FALSE | M36: =IF(Z35=4,TRUE,FALSE) -> FALSE | N36: =IF(Z35=3,TRUE,FALSE) -> FALSE | O36: =IF(Z35=2,TRUE,FALSE) -> FALSE | P36: =IF(Z35=1,TRUE,FALSE) -> FALSE | Q36: =IF(AND(Q35=0,R36=FALSE),FALSE,TRUE) -> TRUE | R36: =IF(AND(R35=0,S36=FALSE),FALSE,TRUE) -> TRUE | S36: =IF(AND(S35=0,T36=FALSE),FALSE,TRUE) -> FALSE | T36: =IF(AND(T35=0,U36=FALSE),FALSE,TRUE) -> FALSE | U36: =IF(AND(U35=0,V36=FALSE),FALSE,TRUE) -> FALSE | V36: =IF(V35=0,FALSE,TRUE) -> FALSE | W36: =W35/(1000000/W37) -> 8
B37: =convnumberletter(C37) -> huit | C37: =W36 -> 8 | E37: =IF(AND(E$7-1<$Z35,E$7-1>=$AA35),0,E35) -> 5 | F37: 0 | G37: 0 | H37: 7 | I37: 2 | J37: 6 | K37: 7 | L37: 6 | M37: =IF(AND(M$7-1<$Z35,M$7-1>=$AA35),0,M35) -> 7 | N37: =IF(AND(N$7-1<$Z35,N$7-1>=$AA35),0,N35) -> 2 | O37: =IF(AND(O$7-1<$Z35,O$7-1>=$AA35),0,O35) -> 2 | P37: =IF(AND(P$7-1<$Z35,P$7-1>=$AA35),0,P35) -> 3 | Q37: =IF(Q36=FALSE,"",Q35) -> 0 | R37: 8 | W37: =SUM(Q38:V38) -> 100
B38: =IF(C37>1,CONCATENATE(HLOOKUP(C38,$Q$7:$V$9,3,TRUE),"s"),HLOOKUP(C38,$Q$7:$V$9,3,TRUE)) -> centièmes | C38: =W37 -> 100 | Q38: =IF(AND(R37="",Q37<>""),Q$7,0) -> 0 | R38: =IF(AND(S37="",R37<>""),R$7,0) -> 100 | S38: =IF(AND(T37="",S37<>""),S$7,0) -> 0 | T38: =IF(AND(U37="",T37<>""),T$7,0) -> 0 | U38: =IF(AND(V37="",U37<>""),U$7,0) -> 0 | V38: =IF(AND(W38="",V37<>""),V$7,0) -> 0
B39: =IF($C$8="virgule",CONCATENATE(B36," virgule ",B37),CONCATENATE(B36," et ",B37," ",B38)) -> cinq cents milliards sept cent vingt-six millions sept cent soixante-sept mille deux cent vingt-trois virgule huit | Q39: =C36 -> 500726767223 | T39: =AG35 -> 0.08
E40: =IF(X40>100000000000,INT(RIGHT($X40,12)/100000000000),0) -> 1 | F40: =IF(X40>10000000000,INT(RIGHT($X40,11)/10000000000),0) -> 4 | G40: =IF(X40>1000000000,INT(RIGHT($X40,10)/1000000000),0) -> 2 | H40: =IF(X40>100000000,INT(RIGHT($X40,9)/100000000),0) -> 4 | I40: =IF(X40>10000000,INT(RIGHT($X40,8)/10000000),0) -> 1 | J40: =IF(X40>1000000,INT(RIGHT($X40,7)/1000000),0) -> 7 | K40: =IF(X40>100000,INT(RIGHT($X40,6)/100000),0) -> 2 | L40: =IF(X40>10000,INT(RIGHT($X40,5)/10000),0) -> 7 | M40: =IF(X40>1000,INT(RIGHT($X40,4)/1000),0) -> 8 | N40: =IF(X40>100,INT(RIGHT($X40,3)/100),0) -> 2 | O40: =IF(X40>10,INT(RIGHT($X40,2)/10),0) -> 5 | P40: =INT(RIGHT($X40,1)/1) -> 2 | Q40: =INT(RIGHT($AC40,1)) -> 0 | R40: =INT(RIGHT($AC40,2)/10) -> 5 | S40: =INT(RIGHT($AC40,3)/100) -> 0 | T40: =INT(RIGHT($AC40,4)/1000) -> 0 | U40: =INT(RIGHT($AC40,5)/10000) -> 0 | V40: =INT(RIGHT($AC40,6)/100000) -> 0 | W40: =((Q40*100000)+(R40*10000)+(S40*1000)+(T40*100)+(U40*10)+V40) -> 50000 | X40: =C$3+INT(RAND()*(C$4-C$3+1)) -> 142417278252 | Y40: =LEN(X40) -> 12 | Z40: =INT(RAND()*(Y40-C$5))+C$5 -> 3 | AA40: =Z40-C$5 -> 1 | AC40: =INT(RAND()*(POWER(10,$C$7))+1) -> 50 | AD40: =LEN(AC40) -> 2 | AE40: =INT(RAND()*(AD40-H$5))+H$5 -> 1 | AF40: =AE40-H$5 -> 1 | AG40: =(Q40*10^Q$6)+(R40*10^R$6)+(S40*10^S$6)+(T40*10^T$6)+(U40*10^U$6)+(V40*10^V$6) -> 0.05
A41: 7 | B41: =convnumberletter(C41) -> cent quarante-deux milliards quatre cent dix-sept millions deux cent soixante-dix mille cinquante-deux | C41: =(E42*10^E$7)+(F42*10^F$7)+(G42*10^G$7)+(H42*10^H$7)+(I42*10^I$7)+(J42*10^J$7)+(K42*10^K$7)+(L42*10^L$7)+(M42*10^M$7)+(N42*10^N$7)+(O42*10^O$7)+(P42*10^P$7) -> 142417270052 | E41: =IF(Z40=12,TRUE,FALSE) -> FALSE | F41: =IF(Z40=11,TRUE,FALSE) -> FALSE | G41: =IF(Z40=10,TRUE,FALSE) -> FALSE | H41: =IF(Z40=9,TRUE,FALSE) -> FALSE | I41: =IF(Z40=8,TRUE,FALSE) -> FALSE | J41: =IF(Z40=7,TRUE,FALSE) -> FALSE | K41: =IF(Z40=6,TRUE,FALSE) -> FALSE | L41: =IF(Z40=5,TRUE,FALSE) -> FALSE | M41: =IF(Z40=4,TRUE,FALSE) -> FALSE | N41: =IF(Z40=3,TRUE,FALSE) -> TRUE | O41: =IF(Z40=2,TRUE,FALSE) -> FALSE | P41: =IF(Z40=1,TRUE,FALSE) -> FALSE | Q41: =IF(AND(Q40=0,R41=FALSE),FALSE,TRUE) -> TRUE | R41: =IF(AND(R40=0,S41=FALSE),FALSE,TRUE) -> TRUE | S41: =IF(AND(S40=0,T41=FALSE),FALSE,TRUE) -> FALSE | T41: =IF(AND(T40=0,U41=FALSE),FALSE,TRUE) -> FALSE | U41: =IF(AND(U40=0,V41=FALSE),FALSE,TRUE) -> FALSE | V41: =IF(V40=0,FALSE,TRUE) -> FALSE | W41: =W40/(1000000/W42) -> 5
B42: =convnumberletter(C42) -> cinq | C42: =W41 -> 5 | E42: =IF(AND(E$7-1<$Z40,E$7-1>=$AA40),0,E40) -> 1 | F42: 4 | G42: 2 | H42: 4 | I42: 1 | J42: 7 | K42: 2 | L42: 7 | M42: =IF(AND(M$7-1<$Z40,M$7-1>=$AA40),0,M40) -> 0 | N42: =IF(AND(N$7-1<$Z40,N$7-1>=$AA40),0,N40) -> 0 | O42: =IF(AND(O$7-1<$Z40,O$7-1>=$AA40),0,O40) -> 5 | P42: =IF(AND(P$7-1<$Z40,P$7-1>=$AA40),0,P40) -> 2 | Q42: =IF(Q41=FALSE,"",Q40) -> 0 | R42: 5 | W42: =SUM(Q43:V43) -> 100
B43: =IF(C42>1,CONCATENATE(HLOOKUP(C43,$Q$7:$V$9,3,TRUE),"s"),HLOOKUP(C43,$Q$7:$V$9,3,TRUE)) -> centièmes | C43: =W42 -> 100 | Q43: =IF(AND(R42="",Q42<>""),Q$7,0) -> 0 | R43: =IF(AND(S42="",R42<>""),R$7,0) -> 100 | S43: =IF(AND(T42="",S42<>""),S$7,0) -> 0 | T43: =IF(AND(U42="",T42<>""),T$7,0) -> 0 | U43: =IF(AND(V42="",U42<>""),U$7,0) -> 0 | V43: =IF(AND(W43="",V42<>""),V$7,0) -> 0
B44: =IF($C$8="virgule",CONCATENATE(B41," virgule ",B42),CONCATENATE(B41," et ",B42," ",B43)) -> cent quarante-deux milliards quatre cent dix-sept millions deux cent soixante-dix mille cinquante-deux virgule cinq | Q44: =C41 -> 142417270052 | T44: =AG40 -> 0.05
E45: =IF(X45>100000000000,INT(RIGHT($X45,12)/100000000000),0) -> 3 | F45: =IF(X45>10000000000,INT(RIGHT($X45,11)/10000000000),0) -> 4 | G45: =IF(X45>1000000000,INT(RIGHT($X45,10)/1000000000),0) -> 2 | H45: =IF(X45>100000000,INT(RIGHT($X45,9)/100000000),0) -> 5 | I45: =IF(X45>10000000,INT(RIGHT($X45,8)/10000000),0) -> 9 | J45: =IF(X45>1000000,INT(RIGHT($X45,7)/1000000),0) -> 4 | K45: =IF(X45>100000,INT(RIGHT($X45,6)/100000),0) -> 0 | L45: =IF(X45>10000,INT(RIGHT($X45,5)/10000),0) -> 9 | M45: =IF(X45>1000,INT(RIGHT($X45,4)/1000),0) -> 2 | N45: =IF(X45>100,INT(RIGHT($X45,3)/100),0) -> 9 | O45: =IF(X45>10,INT(RIGHT($X45,2)/10),0) -> 8 | P45: =INT(RIGHT($X45,1)/1) -> 0 | Q45: =INT(RIGHT($AC45,1)) -> 2 | R45: =INT(RIGHT($AC45,2)/10) -> 0 | S45: =INT(RIGHT($AC45,3)/100) -> 0 | T45: =INT(RIGHT($AC45,4)/1000) -> 0 | U45: =INT(RIGHT($AC45,5)/10000) -> 0 | V45: =INT(RIGHT($AC45,6)/100000) -> 0 | W45: =((Q45*100000)+(R45*10000)+(S45*1000)+(T45*100)+(U45*10)+V45) -> 200000 | X45: =C$3+INT(RAND()*(C$4-C$3+1)) -> 342594092980 | Y45: =LEN(X45) -> 12 | Z45: =INT(RAND()*(Y45-C$5))+C$5 -> 5 | AA45: =Z45-C$5 -> 3 | AC45: =INT(RAND()*(POWER(10,$C$7))+1) -> 2 | AD45: =LEN(AC45) -> 1 | AE45: =INT(RAND()*(AD45-H$5))+H$5 -> 0 | AF45: =AE45-H$5 -> 0 | AG45: =(Q45*10^Q$6)+(R45*10^R$6)+(S45*10^S$6)+(T45*10^T$6)+(U45*10^U$6)+(V45*10^V$6) -> 0.2
A46: 8 | B46: =convnumberletter(C46) -> trois cent quarante-deux milliards cinq cent quatre-vingt-quatorze millions deux mille neuf cent quatre-vingts | C46: =(E47*10^E$7)+(F47*10^F$7)+(G47*10^G$7)+(H47*10^H$7)+(I47*10^I$7)+(J47*10^J$7)+(K47*10^K$7)+(L47*10^L$7)+(M47*10^M$7)+(N47*10^N$7)+(O47*10^O$7)+(P47*10^P$7) -> 342594002980 | E46: =IF(Z45=12,TRUE,FALSE) -> FALSE | F46: =IF(Z45=11,TRUE,FALSE) -> FALSE | G46: =IF(Z45=10,TRUE,FALSE) -> FALSE | H46: =IF(Z45=9,TRUE,FALSE) -> FALSE | I46: =IF(Z45=8,TRUE,FALSE) -> FALSE | J46: =IF(Z45=7,TRUE,FALSE) -> FALSE | K46: =IF(Z45=6,TRUE,FALSE) -> FALSE | L46: =IF(Z45=5,TRUE,FALSE) -> TRUE | M46: =IF(Z45=4,TRUE,FALSE) -> FALSE | N46: =IF(Z45=3,TRUE,FALSE) -> FALSE | O46: =IF(Z45=2,TRUE,FALSE) -> FALSE | P46: =IF(Z45=1,TRUE,FALSE) -> FALSE | Q46: =IF(AND(Q45=0,R46=FALSE),FALSE,TRUE) -> TRUE | R46: =IF(AND(R45=0,S46=FALSE),FALSE,TRUE) -> FALSE | S46: =IF(AND(S45=0,T46=FALSE),FALSE,TRUE) -> FALSE | T46: =IF(AND(T45=0,U46=FALSE),FALSE,TRUE) -> FALSE | U46: =IF(AND(U45=0,V46=FALSE),FALSE,TRUE) -> FALSE | V46: =IF(V45=0,FALSE,TRUE) -> FALSE | W46: =W45/(1000000/W47) -> 2
B47: =convnumberletter(C47) -> deux | C47: =W46 -> 2 | E47: =IF(AND(E$7-1<$Z45,E$7-1>=$AA45),0,E45) -> 3 | F47: 4 | G47: 2 | H47: 5 | I47: 9 | J47: 4 | K47: 0 | L47: 0 | M47: =IF(AND(M$7-1<$Z45,M$7-1>=$AA45),0,M45) -> 2 | N47: =IF(AND(N$7-1<$Z45,N$7-1>=$AA45),0,N45) -> 9 | O47: =IF(AND(O$7-1<$Z45,O$7-1>=$AA45),0,O45) -> 8 | P47: =IF(AND(P$7-1<$Z45,P$7-1>=$AA45),0,P45) -> 0 | Q47: =IF(Q46=FALSE,"",Q45) -> 2 | W47: =SUM(Q48:V48) -> 10
B48: =IF(C47>1,CONCATENATE(HLOOKUP(C48,$Q$7:$V$9,3,TRUE),"s"),HLOOKUP(C48,$Q$7:$V$9,3,TRUE)) -> dixièmes | C48: =W47 -> 10 | Q48: =IF(AND(R47="",Q47<>""),Q$7,0) -> 10 | R48: =IF(AND(S47="",R47<>""),R$7,0) -> 0 | S48: =IF(AND(T47="",S47<>""),S$7,0) -> 0 | T48: =IF(AND(U47="",T47<>""),T$7,0) -> 0 | U48: =IF(AND(V47="",U47<>""),U$7,0) -> 0 | V48: =IF(AND(W48="",V47<>""),V$7,0) -> 0
B49: =IF($C$8="virgule",CONCATENATE(B46," virgule ",B47),CONCATENATE(B46," et ",B47," ",B48)) -> trois cent quarante-deux milliards cinq cent quatre-vingt-quatorze millions deux mille neuf cent quatre-vingts virgule deux | Q49: =C46 -> 342594002980 | T49: =AG45 -> 0.2
E50: =IF(X50>100000000000,INT(RIGHT($X50,12)/100000000000),0) -> 1 | F50: =IF(X50>10000000000,INT(RIGHT($X50,11)/10000000000),0) -> 2 | G50: =IF(X50>1000000000,INT(RIGHT($X50,10)/1000000000),0) -> 5 | H50: =IF(X50>100000000,INT(RIGHT($X50,9)/100000000),0) -> 5 | I50: =IF(X50>10000000,INT(RIGHT($X50,8)/10000000),0) -> 9 | J50: =IF(X50>1000000,INT(RIGHT($X50,7)/1000000),0) -> 1 | K50: =IF(X50>100000,INT(RIGHT($X50,6)/100000),0) -> 2 | L50: =IF(X50>10000,INT(RIGHT($X50,5)/10000),0) -> 8 | M50: =IF(X50>1000,INT(RIGHT($X50,4)/1000),0) -> 1 | N50: =IF(X50>100,INT(RIGHT($X50,3)/100),0) -> 3 | O50: =IF(X50>10,INT(RIGHT($X50,2)/10),0) -> 4 | P50: =INT(RIGHT($X50,1)/1) -> 1 | Q50: =INT(RIGHT($AC50,1)) -> 4 | R50: =INT(RIGHT($AC50,2)/10) -> 7 | S50: =INT(RIGHT($AC50,3)/100) -> 0 | T50: =INT(RIGHT($AC50,4)/1000) -> 0 | U50: =INT(RIGHT($AC50,5)/10000) -> 0 | V50: =INT(RIGHT($AC50,6)/100000) -> 0 | W50: =((Q50*100000)+(R50*10000)+(S50*1000)+(T50*100)+(U50*10)+V50) -> 470000 | X50: =C$3+INT(RAND()*(C$4-C$3+1)) -> 125591281341 | Y50: =LEN(X50) -> 12 | Z50: =INT(RAND()*(Y50-C$5))+C$5 -> 7 | AA50: =Z50-C$5 -> 5 | AC50: =INT(RAND()*(POWER(10,$C$7))+1) -> 74 | AD50: =LEN(AC50) -> 2 | AE50: =INT(RAND()*(AD50-H$5))+H$5 -> 0 | AF50: =AE50-H$5 -> 0 | AG50: =(Q50*10^Q$6)+(R50*10^R$6)+(S50*10^S$6)+(T50*10^T$6)+(U50*10^U$6)+(V50*10^V$6) -> 0.47
A51: 9 | B51: =convnumberletter(C51) -> cent vingt-cinq milliards cinq cents millions deux cent quatre-vingt-un mille trois cent quarante et un | C51: =(E52*10^E$7)+(F52*10^F$7)+(G52*10^G$7)+(H52*10^H$7)+(I52*10^I$7)+(J52*10^J$7)+(K52*10^K$7)+(L52*10^L$7)+(M52*10^M$7)+(N52*10^N$7)+(O52*10^O$7)+(P52*10^P$7) -> 125500281341 | E51: =IF(Z50=12,TRUE,FALSE) -> FALSE | F51: =IF(Z50=11,TRUE,FALSE) -> FALSE | G51: =IF(Z50=10,TRUE,FALSE) -> FALSE | H51: =IF(Z50=9,TRUE,FALSE) -> FALSE | I51: =IF(Z50=8,TRUE,FALSE) -> FALSE | J51: =IF(Z50=7,TRUE,FALSE) -> TRUE | K51: =IF(Z50=6,TRUE,FALSE) -> FALSE | L51: =IF(Z50=5,TRUE,FALSE) -> FALSE | M51: =IF(Z50=4,TRUE,FALSE) -> FALSE | N51: =IF(Z50=3,TRUE,FALSE) -> FALSE | O51: =IF(Z50=2,TRUE,FALSE) -> FALSE | P51: =IF(Z50=1,TRUE,FALSE) -> FALSE | Q51: =IF(AND(Q50=0,R51=FALSE),FALSE,TRUE) -> TRUE | R51: =IF(AND(R50=0,S51=FALSE),FALSE,TRUE) -> TRUE | S51: =IF(AND(S50=0,T51=FALSE),FALSE,TRUE) -> FALSE | T51: =IF(AND(T50=0,U51=FALSE),FALSE,TRUE) -> FALSE | U51: =IF(AND(U50=0,V51=FALSE),FALSE,TRUE) -> FALSE | V51: =IF(V50=0,FALSE,TRUE) -> FALSE | W51: =W50/(1000000/W52) -> 47
B52: =convnumberletter(C52) -> quarante-sept | C52: =W51 -> 47 | E52: =IF(AND(E$7-1<$Z50,E$7-1>=$AA50),0,E50) -> 1 | F52: 2 | G52: 5 | H52: 5 | I52: 0 | J52: 0 | K52: 2 | L52: 8 | M52: =IF(AND(M$7-1<$Z50,M$7-1>=$AA50),0,M50) -> 1 | N52: =IF(AND(N$7-1<$Z50,N$7-1>=$AA50),0,N50) -> 3 | O52: =IF(AND(O$7-1<$Z50,O$7-1>=$AA50),0,O50) -> 4 | P52: =IF(AND(P$7-1<$Z50,P$7-1>=$AA50),0,P50) -> 1 | Q52: =IF(Q51=FALSE,"",Q50) -> 4 | R52: 7 | W52: =SUM(Q53:V53) -> 100
B53: =IF(C52>1,CONCATENATE(HLOOKUP(C53,$Q$7:$V$9,3,TRUE),"s"),HLOOKUP(C53,$Q$7:$V$9,3,TRUE)) -> centièmes | C53: =W52 -> 100 | Q53: =IF(AND(R52="",Q52<>""),Q$7,0) -> 0 | R53: =IF(AND(S52="",R52<>""),R$7,0) -> 100 | S53: =IF(AND(T52="",S52<>""),S$7,0) -> 0 | T53: =IF(AND(U52="",T52<>""),T$7,0) -> 0 | U53: =IF(AND(V52="",U52<>""),U$7,0) -> 0 | V53: =IF(AND(W53="",V52<>""),V$7,0) -> 0
B54: =IF($C$8="virgule",CONCATENATE(B51," virgule ",B52),CONCATENATE(B51," et ",B52," ",B53)) -> cent vingt-cinq milliards cinq cents millions deux cent quatre-vingt-un mille trois cent quarante et un virgule quarante-sept | Q54: =C51 -> 125500281341 | T54: =AG50 -> 0.47
E55: =IF(X55>100000000000,INT(RIGHT($X55,12)/100000000000),0) -> 1 | F55: =IF(X55>10000000000,INT(RIGHT($X55,11)/10000000000),0) -> 1 | G55: =IF(X55>1000000000,INT(RIGHT($X55,10)/1000000000),0) -> 7 | H55: =IF(X55>100000000,INT(RIGHT($X55,9)/100000000),0) -> 3 | I55: =IF(X55>10000000,INT(RIGHT($X55,8)/10000000),0) -> 1 | J55: =IF(X55>1000000,INT(RIGHT($X55,7)/1000000),0) -> 4 | K55: =IF(X55>100000,INT(RIGHT($X55,6)/100000),0) -> 0 | L55: =IF(X55>10000,INT(RIGHT($X55,5)/10000),0) -> 1 | M55: =IF(X55>1000,INT(RIGHT($X55,4)/1000),0) -> 8 | N55: =IF(X55>100,INT(RIGHT($X55,3)/100),0) -> 8 | O55: =IF(X55>10,INT(RIGHT($X55,2)/10),0) -> 8 | P55: =INT(RIGHT($X55,1)/1) -> 7 | Q55: =INT(RIGHT($AC55,1)) -> 7 | R55: =INT(RIGHT($AC55,2)/10) -> 8 | S55: =INT(RIGHT($AC55,3)/100) -> 0 | T55: =INT(RIGHT($AC55,4)/1000) -> 0 | U55: =INT(RIGHT($AC55,5)/10000) -> 0 | V55: =INT(RIGHT($AC55,6)/100000) -> 0 | W55: =((Q55*100000)+(R55*10000)+(S55*1000)+(T55*100)+(U55*10)+V55) -> 780000 | X55: =C$3+INT(RAND()*(C$4-C$3+1)) -> 117314018887 | Y55: =LEN(X55) -> 12 | Z55: =INT(RAND()*(Y55-C$5))+C$5 -> 7 | AA55: =Z55-C$5 -> 5 | AC55: =INT(RAND()*(POWER(10,$C$7))+1) -> 87 | AD55: =LEN(AC55) -> 2 | AE55: =INT(RAND()*(AD55-H$5))+H$5 -> 1 | AF55: =AE55-H$5 -> 1 | AG55: =(Q55*10^Q$6)+(R55*10^R$6)+(S55*10^S$6)+(T55*10^T$6)+(U55*10^U$6)+(V55*10^V$6) -> 0.78
A56: 10 | B56: =convnumberletter(C56) -> cent dix-sept milliards trois cents millions dix-huit mille huit cent quatre-vingt-sept | C56: =(E57*10^E$7)+(F57*10^F$7)+(G57*10^G$7)+(H57*10^H$7)+(I57*10^I$7)+(J57*10^J$7)+(K57*10^K$7)+(L57*10^L$7)+(M57*10^M$7)+(N57*10^N$7)+(O57*10^O$7)+(P57*10^P$7) -> 117300018887 | E56: =IF(Z55=12,TRUE,FALSE) -> FALSE | F56: =IF(Z55=11,TRUE,FALSE) -> FALSE | G56: =IF(Z55=10,TRUE,FALSE) -> FALSE | H56: =IF(Z55=9,TRUE,FALSE) -> FALSE | I56: =IF(Z55=8,TRUE,FALSE) -> FALSE | J56: =IF(Z55=7,TRUE,FALSE) -> TRUE | K56: =IF(Z55=6,TRUE,FALSE) -> FALSE | L56: =IF(Z55=5,TRUE,FALSE) -> FALSE | M56: =IF(Z55=4,TRUE,FALSE) -> FALSE | N56: =IF(Z55=3,TRUE,FALSE) -> FALSE | O56: =IF(Z55=2,TRUE,FALSE) -> FALSE | P56: =IF(Z55=1,TRUE,FALSE) -> FALSE | Q56: =IF(AND(Q55=0,R56=FALSE),FALSE,TRUE) -> TRUE | R56: =IF(AND(R55=0,S56=FALSE),FALSE,TRUE) -> TRUE | S56: =IF(AND(S55=0,T56=FALSE),FALSE,TRUE) -> FALSE | T56: =IF(AND(T55=0,U56=FALSE),FALSE,TRUE) -> FALSE | U56: =IF(AND(U55=0,V56=FALSE),FALSE,TRUE) -> FALSE | V56: =IF(V55=0,FALSE,TRUE) -> FALSE | W56: =W55/(1000000/W57) -> 78
B57: =convnumberletter(C57) -> soixante-dix-huit | C57: =W56 -> 78 | E57: =IF(AND(E$7-1<$Z55,E$7-1>=$AA55),0,E55) -> 1 | F57: 1 | G57: 7 | H57: 3 | I57: 0 | J57: 0 | K57: 0 | L57: 1 | M57: =IF(AND(M$7-1<$Z55,M$7-1>=$AA55),0,M55) -> 8 | N57: =IF(AND(N$7-1<$Z55,N$7-1>=$AA55),0,N55) -> 8 | O57: =IF(AND(O$7-1<$Z55,O$7-1>=$AA55),0,O55) -> 8 | P57: =IF(AND(P$7-1<$Z55,P$7-1>=$AA55),0,P55) -> 7 | Q57: =IF(Q56=FALSE,"",Q55) -> 7 | R57: 8 | W57: =SUM(Q58:V58) -> 100
B58: =IF(C57>1,CONCATENATE(HLOOKUP(C58,$Q$7:$V$9,3,TRUE),"s"),HLOOKUP(C58,$Q$7:$V$9,3,TRUE)) -> centièmes | C58: =W57 -> 100 | Q58: =IF(AND(R57="",Q57<>""),Q$7,0) -> 0 | R58: =IF(AND(S57="",R57<>""),R$7,0) -> 100 | S58: =IF(AND(T57="",S57<>""),S$7,0) -> 0 | T58: =IF(AND(U57="",T57<>""),T$7,0) -> 0 | U58: =IF(AND(V57="",U57<>""),U$7,0) -> 0 | V58: =IF(AND(W58="",V57<>""),V$7,0) -> 0
B59: =IF($C$8="virgule",CONCATENATE(B56," virgule ",B57),CONCATENATE(B56," et ",B57," ",B58)) -> cent dix-sept milliards trois cents millions dix-huit mille huit cent quatre-vingt-sept virgule soixante-dix-huit | Q59: =C56 -> 117300018887 | T59: =AG55 -> 0.78
E60: =IF(X60>100000000000,INT(RIGHT($X60,12)/100000000000),0) -> 9 | F60: =IF(X60>10000000000,INT(RIGHT($X60,11)/10000000000),0) -> 3 | G60: =IF(X60>1000000000,INT(RIGHT($X60,10)/1000000000),0) -> 7 | H60: =IF(X60>100000000,INT(RIGHT($X60,9)/100000000),0) -> 3 | I60: =IF(X60>10000000,INT(RIGHT($X60,8)/10000000),0) -> 1 | J60: =IF(X60>1000000,INT(RIGHT($X60,7)/1000000),0) -> 9 | K60: =IF(X60>100000,INT(RIGHT($X60,6)/100000),0) -> 5 | L60: =IF(X60>10000,INT(RIGHT($X60,5)/10000),0) -> 6 | M60: =IF(X60>1000,INT(RIGHT($X60,4)/1000),0) -> 1 | N60: =IF(X60>100,INT(RIGHT($X60,3)/100),0) -> 4 | O60: =IF(X60>10,INT(RIGHT($X60,2)/10),0) -> 9 | P60: =INT(RIGHT($X60,1)/1) -> 9 | Q60: =INT(RIGHT($AC60,1)) -> 9 | R60: =INT(RIGHT($AC60,2)/10) -> 7 | S60: =INT(RIGHT($AC60,3)/100) -> 0 | T60: =INT(RIGHT($AC60,4)/1000) -> 0 | U60: =INT(RIGHT($AC60,5)/10000) -> 0 | V60: =INT(RIGHT($AC60,6)/100000) -> 0 | W60: =((Q60*100000)+(R60*10000)+(S60*1000)+(T60*100)+(U60*10)+V60) -> 970000 | X60: =C$3+INT(RAND()*(C$4-C$3+1)) -> 937319561499 | Y60: =LEN(X60) -> 12 | Z60: =INT(RAND()*(Y60-C$5))+C$5 -> 2 | AA60: =Z60-C$5 -> 0 | AC60: =INT(RAND()*(POWER(10,$C$7))+1) -> 79 | AD60: =LEN(AC60) -> 2 | AE60: =INT(RAND()*(AD60-H$5))+H$5 -> 0 | AF60: =AE60-H$5 -> 0 | AG60: =(Q60*10^Q$6)+(R60*10^R$6)+(S60*10^S$6)+(T60*10^T$6)+(U60*10^U$6)+(V60*10^V$6) -> 0.97
A61: 11 | B61: =convnumberletter(C61) -> neuf cent trente-sept milliards trois cent dix-neuf millions cinq cent soixante et un mille neuf | C61: =(E62*10^E$7)+(F62*10^F$7)+(G62*10^G$7)+(H62*10^H$7)+(I62*10^I$7)+(J62*10^J$7)+(K62*10^K$7)+(L62*10^L$7)+(M62*10^M$7)+(N62*10^N$7)+(O62*10^O$7)+(P62*10^P$7) -> 937319561009 | E61: =IF(Z60=12,TRUE,FALSE) -> FALSE | F61: =IF(Z60=11,TRUE,FALSE) -> FALSE | G61: =IF(Z60=10,TRUE,FALSE) -> FALSE | H61: =IF(Z60=9,TRUE,FALSE) -> FALSE | I61: =IF(Z60=8,TRUE,FALSE) -> FALSE | J61: =IF(Z60=7,TRUE,FALSE) -> FALSE | K61: =IF(Z60=6,TRUE,FALSE) -> FALSE | L61: =IF(Z60=5,TRUE,FALSE) -> FALSE | M61: =IF(Z60=4,TRUE,FALSE) -> FALSE | N61: =IF(Z60=3,TRUE,FALSE) -> FALSE | O61: =IF(Z60=2,TRUE,FALSE) -> TRUE | P61: =IF(Z60=1,TRUE,FALSE) -> FALSE | Q61: =IF(AND(Q60=0,R61=FALSE),FALSE,TRUE) -> TRUE | R61: =IF(AND(R60=0,S61=FALSE),FALSE,TRUE) -> TRUE | S61: =IF(AND(S60=0,T61=FALSE),FALSE,TRUE) -> FALSE | T61: =IF(AND(T60=0,U61=FALSE),FALSE,TRUE) -> FALSE | U61: =IF(AND(U60=0,V61=FALSE),FALSE,TRUE) -> FALSE | V61: =IF(V60=0,FALSE,TRUE) -> FALSE | W61: =W60/(1000000/W62) -> 97
B62: =convnumberletter(C62) -> quatre-vingt-dix-sept | C62: =W61 -> 97 | E62: =IF(AND(E$7-1<$Z60,E$7-1>=$AA60),0,E60) -> 9 | F62: 3 | G62: 7 | H62: 3 | I62: 1 | J62: 9 | K62: 5 | L62: 6 | M62: =IF(AND(M$7-1<$Z60,M$7-1>=$AA60),0,M60) -> 1 | N62: =IF(AND(N$7-1<$Z60,N$7-1>=$AA60),0,N60) -> 0 | O62: =IF(AND(O$7-1<$Z60,O$7-1>=$AA60),0,O60) -> 0 | P62: =IF(AND(P$7-1<$Z60,P$7-1>=$AA60),0,P60) -> 9 | Q62: =IF(Q61=FALSE,"",Q60) -> 9 | R62: 7 | W62: =SUM(Q63:V63) -> 100
B63: =IF(C62>1,CONCATENATE(HLOOKUP(C63,$Q$7:$V$9,3,TRUE),"s"),HLOOKUP(C63,$Q$7:$V$9,3,TRUE)) -> centièmes | C63: =W62 -> 100 | Q63: =IF(AND(R62="",Q62<>""),Q$7,0) -> 0 | R63: =IF(AND(S62="",R62<>""),R$7,0) -> 100 | S63: =IF(AND(T62="",S62<>""),S$7,0) -> 0 | T63: =IF(AND(U62="",T62<>""),T$7,0) -> 0 | U63: =IF(AND(V62="",U62<>""),U$7,0) -> 0 | V63: =IF(AND(W63="",V62<>""),V$7,0) -> 0
B64: =IF($C$8="virgule",CONCATENATE(B61," virgule ",B62),CONCATENATE(B61," et ",B62," ",B63)) -> neuf cent trente-sept milliards trois cent dix-neuf millions cinq cent soixante et un mille neuf virgule quatre-vingt-dix-sept
E65: =IF(X65>100000000000,INT(RIGHT($X65,12)/100000000000),0) -> 2 | F65: =IF(X65>10000000000,INT(RIGHT($X65,11)/10000000000),0) -> 0 | G65: =IF(X65>1000000000,INT(RIGHT($X65,10)/1000000000),0) -> 7 | H65: =IF(X65>100000000,INT(RIGHT($X65,9)/100000000),0) -> 3 | I65: =IF(X65>10000000,INT(RIGHT($X65,8)/10000000),0) -> 0 | J65: =IF(X65>1000000,INT(RIGHT($X65,7)/1000000),0) -> 5 | K65: =IF(X65>100000,INT(RIGHT($X65,6)/100000),0) -> 2 | L65: =IF(X65>10000,INT(RIGHT($X65,5)/10000),0) -> 8 | M65: =IF(X65>1000,INT(RIGHT($X65,4)/1000),0) -> 5 | N65: =IF(X65>100,INT(RIGHT($X65,3)/100),0) -> 9 | O65: =IF(X65>10,INT(RIGHT($X65,2)/10),0) -> 1 | P65: =INT(RIGHT($X65,1)/1) -> 1 | Q65: =INT(RIGHT($AC65,1)) -> 6 | R65: =INT(RIGHT($AC65,2)/10) -> 4 | S65: =INT(RIGHT($AC65,3)/100) -> 0 | T65: =INT(RIGHT($AC65,4)/1000) -> 0 | U65: =INT(RIGHT($AC65,5)/10000) -> 0 | V65: =INT(RIGHT($AC65,6)/100000) -> 0 | W65: =((Q65*100000)+(R65*10000)+(S65*1000)+(T65*100)+(U65*10)+V65) -> 640000 | X65: =C$3+INT(RAND()*(C$4-C$3+1)) -> 207305285911 | Y65: =LEN(X65) -> 12 | Z65: =INT(RAND()*(Y65-C$5))+C$5 -> 2 | AA65: =Z65-C$5 -> 0 | AC65: =INT(RAND()*(POWER(10,$C$7))+1) -> 46 | AD65: =LEN(AC65) -> 2 | AE65: =INT(RAND()*(AD65-H$5))+H$5 -> 1 | AF65: =AE65-H$5 -> 1 | AG65: =(Q65*10^Q$6)+(R65*10^R$6)+(S65*10^S$6)+(T65*10^T$6)+(U65*10^U$6)+(V65*10^V$6) -> 0.64
A66: 12 | B66: =convnumberletter(C66) -> deux cent sept milliards trois cent cinq millions deux cent quatre-vingt-cinq mille un | C66: =(E67*10^E$7)+(F67*10^F$7)+(G67*10^G$7)+(H67*10^H$7)+(I67*10^I$7)+(J67*10^J$7)+(K67*10^K$7)+(L67*10^L$7)+(M67*10^M$7)+(N67*10^N$7)+(O67*10^O$7)+(P67*10^P$7) -> 207305285001 | E66: =IF(Z65=12,TRUE,FALSE) -> FALSE | F66: =IF(Z65=11,TRUE,FALSE) -> FALSE | G66: =IF(Z65=10,TRUE,FALSE) -> FALSE | H66: =IF(Z65=9,TRUE,FALSE) -> FALSE | I66: =IF(Z65=8,TRUE,FALSE) -> FALSE | J66: =IF(Z65=7,TRUE,FALSE) -> FALSE | K66: =IF(Z65=6,TRUE,FALSE) -> FALSE | L66: =IF(Z65=5,TRUE,FALSE) -> FALSE | M66: =IF(Z65=4,TRUE,FALSE) -> FALSE | N66: =IF(Z65=3,TRUE,FALSE) -> FALSE | O66: =IF(Z65=2,TRUE,FALSE) -> TRUE | P66: =IF(Z65=1,TRUE,FALSE) -> FALSE | Q66: =IF(AND(Q65=0,R66=FALSE),FALSE,TRUE) -> TRUE | R66: =IF(AND(R65=0,S66=FALSE),FALSE,TRUE) -> TRUE | S66: =IF(AND(S65=0,T66=FALSE),FALSE,TRUE) -> FALSE | T66: =IF(AND(T65=0,U66=FALSE),FALSE,TRUE) -> FALSE | U66: =IF(AND(U65=0,V66=FALSE),FALSE,TRUE) -> FALSE | V66: =IF(V65=0,FALSE,TRUE) -> FALSE | W66: =W65/(1000000/W67) -> 64
B67: =convnumberletter(C67) -> soixante-quatre | C67: =W66 -> 64 | E67: =IF(AND(E$7-1<$Z65,E$7-1>=$AA65),0,E65) -> 2 | F67: 0 | G67: 7 | H67: 3 | I67: 0 | J67: 5 | K67: 2 | L67: 8 | M67: =IF(AND(M$7-1<$Z65,M$7-1>=$AA65),0,M65) -> 5 | N67: =IF(AND(N$7-1<$Z65,N$7-1>=$AA65),0,N65) -> 0 | O67: =IF(AND(O$7-1<$Z65,O$7-1>=$AA65),0,O65) -> 0 | P67: =IF(AND(P$7-1<$Z65,P$7-1>=$AA65),0,P65) -> 1 | Q67: =IF(Q66=FALSE,"",Q65) -> 6 | R67: 4 | W67: =SUM(Q68:V68) -> 100
B68: =IF(C67>1,CONCATENATE(HLOOKUP(C68,$Q$7:$V$9,3,TRUE),"s"),HLOOKUP(C68,$Q$7:$V$9,3,TRUE)) -> centièmes | C68: =W67 -> 100 | Q68: =IF(AND(R67="",Q67<>""),Q$7,0) -> 0 | R68: =IF(AND(S67="",R67<>""),R$7,0) -> 100 | S68: =IF(AND(T67="",S67<>""),S$7,0) -> 0 | T68: =IF(AND(U67="",T67<>""),T$7,0) -> 0 | U68: =IF(AND(V67="",U67<>""),U$7,0) -> 0 | V68: =IF(AND(W68="",V67<>""),V$7,0) -> 0
B69: =IF($C$8="virgule",CONCATENATE(B66," virgule ",B67),CONCATENATE(B66," et ",B67," ",B68)) -> deux cent sept milliards trois cent cinq millions deux cent quatre-vingt-cinq mille un virgule soixante-quatre
E70: =IF(X70>100000000000,INT(RIGHT($X70,12)/100000000000),0) -> 7 | F70: =IF(X70>10000000000,INT(RIGHT($X70,11)/10000000000),0) -> 1 | G70: =IF(X70>1000000000,INT(RIGHT($X70,10)/1000000000),0) -> 6 | H70: =IF(X70>100000000,INT(RIGHT($X70,9)/100000000),0) -> 1 | I70: =IF(X70>10000000,INT(RIGHT($X70,8)/10000000),0) -> 0 | J70: =IF(X70>1000000,INT(RIGHT($X70,7)/1000000),0) -> 8 | K70: =IF(X70>100000,INT(RIGHT($X70,6)/100000),0) -> 6 | L70: =IF(X70>10000,INT(RIGHT($X70,5)/10000),0) -> 2 | M70: =IF(X70>1000,INT(RIGHT($X70,4)/1000),0) -> 2 | N70: =IF(X70>100,INT(RIGHT($X70,3)/100),0) -> 8 | O70: =IF(X70>10,INT(RIGHT($X70,2)/10),0) -> 8 | P70: =INT(RIGHT($X70,1)/1) -> 9 | Q70: =INT(RIGHT($AC70,1)) -> 5 | R70: =INT(RIGHT($AC70,2)/10) -> 9 | S70: =INT(RIGHT($AC70,3)/100) -> 0 | T70: =INT(RIGHT($AC70,4)/1000) -> 0 | U70: =INT(RIGHT($AC70,5)/10000) -> 0 | V70: =INT(RIGHT($AC70,6)/100000) -> 0 | W70: =((Q70*100000)+(R70*10000)+(S70*1000)+(T70*100)+(U70*10)+V70) -> 590000 | X70: =C$3+INT(RAND()*(C$4-C$3+1)) -> 716108622889 | Y70: =LEN(X70) -> 12 | Z70: =INT(RAND()*(Y70-C$5))+C$5 -> 9 | AA70: =Z70-C$5 -> 7 | AC70: =INT(RAND()*(POWER(10,$C$7))+1) -> 95 | AD70: =LEN(AC70) -> 2 | AE70: =INT(RAND()*(AD70-H$5))+H$5 -> 0 | AF70: =AE70-H$5 -> 0 | AG70: =(Q70*10^Q$6)+(R70*10^R$6)+(S70*10^S$6)+(T70*10^T$6)+(U70*10^U$6)+(V70*10^V$6) -> 0.59
A71: 13 | B71: =convnumberletter(C71) -> sept cent dix milliards huit millions six cent vingt-deux mille huit cent quatre-vingt-neuf | C71: =(E72*10^E$7)+(F72*10^F$7)+(G72*10^G$7)+(H72*10^H$7)+(I72*10^I$7)+(J72*10^J$7)+(K72*10^K$7)+(L72*10^L$7)+(M72*10^M$7)+(N72*10^N$7)+(O72*10^O$7)+(P72*10^P$7) -> 710008622889 | E71: =IF(Z70=12,TRUE,FALSE) -> FALSE | F71: =IF(Z70=11,TRUE,FALSE) -> FALSE | G71: =IF(Z70=10,TRUE,FALSE) -> FALSE | H71: =IF(Z70=9,TRUE,FALSE) -> TRUE | I71: =IF(Z70=8,TRUE,FALSE) -> FALSE | J71: =IF(Z70=7,TRUE,FALSE) -> FALSE | K71: =IF(Z70=6,TRUE,FALSE) -> FALSE | L71: =IF(Z70=5,TRUE,FALSE) -> FALSE | M71: =IF(Z70=4,TRUE,FALSE) -> FALSE | N71: =IF(Z70=3,TRUE,FALSE) -> FALSE | O71: =IF(Z70=2,TRUE,FALSE) -> FALSE | P71: =IF(Z70=1,TRUE,FALSE) -> FALSE | Q71: =IF(AND(Q70=0,R71=FALSE),FALSE,TRUE) -> TRUE | R71: =IF(AND(R70=0,S71=FALSE),FALSE,TRUE) -> TRUE | S71: =IF(AND(S70=0,T71=FALSE),FALSE,TRUE) -> FALSE | T71: =IF(AND(T70=0,U71=FALSE),FALSE,TRUE) -> FALSE | U71: =IF(AND(U70=0,V71=FALSE),FALSE,TRUE) -> FALSE | V71: =IF(V70=0,FALSE,TRUE) -> FALSE | W71: =W70/(1000000/W72) -> 59
B72: =convnumberletter(C72) -> cinquante-neuf | C72: =W71 -> 59 | E72: =IF(AND(E$7-1<$Z70,E$7-1>=$AA70),0,E70) -> 7 | F72: 1 | G72: 0 | H72: 0 | I72: 0 | J72: 8 | K72: 6 | L72: 2 | M72: =IF(AND(M$7-1<$Z70,M$7-1>=$AA70),0,M70) -> 2 | N72: =IF(AND(N$7-1<$Z70,N$7-1>=$AA70),0,N70) -> 8 | O72: =IF(AND(O$7-1<$Z70,O$7-1>=$AA70),0,O70) -> 8 | P72: =IF(AND(P$7-1<$Z70,P$7-1>=$AA70),0,P70) -> 9 | Q72: =IF(Q71=FALSE,"",Q70) -> 5 | R72: 9 | W72: =SUM(Q73:V73) -> 100
B73: =IF(C72>1,CONCATENATE(HLOOKUP(C73,$Q$7:$V$9,3,TRUE),"s"),HLOOKUP(C73,$Q$7:$V$9,3,TRUE)) -> centièmes | C73: =W72 -> 100 | Q73: =IF(AND(R72="",Q72<>""),Q$7,0) -> 0 | R73: =IF(AND(S72="",R72<>""),R$7,0) -> 100 | S73: =IF(AND(T72="",S72<>""),S$7,0) -> 0 | T73: =IF(AND(U72="",T72<>""),T$7,0) -> 0 | U73: =IF(AND(V72="",U72<>""),U$7,0) -> 0 | V73: =IF(AND(W73="",V72<>""),V$7,0) -> 0
B74: =IF($C$8="virgule",CONCATENATE(B71," virgule ",B72),CONCATENATE(B71," et ",B72," ",B73)) -> sept cent dix milliards huit millions six cent vingt-deux mille huit cent quatre-vingt-neuf virgule cinquante-neuf
E75: =IF(X75>100000000000,INT(RIGHT($X75,12)/100000000000),0) -> 6 | F75: =IF(X75>10000000000,INT(RIGHT($X75,11)/10000000000),0) -> 8 | G75: =IF(X75>1000000000,INT(RIGHT($X75,10)/1000000000),0) -> 6 | H75: =IF(X75>100000000,INT(RIGHT($X75,9)/100000000),0) -> 5 | I75: =IF(X75>10000000,INT(RIGHT($X75,8)/10000000),0) -> 0 | J75: =IF(X75>1000000,INT(RIGHT($X75,7)/1000000),0) -> 2 | K75: =IF(X75>100000,INT(RIGHT($X75,6)/100000),0) -> 8 | L75: =IF(X75>10000,INT(RIGHT($X75,5)/10000),0) -> 2 | M75: =IF(X75>1000,INT(RIGHT($X75,4)/1000),0) -> 2 | N75: =IF(X75>100,INT(RIGHT($X75,3)/100),0) -> 1 | O75: =IF(X75>10,INT(RIGHT($X75,2)/10),0) -> 4 | P75: =INT(RIGHT($X75,1)/1) -> 4 | Q75: =INT(RIGHT($AC75,1)) -> 1 | R75: =INT(RIGHT($AC75,2)/10) -> 2 | S75: =INT(RIGHT($AC75,3)/100) -> 0 | T75: =INT(RIGHT($AC75,4)/1000) -> 0 | U75: =INT(RIGHT($AC75,5)/10000) -> 0 | V75: =INT(RIGHT($AC75,6)/100000) -> 0 | W75: =((Q75*100000)+(R75*10000)+(S75*1000)+(T75*100)+(U75*10)+V75) -> 120000 | X75: =C$3+INT(RAND()*(C$4-C$3+1)) -> 686502822144 | Y75: =LEN(X75) -> 12 | Z75: =INT(RAND()*(Y75-C$5))+C$5 -> 7 | AA75: =Z75-C$5 -> 5 | AC75: =INT(RAND()*(POWER(10,$C$7))+1) -> 21 | AD75: =LEN(AC75) -> 2 | AE75: =INT(RAND()*(AD75-H$5))+H$5 -> 0 | AF75: =AE75-H$5 -> 0 | AG75: =(Q75*10^Q$6)+(R75*10^R$6)+(S75*10^S$6)+(T75*10^T$6)+(U75*10^U$6)+(V75*10^V$6) -> 0.12
A76: 14 | B76: =convnumberletter(C76) -> six cent quatre-vingt-six milliards cinq cents millions huit cent vingt-deux mille cent quarante-quatre | C76: =(E77*10^E$7)+(F77*10^F$7)+(G77*10^G$7)+(H77*10^H$7)+(I77*10^I$7)+(J77*10^J$7)+(K77*10^K$7)+(L77*10^L$7)+(M77*10^M$7)+(N77*10^N$7)+(O77*10^O$7)+(P77*10^P$7) -> 686500822144 | E76: =IF(Z75=12,TRUE,FALSE) -> FALSE | F76: =IF(Z75=11,TRUE,FALSE) -> FALSE | G76: =IF(Z75=10,TRUE,FALSE) -> FALSE | H76: =IF(Z75=9,TRUE,FALSE) -> FALSE | I76: =IF(Z75=8,TRUE,FALSE) -> FALSE | J76: =IF(Z75=7,TRUE,FALSE) -> TRUE | K76: =IF(Z75=6,TRUE,FALSE) -> FALSE | L76: =IF(Z75=5,TRUE,FALSE) -> FALSE | M76: =IF(Z75=4,TRUE,FALSE) -> FALSE | N76: =IF(Z75=3,TRUE,FALSE) -> FALSE | O76: =IF(Z75=2,TRUE,FALSE) -> FALSE | P76: =IF(Z75=1,TRUE,FALSE) -> FALSE | Q76: =IF(AND(Q75=0,R76=FALSE),FALSE,TRUE) -> TRUE | R76: =IF(AND(R75=0,S76=FALSE),FALSE,TRUE) -> TRUE | S76: =IF(AND(S75=0,T76=FALSE),FALSE,TRUE) -> FALSE | T76: =IF(AND(T75=0,U76=FALSE),FALSE,TRUE) -> FALSE | U76: =IF(AND(U75=0,V76=FALSE),FALSE,TRUE) -> FALSE | V76: =IF(V75=0,FALSE,TRUE) -> FALSE | W76: =W75/(1000000/W77) -> 12
B77: =convnumberletter(C77) -> douze | C77: =W76 -> 12 | E77: =IF(AND(E$7-1<$Z75,E$7-1>=$AA75),0,E75) -> 6 | F77: 8 | G77: 6 | H77: 5 | I77: 0 | J77: 0 | K77: 8 | L77: 2 | M77: =IF(AND(M$7-1<$Z75,M$7-1>=$AA75),0,M75) -> 2 | N77: =IF(AND(N$7-1<$Z75,N$7-1>=$AA75),0,N75) -> 1 | O77: =IF(AND(O$7-1<$Z75,O$7-1>=$AA75),0,O75) -> 4 | P77: =IF(AND(P$7-1<$Z75,P$7-1>=$AA75),0,P75) -> 4 | Q77: =IF(Q76=FALSE,"",Q75) -> 1 | R77: 2 | W77: =SUM(Q78:V78) -> 100
B78: =IF(C77>1,CONCATENATE(HLOOKUP(C78,$Q$7:$V$9,3,TRUE),"s"),HLOOKUP(C78,$Q$7:$V$9,3,TRUE)) -> centièmes | C78: =W77 -> 100 | Q78: =IF(AND(R77="",Q77<>""),Q$7,0) -> 0 | R78: =IF(AND(S77="",R77<>""),R$7,0) -> 100 | S78: =IF(AND(T77="",S77<>""),S$7,0) -> 0 | T78: =IF(AND(U77="",T77<>""),T$7,0) -> 0 | U78: =IF(AND(V77="",U77<>""),U$7,0) -> 0 | V78: =IF(AND(W78="",V77<>""),V$7,0) -> 0
B79: =IF($C$8="virgule",CONCATENATE(B76," virgule ",B77),CONCATENATE(B76," et ",B77," ",B78)) -> six cent quatre-vingt-six milliards cinq cents millions huit cent vingt-deux mille cent quarante-quatre virgule douze
E80: =IF(X80>100000000000,INT(RIGHT($X80,12)/100000000000),0) -> 0 | F80: =IF(X80>10000000000,INT(RIGHT($X80,11)/10000000000),0) -> 0 | G80: =IF(X80>1000000000,INT(RIGHT($X80,10)/1000000000),0) -> 7 | H80: =IF(X80>100000000,INT(RIGHT($X80,9)/100000000),0) -> 8 | I80: =IF(X80>10000000,INT(RIGHT($X80,8)/10000000),0) -> 2 | J80: =IF(X80>1000000,INT(RIGHT($X80,7)/1000000),0) -> 7 | K80: =IF(X80>100000,INT(RIGHT($X80,6)/100000),0) -> 1 | L80: =IF(X80>10000,INT(RIGHT($X80,5)/10000),0) -> 7 | M80: =IF(X80>1000,INT(RIGHT($X80,4)/1000),0) -> 4 | N80: =IF(X80>100,INT(RIGHT($X80,3)/100),0) -> 1 | O80: =IF(X80>10,INT(RIGHT($X80,2)/10),0) -> 1 | P80: =INT(RIGHT($X80,1)/1) -> 4 | Q80: =INT(RIGHT($AC80,1)) -> 0 | R80: =INT(RIGHT($AC80,2)/10) -> 0 | S80: =INT(RIGHT($AC80,3)/100) -> 1 | T80: =INT(RIGHT($AC80,4)/1000) -> 0 | U80: =INT(RIGHT($AC80,5)/10000) -> 0 | V80: =INT(RIGHT($AC80,6)/100000) -> 0 | W80: =((Q80*100000)+(R80*10000)+(S80*1000)+(T80*100)+(U80*10)+V80) -> 1000 | X80: =C$3+INT(RAND()*(C$4-C$3+1)) -> 7827174114 | Y80: =LEN(X80) -> 10 | Z80: =INT(RAND()*(Y80-C$5))+C$5 -> 4 | AA80: =Z80-C$5 -> 2 | AC80: =INT(RAND()*(POWER(10,$C$7))+1) -> 100 | AD80: =LEN(AC80) -> 3 | AE80: =INT(RAND()*(AD80-H$5))+H$5 -> 2 | AF80: =AE80-H$5 -> 2 | AG80: =(Q80*10^Q$6)+(R80*10^R$6)+(S80*10^S$6)+(T80*10^T$6)+(U80*10^U$6)+(V80*10^V$6) -> 0.001
A81: 15 | B81: =convnumberletter(C81) -> sept milliards huit cent vingt-sept millions cent mille cent quatorze | C81: =(E82*10^E$7)+(F82*10^F$7)+(G82*10^G$7)+(H82*10^H$7)+(I82*10^I$7)+(J82*10^J$7)+(K82*10^K$7)+(L82*10^L$7)+(M82*10^M$7)+(N82*10^N$7)+(O82*10^O$7)+(P82*10^P$7) -> 7827100114 | E81: =IF(Z80=12,TRUE,FALSE) -> FALSE | F81: =IF(Z80=11,TRUE,FALSE) -> FALSE | G81: =IF(Z80=10,TRUE,FALSE) -> FALSE | H81: =IF(Z80=9,TRUE,FALSE) -> FALSE | I81: =IF(Z80=8,TRUE,FALSE) -> FALSE | J81: =IF(Z80=7,TRUE,FALSE) -> FALSE | K81: =IF(Z80=6,TRUE,FALSE) -> FALSE | L81: =IF(Z80=5,TRUE,FALSE) -> FALSE | M81: =IF(Z80=4,TRUE,FALSE) -> TRUE | N81: =IF(Z80=3,TRUE,FALSE) -> FALSE | O81: =IF(Z80=2,TRUE,FALSE) -> FALSE | P81: =IF(Z80=1,TRUE,FALSE) -> FALSE | Q81: =IF(AND(Q80=0,R81=FALSE),FALSE,TRUE) -> TRUE | R81: =IF(AND(R80=0,S81=FALSE),FALSE,TRUE) -> TRUE | S81: =IF(AND(S80=0,T81=FALSE),FALSE,TRUE) -> TRUE | T81: =IF(AND(T80=0,U81=FALSE),FALSE,TRUE) -> FALSE | U81: =IF(AND(U80=0,V81=FALSE),FALSE,TRUE) -> FALSE | V81: =IF(V80=0,FALSE,TRUE) -> FALSE | W81: =W80/(1000000/W82) -> 1
B82: =convnumberletter(C82) -> un | C82: =W81 -> 1 | E82: =IF(AND(E$7-1<$Z80,E$7-1>=$AA80),0,E80) -> 0 | F82: 0 | G82: 7 | H82: 8 | I82: 2 | J82: 7 | K82: 1 | L82: 0 | M82: =IF(AND(M$7-1<$Z80,M$7-1>=$AA80),0,M80) -> 0 | N82: =IF(AND(N$7-1<$Z80,N$7-1>=$AA80),0,N80) -> 1 | O82: =IF(AND(O$7-1<$Z80,O$7-1>=$AA80),0,O80) -> 1 | P82: =IF(AND(P$7-1<$Z80,P$7-1>=$AA80),0,P80) -> 4 | Q82: =IF(Q81=FALSE,"",Q80) -> 0 | R82: 0 | S82: 1 | W82: =SUM(Q83:V83) -> 1000
B83: =IF(C82>1,CONCATENATE(HLOOKUP(C83,$Q$7:$V$9,3,TRUE),"s"),HLOOKUP(C83,$Q$7:$V$9,3,TRUE)) -> millième | C83: =W82 -> 1000 | Q83: =IF(AND(R82="",Q82<>""),Q$7,0) -> 0 | R83: =IF(AND(S82="",R82<>""),R$7,0) -> 0 | S83: =IF(AND(T82="",S82<>""),S$7,0) -> 1000 | T83: =IF(AND(U82="",T82<>""),T$7,0) -> 0 | U83: =IF(AND(V82="",U82<>""),U$7,0) -> 0 | V83: =IF(AND(W83="",V82<>""),V$7,0) -> 0
B84: =IF($C$8="virgule",CONCATENATE(B81," virgule ",B82),CONCATENATE(B81," et ",B82," ",B83)) -> sept milliards huit cent vingt-sept millions cent mille cent quatorze virgule un
E85: =IF(X85>100000000000,INT(RIGHT($X85,12)/100000000000),0) -> 5 | F85: =IF(X85>10000000000,INT(RIGHT($X85,11)/10000000000),0) -> 4 | G85: =IF(X85>1000000000,INT(RIGHT($X85,10)/1000000000),0) -> 0 | H85: =IF(X85>100000000,INT(RIGHT($X85,9)/100000000),0) -> 9 | I85: =IF(X85>10000000,INT(RIGHT($X85,8)/10000000),0) -> 8 | J85: =IF(X85>1000000,INT(RIGHT($X85,7)/1000000),0) -> 4 | K85: =IF(X85>100000,INT(RIGHT($X85,6)/100000),0) -> 6 | L85: =IF(X85>10000,INT(RIGHT($X85,5)/10000),0) -> 3 | M85: =IF(X85>1000,INT(RIGHT($X85,4)/1000),0) -> 3 | N85: =IF(X85>100,INT(RIGHT($X85,3)/100),0) -> 3 | O85: =IF(X85>10,INT(RIGHT($X85,2)/10),0) -> 6 | P85: =INT(RIGHT($X85,1)/1) -> 1 | Q85: =INT(RIGHT($AC85,1)) -> 4 | R85: =INT(RIGHT($AC85,2)/10) -> 6 | S85: =INT(RIGHT($AC85,3)/100) -> 0 | T85: =INT(RIGHT($AC85,4)/1000) -> 0 | U85: =INT(RIGHT($AC85,5)/10000) -> 0 | V85: =INT(RIGHT($AC85,6)/100000) -> 0 | W85: =((Q85*100000)+(R85*10000)+(S85*1000)+(T85*100)+(U85*10)+V85) -> 460000 | X85: =C$3+INT(RAND()*(C$4-C$3+1)) -> 540984633361 | Y85: =LEN(X85) -> 12 | Z85: =INT(RAND()*(Y85-C$5))+C$5 -> 7 | AA85: =Z85-C$5 -> 5 | AC85: =INT(RAND()*(POWER(10,$C$7))+1) -> 64 | AD85: =LEN(AC85) -> 2 | AE85: =INT(RAND()*(AD85-H$5))+H$5 -> 0 | AF85: =AE85-H$5 -> 0 | AG85: =(Q85*10^Q$6)+(R85*10^R$6)+(S85*10^S$6)+(T85*10^T$6)+(U85*10^U$6)+(V85*10^V$6) -> 0.46
A86: 16 | B86: =convnumberletter(C86) -> cinq cent quarante milliards neuf cents millions six cent trente-trois mille trois cent soixante et un | C86: =(E87*10^E$7)+(F87*10^F$7)+(G87*10^G$7)+(H87*10^H$7)+(I87*10^I$7)+(J87*10^J$7)+(K87*10^K$7)+(L87*10^L$7)+(M87*10^M$7)+(N87*10^N$7)+(O87*10^O$7)+(P87*10^P$7) -> 540900633361 | E86: =IF(Z85=12,TRUE,FALSE) -> FALSE | F86: =IF(Z85=11,TRUE,FALSE) -> FALSE | G86: =IF(Z85=10,TRUE,FALSE) -> FALSE | H86: =IF(Z85=9,TRUE,FALSE) -> FALSE | I86: =IF(Z85=8,TRUE,FALSE) -> FALSE | J86: =IF(Z85=7,TRUE,FALSE) -> TRUE | K86: =IF(Z85=6,TRUE,FALSE) -> FALSE | L86: =IF(Z85=5,TRUE,FALSE) -> FALSE | M86: =IF(Z85=4,TRUE,FALSE) -> FALSE | N86: =IF(Z85=3,TRUE,FALSE) -> FALSE | O86: =IF(Z85=2,TRUE,FALSE) -> FALSE | P86: =IF(Z85=1,TRUE,FALSE) -> FALSE | Q86: =IF(AND(Q85=0,R86=FALSE),FALSE,TRUE) -> TRUE | R86: =IF(AND(R85=0,S86=FALSE),FALSE,TRUE) -> TRUE | S86: =IF(AND(S85=0,T86=FALSE),FALSE,TRUE) -> FALSE | T86: =IF(AND(T85=0,U86=FALSE),FALSE,TRUE) -> FALSE | U86: =IF(AND(U85=0,V86=FALSE),FALSE,TRUE) -> FALSE | V86: =IF(V85=0,FALSE,TRUE) -> FALSE | W86: =W85/(1000000/W87) -> 46
B87: =convnumberletter(C87) -> quarante-six | C87: =W86 -> 46 | E87: =IF(AND(E$7-1<$Z85,E$7-1>=$AA85),0,E85) -> 5 | F87: 4 | G87: 0 | H87: 9 | I87: 0 | J87: 0 | K87: 6 | L87: 3 | M87: =IF(AND(M$7-1<$Z85,M$7-1>=$AA85),0,M85) -> 3 | N87: =IF(AND(N$7-1<$Z85,N$7-1>=$AA85),0,N85) -> 3 | O87: =IF(AND(O$7-1<$Z85,O$7-1>=$AA85),0,O85) -> 6 | P87: =IF(AND(P$7-1<$Z85,P$7-1>=$AA85),0,P85) -> 1 | Q87: =IF(Q86=FALSE,"",Q85) -> 4 | R87: 6 | W87: =SUM(Q88:V88) -> 100
B88: =IF(C87>1,CONCATENATE(HLOOKUP(C88,$Q$7:$V$9,3,TRUE),"s"),HLOOKUP(C88,$Q$7:$V$9,3,TRUE)) -> centièmes | C88: =W87 -> 100 | Q88: =IF(AND(R87="",Q87<>""),Q$7,0) -> 0 | R88: =IF(AND(S87="",R87<>""),R$7,0) -> 100 | S88: =IF(AND(T87="",S87<>""),S$7,0) -> 0 | T88: =IF(AND(U87="",T87<>""),T$7,0) -> 0 | U88: =IF(AND(V87="",U87<>""),U$7,0) -> 0 | V88: =IF(AND(W88="",V87<>""),V$7,0) -> 0
B89: =IF($C$8="virgule",CONCATENATE(B86," virgule ",B87),CONCATENATE(B86," et ",B87," ",B88)) -> cinq cent quarante milliards neuf cents millions six cent trente-trois mille trois cent soixante et un virgule quarante-six
E90: =IF(X90>100000000000,INT(RIGHT($X90,12)/100000000000),0) -> 6 | F90: =IF(X90>10000000000,INT(RIGHT($X90,11)/10000000000),0) -> 5 | G90: =IF(X90>1000000000,INT(RIGHT($X90,10)/1000000000),0) -> 2 | H90: =IF(X90>100000000,INT(RIGHT($X90,9)/100000000),0) -> 5 | I90: =IF(X90>10000000,INT(RIGHT($X90,8)/10000000),0) -> 4 | J90: =IF(X90>1000000,INT(RIGHT($X90,7)/1000000),0) -> 9 | K90: =IF(X90>100000,INT(RIGHT($X90,6)/100000),0) -> 8 | L90: =IF(X90>10000,INT(RIGHT($X90,5)/10000),0) -> 6 | M90: =IF(X90>1000,INT(RIGHT($X90,4)/1000),0) -> 0 | N90: =IF(X90>100,INT(RIGHT($X90,3)/100),0) -> 4 | O90: =IF(X90>10,INT(RIGHT($X90,2)/10),0) -> 4 | P90: =INT(RIGHT($X90,1)/1) -> 6 | Q90: =INT(RIGHT($AC90,1)) -> 1 | R90: =INT(RIGHT($AC90,2)/10) -> 3 | S90: =INT(RIGHT($AC90,3)/100) -> 0 | T90: =INT(RIGHT($AC90,4)/1000) -> 0 | U90: =INT(RIGHT($AC90,5)/10000) -> 0 | V90: =INT(RIGHT($AC90,6)/100000) -> 0 | W90: =((Q90*100000)+(R90*10000)+(S90*1000)+(T90*100)+(U90*10)+V90) -> 130000 | X90: =C$3+INT(RAND()*(C$4-C$3+1)) -> 652549860446 | Y90: =LEN(X90) -> 12 | Z90: =INT(RAND()*(Y90-C$5))+C$5 -> 7 | AA90: =Z90-C$5 -> 5 | AC90: =INT(RAND()*(POWER(10,$C$7))+1) -> 31 | AD90: =LEN(AC90) -> 2 | AE90: =INT(RAND()*(AD90-H$5))+H$5 -> 0 | AF90: =AE90-H$5 -> 0 | AG90: =(Q90*10^Q$6)+(R90*10^R$6)+(S90*10^S$6)+(T90*10^T$6)+(U90*10^U$6)+(V90*10^V$6) -> 0.13
A91: 17 | B91: =convnumberletter(C91) -> six cent cinquante-deux milliards cinq cents millions huit cent soixante mille quatre cent quarante-six | C91: =(E92*10^E$7)+(F92*10^F$7)+(G92*10^G$7)+(H92*10^H$7)+(I92*10^I$7)+(J92*10^J$7)+(K92*10^K$7)+(L92*10^L$7)+(M92*10^M$7)+(N92*10^N$7)+(O92*10^O$7)+(P92*10^P$7) -> 652500860446 | E91: =IF(Z90=12,TRUE,FALSE) -> FALSE | F91: =IF(Z90=11,TRUE,FALSE) -> FALSE | G91: =IF(Z90=10,TRUE,FALSE) -> FALSE | H91: =IF(Z90=9,TRUE,FALSE) -> FALSE | I91: =IF(Z90=8,TRUE,FALSE) -> FALSE | J91: =IF(Z90=7,TRUE,FALSE) -> TRUE | K91: =IF(Z90=6,TRUE,FALSE) -> FALSE | L91: =IF(Z90=5,TRUE,FALSE) -> FALSE | M91: =IF(Z90=4,TRUE,FALSE) -> FALSE | N91: =IF(Z90=3,TRUE,FALSE) -> FALSE | O91: =IF(Z90=2,TRUE,FALSE) -> FALSE | P91: =IF(Z90=1,TRUE,FALSE) -> FALSE | Q91: =IF(AND(Q90=0,R91=FALSE),FALSE,TRUE) -> TRUE | R91: =IF(AND(R90=0,S91=FALSE),FALSE,TRUE) -> TRUE | S91: =IF(AND(S90=0,T91=FALSE),FALSE,TRUE) -> FALSE | T91: =IF(AND(T90=0,U91=FALSE),FALSE,TRUE) -> FALSE | U91: =IF(AND(U90=0,V91=FALSE),FALSE,TRUE) -> FALSE | V91: =IF(V90=0,FALSE,TRUE) -> FALSE | W91: =W90/(1000000/W92) -> 13
B92: =convnumberletter(C92) -> treize | C92: =W91 -> 13 | E92: =IF(AND(E$7-1<$Z90,E$7-1>=$AA90),0,E90) -> 6 | F92: 5 | G92: 2 | H92: 5 | I92: 0 | J92: 0 | K92: 8 | L92: 6 | M92: =IF(AND(M$7-1<$Z90,M$7-1>=$AA90),0,M90) -> 0 | N92: =IF(AND(N$7-1<$Z90,N$7-1>=$AA90),0,N90) -> 4 | O92: =IF(AND(O$7-1<$Z90,O$7-1>=$AA90),0,O90) -> 4 | P92: =IF(AND(P$7-1<$Z90,P$7-1>=$AA90),0,P90) -> 6 | Q92: =IF(Q91=FALSE,"",Q90) -> 1 | R92: 3 | W92: =SUM(Q93:V93) -> 100
B93: =IF(C92>1,CONCATENATE(HLOOKUP(C93,$Q$7:$V$9,3,TRUE),"s"),HLOOKUP(C93,$Q$7:$V$9,3,TRUE)) -> centièmes | C93: =W92 -> 100 | Q93: =IF(AND(R92="",Q92<>""),Q$7,0) -> 0 | R93: =IF(AND(S92="",R92<>""),R$7,0) -> 100 | S93: =IF(AND(T92="",S92<>""),S$7,0) -> 0 | T93: =IF(AND(U92="",T92<>""),T$7,0) -> 0 | U93: =IF(AND(V92="",U92<>""),U$7,0) -> 0 | V93: =IF(AND(W93="",V92<>""),V$7,0) -> 0
B94: =IF($C$8="virgule",CONCATENATE(B91," virgule ",B92),CONCATENATE(B91," et ",B92," ",B93)) -> six cent cinquante-deux milliards cinq cents millions huit cent soixante mille quatre cent quarante-six virgule treize
E95: =IF(X95>100000000000,INT(RIGHT($X95,12)/100000000000),0) -> 6 | F95: =IF(X95>10000000000,INT(RIGHT($X95,11)/10000000000),0) -> 9 | G95: =IF(X95>1000000000,INT(RIGHT($X95,10)/1000000000),0) -> 9 | H95: =IF(X95>100000000,INT(RIGHT($X95,9)/100000000),0) -> 7 | I95: =IF(X95>10000000,INT(RIGHT($X95,8)/10000000),0) -> 1 | J95: =IF(X95>1000000,INT(RIGHT($X95,7)/1000000),0) -> 4 | K95: =IF(X95>100000,INT(RIGHT($X95,6)/100000),0) -> 9 | L95: =IF(X95>10000,INT(RIGHT($X95,5)/10000),0) -> 5 | M95: =IF(X95>1000,INT(RIGHT($X95,4)/1000),0) -> 5 | N95: =IF(X95>100,INT(RIGHT($X95,3)/100),0) -> 1 | O95: =IF(X95>10,INT(RIGHT($X95,2)/10),0) -> 9 | P95: =INT(RIGHT($X95,1)/1) -> 2 | Q95: =INT(RIGHT($AC95,1)) -> 1 | R95: =INT(RIGHT($AC95,2)/10) -> 2 | S95: =INT(RIGHT($AC95,3)/100) -> 0 | T95: =INT(RIGHT($AC95,4)/1000) -> 0 | U95: =INT(RIGHT($AC95,5)/10000) -> 0 | V95: =INT(RIGHT($AC95,6)/100000) -> 0 | W95: =((Q95*100000)+(R95*10000)+(S95*1000)+(T95*100)+(U95*10)+V95) -> 120000 | X95: =C$3+INT(RAND()*(C$4-C$3+1)) -> 699714955192 | Y95: =LEN(X95) -> 12 | Z95: =INT(RAND()*(Y95-C$5))+C$5 -> 2 | AA95: =Z95-C$5 -> 0 | AC95: =INT(RAND()*(POWER(10,$C$7))+1) -> 21 | AD95: =LEN(AC95) -> 2 | AE95: =INT(RAND()*(AD95-H$5))+H$5 -> 1 | AF95: =AE95-H$5 -> 1 | AG95: =(Q95*10^Q$6)+(R95*10^R$6)+(S95*10^S$6)+(T95*10^T$6)+(U95*10^U$6)+(V95*10^V$6) -> 0.12
A96: 18 | B96: =convnumberletter(C96) -> six cent quatre-vingt-dix-neuf milliards sept cent quatorze millions neuf cent cinquante-cinq mille deux | C96: =(E97*10^E$7)+(F97*10^F$7)+(G97*10^G$7)+(H97*10^H$7)+(I97*10^I$7)+(J97*10^J$7)+(K97*10^K$7)+(L97*10^L$7)+(M97*10^M$7)+(N97*10^N$7)+(O97*10^O$7)+(P97*10^P$7) -> 699714955002 | E96: =IF(Z95=12,TRUE,FALSE) -> FALSE | F96: =IF(Z95=11,TRUE,FALSE) -> FALSE | G96: =IF(Z95=10,TRUE,FALSE) -> FALSE | H96: =IF(Z95=9,TRUE,FALSE) -> FALSE | I96: =IF(Z95=8,TRUE,FALSE) -> FALSE | J96: =IF(Z95=7,TRUE,FALSE) -> FALSE | K96: =IF(Z95=6,TRUE,FALSE) -> FALSE | L96: =IF(Z95=5,TRUE,FALSE) -> FALSE | M96: =IF(Z95=4,TRUE,FALSE) -> FALSE | N96: =IF(Z95=3,TRUE,FALSE) -> FALSE | O96: =IF(Z95=2,TRUE,FALSE) -> TRUE | P96: =IF(Z95=1,TRUE,FALSE) -> FALSE | Q96: =IF(AND(Q95=0,R96=FALSE),FALSE,TRUE) -> TRUE | R96: =IF(AND(R95=0,S96=FALSE),FALSE,TRUE) -> TRUE | S96: =IF(AND(S95=0,T96=FALSE),FALSE,TRUE) -> FALSE | T96: =IF(AND(T95=0,U96=FALSE),FALSE,TRUE) -> FALSE | U96: =IF(AND(U95=0,V96=FALSE),FALSE,TRUE) -> FALSE | V96: =IF(V95=0,FALSE,TRUE) -> FALSE | W96: =W95/(1000000/W97) -> 12
B97: =convnumberletter(C97) -> douze | C97: =W96 -> 12 | E97: =IF(AND(E$7-1<$Z95,E$7-1>=$AA95),0,E95) -> 6 | F97: 9 | G97: 9 | H97: 7 | I97: 1 | J97: 4 | K97: 9 | L97: 5 | M97: =IF(AND(M$7-1<$Z95,M$7-1>=$AA95),0,M95) -> 5 | N97: =IF(AND(N$7-1<$Z95,N$7-1>=$AA95),0,N95) -> 0 | O97: =IF(AND(O$7-1<$Z95,O$7-1>=$AA95),0,O95) -> 0 | P97: =IF(AND(P$7-1<$Z95,P$7-1>=$AA95),0,P95) -> 2 | Q97: =IF(Q96=FALSE,"",Q95) -> 1 | R97: 2 | W97: =SUM(Q98:V98) -> 100
B98: =IF(C97>1,CONCATENATE(HLOOKUP(C98,$Q$7:$V$9,3,TRUE),"s"),HLOOKUP(C98,$Q$7:$V$9,3,TRUE)) -> centièmes | C98: =W97 -> 100 | Q98: =IF(AND(R97="",Q97<>""),Q$7,0) -> 0 | R98: =IF(AND(S97="",R97<>""),R$7,0) -> 100 | S98: =IF(AND(T97="",S97<>""),S$7,0) -> 0 | T98: =IF(AND(U97="",T97<>""),T$7,0) -> 0 | U98: =IF(AND(V97="",U97<>""),U$7,0) -> 0 | V98: =IF(AND(W98="",V97<>""),V$7,0) -> 0
B99: =IF($C$8="virgule",CONCATENATE(B96," virgule ",B97),CONCATENATE(B96," et ",B97," ",B98)) -> six cent quatre-vingt-dix-neuf milliards sept cent quatorze millions neuf cent cinquante-cinq mille deux virgule douze
E100: =IF(X100>100000000000,INT(RIGHT($X100,12)/100000000000),0) -> 7 | F100: =IF(X100>10000000000,INT(RIGHT($X100,11)/10000000000),0) -> 8 | G100: =IF(X100>1000000000,INT(RIGHT($X100,10)/1000000000),0) -> 6 | H100: =IF(X100>100000000,INT(RIGHT($X100,9)/100000000),0) -> 9 | I100: =IF(X100>10000000,INT(RIGHT($X100,8)/10000000),0) -> 4 | J100: =IF(X100>1000000,INT(RIGHT($X100,7)/1000000),0) -> 7 | K100: =IF(X100>100000,INT(RIGHT($X100,6)/100000),0) -> 6 | L100: =IF(X100>10000,INT(RIGHT($X100,5)/10000),0) -> 3 | M100: =IF(X100>1000,INT(RIGHT($X100,4)/1000),0) -> 4 | N100: =IF(X100>100,INT(RIGHT($X100,3)/100),0) -> 9 | O100: =IF(X100>10,INT(RIGHT($X100,2)/10),0) -> 0 | P100: =INT(RIGHT($X100,1)/1) -> 1 | Q100: =INT(RIGHT($AC100,1)) -> 9 | R100: =INT(RIGHT($AC100,2)/10) -> 9 | S100: =INT(RIGHT($AC100,3)/100) -> 0 | T100: =INT(RIGHT($AC100,4)/1000) -> 0 | U100: =INT(RIGHT($AC100,5)/10000) -> 0 | V100: =INT(RIGHT($AC100,6)/100000) -> 0 | W100: =((Q100*100000)+(R100*10000)+(S100*1000)+(T100*100)+(U100*10)+V100) -> 990000 | X100: =C$3+INT(RAND()*(C$4-C$3+1)) -> 786947634901 | Y100: =LEN(X100) -> 12 | Z100: =INT(RAND()*(Y100-C$5))+C$5 -> 7 | AA100: =Z100-C$5 -> 5 | AC100: =INT(RAND()*(POWER(10,$C$7))+1) -> 99 | AD100: =LEN(AC100) -> 2 | AE100: =INT(RAND()*(AD100-H$5))+H$5 -> 1 | AF100: =AE100-H$5 -> 1 | AG100: =(Q100*10^Q$6)+(R100*10^R$6)+(S100*10^S$6)+(T100*10^T$6)+(U100*10^U$6)+(V100*10^V$6) -> 0.99
A101: 19 | B101: =convnumberletter(C101) -> sept cent quatre-vingt-six milliards neuf cents millions six cent trente-quatre mille neuf cent un | C101: =(E102*10^E$7)+(F102*10^F$7)+(G102*10^G$7)+(H102*10^H$7)+(I102*10^I$7)+(J102*10^J$7)+(K102*10^K$7)+(L102*10^L$7)+(M102*10^M$7)+(N102*10^N$7)+(O102*10^O$7)+(P102*10^P$7) -> 786900634901 | E101: =IF(Z100=12,TRUE,FALSE) -> FALSE | F101: =IF(Z100=11,TRUE,FALSE) -> FALSE | G101: =IF(Z100=10,TRUE,FALSE) -> FALSE | H101: =IF(Z100=9,TRUE,FALSE) -> FALSE | I101: =IF(Z100=8,TRUE,FALSE) -> FALSE | J101: =IF(Z100=7,TRUE,FALSE) -> TRUE | K101: =IF(Z100=6,TRUE,FALSE) -> FALSE | L101: =IF(Z100=5,TRUE,FALSE) -> FALSE | M101: =IF(Z100=4,TRUE,FALSE) -> FALSE | N101: =IF(Z100=3,TRUE,FALSE) -> FALSE | O101: =IF(Z100=2,TRUE,FALSE) -> FALSE | P101: =IF(Z100=1,TRUE,FALSE) -> FALSE | Q101: =IF(AND(Q100=0,R101=FALSE),FALSE,TRUE) -> TRUE | R101: =IF(AND(R100=0,S101=FALSE),FALSE,TRUE) -> TRUE | S101: =IF(AND(S100=0,T101=FALSE),FALSE,TRUE) -> FALSE | T101: =IF(AND(T100=0,U101=FALSE),FALSE,TRUE) -> FALSE | U101: =IF(AND(U100=0,V101=FALSE),FALSE,TRUE) -> FALSE | V101: =IF(V100=0,FALSE,TRUE) -> FALSE | W101: =W100/(1000000/W102) -> 99
B102: =convnumberletter(C102) -> quatre-vingt-dix-neuf | C102: =W101 -> 99 | E102: =IF(AND(E$7-1<$Z100,E$7-1>=$AA100),0,E100) -> 7 | F102: 8 | G102: 6 | H102: 9 | I102: 0 | J102: 0 | K102: 6 | L102: 3 | M102: =IF(AND(M$7-1<$Z100,M$7-1>=$AA100),0,M100) -> 4 | N102: =IF(AND(N$7-1<$Z100,N$7-1>=$AA100),0,N100) -> 9 | O102: =IF(AND(O$7-1<$Z100,O$7-1>=$AA100),0,O100) -> 0 | P102: =IF(AND(P$7-1<$Z100,P$7-1>=$AA100),0,P100) -> 1 | Q102: =IF(Q101=FALSE,"",Q100) -> 9 | R102: 9 | W102: =SUM(Q103:V103) -> 100
B103: =IF(C102>1,CONCATENATE(HLOOKUP(C103,$Q$7:$V$9,3,TRUE),"s"),HLOOKUP(C103,$Q$7:$V$9,3,TRUE)) -> centièmes | C103: =W102 -> 100 | Q103: =IF(AND(R102="",Q102<>""),Q$7,0) -> 0 | R103: =IF(AND(S102="",R102<>""),R$7,0) -> 100 | S103: =IF(AND(T102="",S102<>""),S$7,0) -> 0 | T103: =IF(AND(U102="",T102<>""),T$7,0) -> 0 | U103: =IF(AND(V102="",U102<>""),U$7,0) -> 0 | V103: =IF(AND(W103="",V102<>""),V$7,0) -> 0
B104: =IF($C$8="virgule",CONCATENATE(B101," virgule ",B102),CONCATENATE(B101," et ",B102," ",B103)) -> sept cent quatre-vingt-six milliards neuf cents millions six cent trente-quatre mille neuf cent un virgule quatre-vingt-dix-neuf
E105: =IF(X105>100000000000,INT(RIGHT($X105,12)/100000000000),0) -> 6 | F105: =IF(X105>10000000000,INT(RIGHT($X105,11)/10000000000),0) -> 1 | G105: =IF(X105>1000000000,INT(RIGHT($X105,10)/1000000000),0) -> 7 | H105: =IF(X105>100000000,INT(RIGHT($X105,9)/100000000),0) -> 4 | I105: =IF(X105>10000000,INT(RIGHT($X105,8)/10000000),0) -> 3 | J105: =IF(X105>1000000,INT(RIGHT($X105,7)/1000000),0) -> 4 | K105: =IF(X105>100000,INT(RIGHT($X105,6)/100000),0) -> 5 | L105: =IF(X105>10000,INT(RIGHT($X105,5)/10000),0) -> 8 | M105: =IF(X105>1000,INT(RIGHT($X105,4)/1000),0) -> 7 | N105: =IF(X105>100,INT(RIGHT($X105,3)/100),0) -> 6 | O105: =IF(X105>10,INT(RIGHT($X105,2)/10),0) -> 1 | P105: =INT(RIGHT($X105,1)/1) -> 1 | Q105: =INT(RIGHT($AC105,1)) -> 4 | R105: =INT(RIGHT($AC105,2)/10) -> 5 | S105: =INT(RIGHT($AC105,3)/100) -> 0 | T105: =INT(RIGHT($AC105,4)/1000) -> 0 | U105: =INT(RIGHT($AC105,5)/10000) -> 0 | V105: =INT(RIGHT($AC105,6)/100000) -> 0 | W105: =((Q105*100000)+(R105*10000)+(S105*1000)+(T105*100)+(U105*10)+V105) -> 450000 | X105: =C$3+INT(RAND()*(C$4-C$3+1)) -> 617434587611 | Y105: =LEN(X105) -> 12 | Z105: =INT(RAND()*(Y105-C$5))+C$5 -> 7 | AA105: =Z105-C$5 -> 5 | AC105: =INT(RAND()*(POWER(10,$C$7))+1) -> 54 | AD105: =LEN(AC105) -> 2 | AE105: =INT(RAND()*(AD105-H$5))+H$5 -> 0 | AF105: =AE105-H$5 -> 0 | AG105: =(Q105*10^Q$6)+(R105*10^R$6)+(S105*10^S$6)+(T105*10^T$6)+(U105*10^U$6)+(V105*10^V$6) -> 0.45
A106: 20 | B106: =convnumberletter(C106) -> six cent dix-sept milliards quatre cents millions cinq cent quatre-vingt-sept mille six cent onze | C106: =(E107*10^E$7)+(F107*10^F$7)+(G107*10^G$7)+(H107*10^H$7)+(I107*10^I$7)+(J107*10^J$7)+(K107*10^K$7)+(L107*10^L$7)+(M107*10^M$7)+(N107*10^N$7)+(O107*10^O$7)+(P107*10^P$7) -> 617400587611 | E106: =IF(Z105=12,TRUE,FALSE) -> FALSE | F106: =IF(Z105=11,TRUE,FALSE) -> FALSE | G106: =IF(Z105=10,TRUE,FALSE) -> FALSE | H106: =IF(Z105=9,TRUE,FALSE) -> FALSE | I106: =IF(Z105=8,TRUE,FALSE) -> FALSE | J106: =IF(Z105=7,TRUE,FALSE) -> TRUE | K106: =IF(Z105=6,TRUE,FALSE) -> FALSE | L106: =IF(Z105=5,TRUE,FALSE) -> FALSE | M106: =IF(Z105=4,TRUE,FALSE) -> FALSE | N106: =IF(Z105=3,TRUE,FALSE) -> FALSE | O106: =IF(Z105=2,TRUE,FALSE) -> FALSE | P106: =IF(Z105=1,TRUE,FALSE) -> FALSE | Q106: =IF(AND(Q105=0,R106=FALSE),FALSE,TRUE) -> TRUE | R106: =IF(AND(R105=0,S106=FALSE),FALSE,TRUE) -> TRUE | S106: =IF(AND(S105=0,T106=FALSE),FALSE,TRUE) -> FALSE | T106: =IF(AND(T105=0,U106=FALSE),FALSE,TRUE) -> FALSE | U106: =IF(AND(U105=0,V106=FALSE),FALSE,TRUE) -> FALSE | V106: =IF(V105=0,FALSE,TRUE) -> FALSE | W106: =W105/(1000000/W107) -> 45
B107: =convnumberletter(C107) -> quarante-cinq | C107: =W106 -> 45 | E107: =IF(AND(E$7-1<$Z105,E$7-1>=$AA105),0,E105) -> 6 | F107: 1 | G107: 7 | H107: 4 | I107: 0 | J107: 0 | K107: 5 | L107: 8 | M107: =IF(AND(M$7-1<$Z105,M$7-1>=$AA105),0,M105) -> 7 | N107: =IF(AND(N$7-1<$Z105,N$7-1>=$AA105),0,N105) -> 6 | O107: =IF(AND(O$7-1<$Z105,O$7-1>=$AA105),0,O105) -> 1 | P107: =IF(AND(P$7-1<$Z105,P$7-1>=$AA105),0,P105) -> 1 | Q107: =IF(Q106=FALSE,"",Q105) -> 4 | R107: 5 | W107: =SUM(Q108:V108) -> 100
B108: =IF(C107>1,CONCATENATE(HLOOKUP(C108,$Q$7:$V$9,3,TRUE),"s"),HLOOKUP(C108,$Q$7:$V$9,3,TRUE)) -> centièmes | C108: =W107 -> 100 | Q108: =IF(AND(R107="",Q107<>""),Q$7,0) -> 0 | R108: =IF(AND(S107="",R107<>""),R$7,0) -> 100 | S108: =IF(AND(T107="",S107<>""),S$7,0) -> 0 | T108: =IF(AND(U107="",T107<>""),T$7,0) -> 0 | U108: =IF(AND(V107="",U107<>""),U$7,0) -> 0 | V108: =IF(AND(W108="",V107<>""),V$7,0) -> 0
B109: =IF($C$8="virgule",CONCATENATE(B106," virgule ",B107),CONCATENATE(B106," et ",B107," ",B108)) -> six cent dix-sept milliards quatre cents millions cinq cent quatre-vingt-sept mille six cent onze virgule quarante-cinq
E110: =IF(X110>100000000000,INT(RIGHT($X110,12)/100000000000),0) -> 9 | F110: =IF(X110>10000000000,INT(RIGHT($X110,11)/10000000000),0) -> 0 | G110: =IF(X110>1000000000,INT(RIGHT($X110,10)/1000000000),0) -> 8 | H110: =IF(X110>100000000,INT(RIGHT($X110,9)/100000000),0) -> 5 | I110: =IF(X110>10000000,INT(RIGHT($X110,8)/10000000),0) -> 2 | J110: =IF(X110>1000000,INT(RIGHT($X110,7)/1000000),0) -> 0 | K110: =IF(X110>100000,INT(RIGHT($X110,6)/100000),0) -> 3 | L110: =IF(X110>10000,INT(RIGHT($X110,5)/10000),0) -> 5 | M110: =IF(X110>1000,INT(RIGHT($X110,4)/1000),0) -> 5 | N110: =IF(X110>100,INT(RIGHT($X110,3)/100),0) -> 1 | O110: =IF(X110>10,INT(RIGHT($X110,2)/10),0) -> 0 | P110: =INT(RIGHT($X110,1)/1) -> 3 | Q110: =INT(RIGHT($AC110,1)) -> 1 | R110: =INT(RIGHT($AC110,2)/10) -> 1 | S110: =INT(RIGHT($AC110,3)/100) -> 0 | T110: =INT(RIGHT($AC110,4)/1000) -> 0 | U110: =INT(RIGHT($AC110,5)/10000) -> 0 | V110: =INT(RIGHT($AC110,6)/100000) -> 0 | W110: =((Q110*100000)+(R110*10000)+(S110*1000)+(T110*100)+(U110*10)+V110) -> 110000 | X110: =C$3+INT(RAND()*(C$4-C$3+1)) -> 908520355103 | Y110: =LEN(X110) -> 12 | Z110: =INT(RAND()*(Y110-C$5))+C$5 -> 8 | AA110: =Z110-C$5 -> 6 | AC110: =INT(RAND()*(POWER(10,$C$7))+1) -> 11 | AD110: =LEN(AC110) -> 2 | AE110: =INT(RAND()*(AD110-H$5))+H$5 -> 1 | AF110: =AE110-H$5 -> 1 | AG110: =(Q110*10^Q$6)+(R110*10^R$6)+(S110*10^S$6)+(T110*10^T$6)+(U110*10^U$6)+(V110*10^V$6) -> 0.11
A111: 21 | B111: =convnumberletter(C111) -> neuf cent huit milliards trois cent cinquante-cinq mille cent trois | C111: =(E112*10^E$7)+(F112*10^F$7)+(G112*10^G$7)+(H112*10^H$7)+(I112*10^I$7)+(J112*10^J$7)+(K112*10^K$7)+(L112*10^L$7)+(M112*10^M$7)+(N112*10^N$7)+(O112*10^O$7)+(P112*10^P$7) -> 908000355103 | E111: =IF(Z110=12,TRUE,FALSE) -> FALSE | F111: =IF(Z110=11,TRUE,FALSE) -> FALSE | G111: =IF(Z110=10,TRUE,FALSE) -> FALSE | H111: =IF(Z110=9,TRUE,FALSE) -> FALSE | I111: =IF(Z110=8,TRUE,FALSE) -> TRUE | J111: =IF(Z110=7,TRUE,FALSE) -> FALSE | K111: =IF(Z110=6,TRUE,FALSE) -> FALSE | L111: =IF(Z110=5,TRUE,FALSE) -> FALSE | M111: =IF(Z110=4,TRUE,FALSE) -> FALSE | N111: =IF(Z110=3,TRUE,FALSE) -> FALSE | O111: =IF(Z110=2,TRUE,FALSE) -> FALSE | P111: =IF(Z110=1,TRUE,FALSE) -> FALSE | Q111: =IF(AND(Q110=0,R111=FALSE),FALSE,TRUE) -> TRUE | R111: =IF(AND(R110=0,S111=FALSE),FALSE,TRUE) -> TRUE | S111: =IF(AND(S110=0,T111=FALSE),FALSE,TRUE) -> FALSE | T111: =IF(AND(T110=0,U111=FALSE),FALSE,TRUE) -> FALSE | U111: =IF(AND(U110=0,V111=FALSE),FALSE,TRUE) -> FALSE | V111: =IF(V110=0,FALSE,TRUE) -> FALSE | W111: =W110/(1000000/W112) -> 11
B112: =convnumberletter(C112) -> onze | C112: =W111 -> 11 | E112: =IF(AND(E$7-1<$Z110,E$7-1>=$AA110),0,E110) -> 9 | F112: 0 | G112: 8 | H112: 0 | I112: 0 | J112: 0 | K112: 3 | L112: 5 | M112: =IF(AND(M$7-1<$Z110,M$7-1>=$AA110),0,M110) -> 5 | N112: =IF(AND(N$7-1<$Z110,N$7-1>=$AA110),0,N110) -> 1 | O112: =IF(AND(O$7-1<$Z110,O$7-1>=$AA110),0,O110) -> 0 | P112: =IF(AND(P$7-1<$Z110,P$7-1>=$AA110),0,P110) -> 3 | Q112: =IF(Q111=FALSE,"",Q110) -> 1 | R112: 1 | W112: =SUM(Q113:V113) -> 100
B113: =IF(C112>1,CONCATENATE(HLOOKUP(C113,$Q$7:$V$9,3,TRUE),"s"),HLOOKUP(C113,$Q$7:$V$9,3,TRUE)) -> centièmes | C113: =W112 -> 100 | Q113: =IF(AND(R112="",Q112<>""),Q$7,0) -> 0 | R113: =IF(AND(S112="",R112<>""),R$7,0) -> 100 | S113: =IF(AND(T112="",S112<>""),S$7,0) -> 0 | T113: =IF(AND(U112="",T112<>""),T$7,0) -> 0 | U113: =IF(AND(V112="",U112<>""),U$7,0) -> 0 | V113: =IF(AND(W113="",V112<>""),V$7,0) -> 0
B114: =IF($C$8="virgule",CONCATENATE(B111," virgule ",B112),CONCATENATE(B111," et ",B112," ",B113)) -> neuf cent huit milliards trois cent cinquante-cinq mille cent trois virgule onze
E115: =IF(X115>100000000000,INT(RIGHT($X115,12)/100000000000),0) -> 0 | F115: =IF(X115>10000000000,INT(RIGHT($X115,11)/10000000000),0) -> 0 | G115: =IF(X115>1000000000,INT(RIGHT($X115,10)/1000000000),0) -> 8 | H115: =IF(X115>100000000,INT(RIGHT($X115,9)/100000000),0) -> 3 | I115: =IF(X115>10000000,INT(RIGHT($X115,8)/10000000),0) -> 1 | J115: =IF(X115>1000000,INT(RIGHT($X115,7)/1000000),0) -> 3 | K115: =IF(X115>100000,INT(RIGHT($X115,6)/100000),0) -> 1 | L115: =IF(X115>10000,INT(RIGHT($X115,5)/10000),0) -> 8 | M115: =IF(X115>1000,INT(RIGHT($X115,4)/1000),0) -> 5 | N115: =IF(X115>100,INT(RIGHT($X115,3)/100),0) -> 2 | O115: =IF(X115>10,INT(RIGHT($X115,2)/10),0) -> 7 | P115: =INT(RIGHT($X115,1)/1) -> 8 | Q115: =INT(RIGHT($AC115,1)) -> 3 | R115: =INT(RIGHT($AC115,2)/10) -> 1 | S115: =INT(RIGHT($AC115,3)/100) -> 0 | T115: =INT(RIGHT($AC115,4)/1000) -> 0 | U115: =INT(RIGHT($AC115,5)/10000) -> 0 | V115: =INT(RIGHT($AC115,6)/100000) -> 0 | W115: =((Q115*100000)+(R115*10000)+(S115*1000)+(T115*100)+(U115*10)+V115) -> 310000 | X115: =C$3+INT(RAND()*(C$4-C$3+1)) -> 8313185278 | Y115: =LEN(X115) -> 10 | Z115: =INT(RAND()*(Y115-C$5))+C$5 -> 8 | AA115: =Z115-C$5 -> 6 | AC115: =INT(RAND()*(POWER(10,$C$7))+1) -> 13 | AD115: =LEN(AC115) -> 2 | AE115: =INT(RAND()*(AD115-H$5))+H$5 -> 0 | AF115: =AE115-H$5 -> 0 | AG115: =(Q115*10^Q$6)+(R115*10^R$6)+(S115*10^S$6)+(T115*10^T$6)+(U115*10^U$6)+(V115*10^V$6) -> 0.31
A116: 22 | B116: =convnumberletter(C116) -> huit milliards trois millions cent quatre-vingt-cinq mille deux cent soixante-dix-huit | C116: =(E117*10^E$7)+(F117*10^F$7)+(G117*10^G$7)+(H117*10^H$7)+(I117*10^I$7)+(J117*10^J$7)+(K117*10^K$7)+(L117*10^L$7)+(M117*10^M$7)+(N117*10^N$7)+(O117*10^O$7)+(P117*10^P$7) -> 8003185278 | E116: =IF(Z115=12,TRUE,FALSE) -> FALSE | F116: =IF(Z115=11,TRUE,FALSE) -> FALSE | G116: =IF(Z115=10,TRUE,FALSE) -> FALSE | H116: =IF(Z115=9,TRUE,FALSE) -> FALSE | I116: =IF(Z115=8,TRUE,FALSE) -> TRUE | J116: =IF(Z115=7,TRUE,FALSE) -> FALSE | K116: =IF(Z115=6,TRUE,FALSE) -> FALSE | L116: =IF(Z115=5,TRUE,FALSE) -> FALSE | M116: =IF(Z115=4,TRUE,FALSE) -> FALSE | N116: =IF(Z115=3,TRUE,FALSE) -> FALSE | O116: =IF(Z115=2,TRUE,FALSE) -> FALSE | P116: =IF(Z115=1,TRUE,FALSE) -> FALSE | Q116: =IF(AND(Q115=0,R116=FALSE),FALSE,TRUE) -> TRUE | R116: =IF(AND(R115=0,S116=FALSE),FALSE,TRUE) -> TRUE | S116: =IF(AND(S115=0,T116=FALSE),FALSE,TRUE) -> FALSE | T116: =IF(AND(T115=0,U116=FALSE),FALSE,TRUE) -> FALSE | U116: =IF(AND(U115=0,V116=FALSE),FALSE,TRUE) -> FALSE | V116: =IF(V115=0,FALSE,TRUE) -> FALSE | W116: =W115/(1000000/W117) -> 31
B117: =convnumberletter(C117) -> trente et un | C117: =W116 -> 31 | E117: =IF(AND(E$7-1<$Z115,E$7-1>=$AA115),0,E115) -> 0 | F117: 0 | G117: 8 | H117: 0 | I117: 0 | J117: 3 | K117: 1 | L117: 8 | M117: =IF(AND(M$7-1<$Z115,M$7-1>=$AA115),0,M115) -> 5 | N117: =IF(AND(N$7-1<$Z115,N$7-1>=$AA115),0,N115) -> 2 | O117: =IF(AND(O$7-1<$Z115,O$7-1>=$AA115),0,O115) -> 7 | P117: =IF(AND(P$7-1<$Z115,P$7-1>=$AA115),0,P115) -> 8 | Q117: =IF(Q116=FALSE,"",Q115) -> 3 | R117: 1 | W117: =SUM(Q118:V118) -> 100
B118: =IF(C117>1,CONCATENATE(HLOOKUP(C118,$Q$7:$V$9,3,TRUE),"s"),HLOOKUP(C118,$Q$7:$V$9,3,TRUE)) -> centièmes | C118: =W117 -> 100 | Q118: =IF(AND(R117="",Q117<>""),Q$7,0) -> 0 | R118: =IF(AND(S117="",R117<>""),R$7,0) -> 100 | S118: =IF(AND(T117="",S117<>""),S$7,0) -> 0 | T118: =IF(AND(U117="",T117<>""),T$7,0) -> 0 | U118: =IF(AND(V117="",U117<>""),U$7,0) -> 0 | V118: =IF(AND(W118="",V117<>""),V$7,0) -> 0
B119: =IF($C$8="virgule",CONCATENATE(B116," virgule ",B117),CONCATENATE(B116," et ",B117," ",B118)) -> huit milliards trois millions cent quatre-vingt-cinq mille deux cent soixante-dix-huit virgule trente et un
E120: =IF(X120>100000000000,INT(RIGHT($X120,12)/100000000000),0) -> 3 | F120: =IF(X120>10000000000,INT(RIGHT($X120,11)/10000000000),0) -> 4 | G120: =IF(X120>1000000000,INT(RIGHT($X120,10)/1000000000),0) -> 1 | H120: =IF(X120>100000000,INT(RIGHT($X120,9)/100000000),0) -> 2 | I120: =IF(X120>10000000,INT(RIGHT($X120,8)/10000000),0) -> 6 | J120: =IF(X120>1000000,INT(RIGHT($X120,7)/1000000),0) -> 0 | K120: =IF(X120>100000,INT(RIGHT($X120,6)/100000),0) -> 8 | L120: =IF(X120>10000,INT(RIGHT($X120,5)/10000),0) -> 9 | M120: =IF(X120>1000,INT(RIGHT($X120,4)/1000),0) -> 2 | N120: =IF(X120>100,INT(RIGHT($X120,3)/100),0) -> 6 | O120: =IF(X120>10,INT(RIGHT($X120,2)/10),0) -> 8 | P120: =INT(RIGHT($X120,1)/1) -> 2 | Q120: =INT(RIGHT($AC120,1)) -> 5 | R120: =INT(RIGHT($AC120,2)/10) -> 4 | S120: =INT(RIGHT($AC120,3)/100) -> 0 | T120: =INT(RIGHT($AC120,4)/1000) -> 0 | U120: =INT(RIGHT($AC120,5)/10000) -> 0 | V120: =INT(RIGHT($AC120,6)/100000) -> 0 | W120: =((Q120*100000)+(R120*10000)+(S120*1000)+(T120*100)+(U120*10)+V120) -> 540000 | X120: =C$3+INT(RAND()*(C$4-C$3+1)) -> 341260892682 | Y120: =LEN(X120) -> 12 | Z120: =INT(RAND()*(Y120-C$5))+C$5 -> 9 | AA120: =Z120-C$5 -> 7 | AC120: =INT(RAND()*(POWER(10,$C$7))+1) -> 45 | AD120: =LEN(AC120) -> 2 | AE120: =INT(RAND()*(AD120-H$5))+H$5 -> 1 | AF120: =AE120-H$5 -> 1 | AG120: =(Q120*10^Q$6)+(R120*10^R$6)+(S120*10^S$6)+(T120*10^T$6)+(U120*10^U$6)+(V120*10^V$6) -> 0.54
A121: 23 | B121: =convnumberletter(C121) -> trois cent quarante milliards soixante millions huit cent quatre-vingt-douze mille six cent quatre-vingt-deux | C121: =(E122*10^E$7)+(F122*10^F$7)+(G122*10^G$7)+(H122*10^H$7)+(I122*10^I$7)+(J122*10^J$7)+(K122*10^K$7)+(L122*10^L$7)+(M122*10^M$7)+(N122*10^N$7)+(O122*10^O$7)+(P122*10^P$7) -> 340060892682 | E121: =IF(Z120=12,TRUE,FALSE) -> FALSE | F121: =IF(Z120=11,TRUE,FALSE) -> FALSE | G121: =IF(Z120=10,TRUE,FALSE) -> FALSE | H121: =IF(Z120=9,TRUE,FALSE) -> TRUE | I121: =IF(Z120=8,TRUE,FALSE) -> FALSE | J121: =IF(Z120=7,TRUE,FALSE) -> FALSE | K121: =IF(Z120=6,TRUE,FALSE) -> FALSE | L121: =IF(Z120=5,TRUE,FALSE) -> FALSE | M121: =IF(Z120=4,TRUE,FALSE) -> FALSE | N121: =IF(Z120=3,TRUE,FALSE) -> FALSE | O121: =IF(Z120=2,TRUE,FALSE) -> FALSE | P121: =IF(Z120=1,TRUE,FALSE) -> FALSE | Q121: =IF(AND(Q120=0,R121=FALSE),FALSE,TRUE) -> TRUE | R121: =IF(AND(R120=0,S121=FALSE),FALSE,TRUE) -> TRUE | S121: =IF(AND(S120=0,T121=FALSE),FALSE,TRUE) -> FALSE | T121: =IF(AND(T120=0,U121=FALSE),FALSE,TRUE) -> FALSE | U121: =IF(AND(U120=0,V121=FALSE),FALSE,TRUE) -> FALSE | V121: =IF(V120=0,FALSE,TRUE) -> FALSE | W121: =W120/(1000000/W122) -> 54
B122: =convnumberletter(C122) -> cinquante-quatre | C122: =W121 -> 54 | E122: =IF(AND(E$7-1<$Z120,E$7-1>=$AA120),0,E120) -> 3 | F122: 4 | G122: 0 | H122: 0 | I122: 6 | J122: 0 | K122: 8 | L122: 9 | M122: =IF(AND(M$7-1<$Z120,M$7-1>=$AA120),0,M120) -> 2 | N122: =IF(AND(N$7-1<$Z120,N$7-1>=$AA120),0,N120) -> 6 | O122: =IF(AND(O$7-1<$Z120,O$7-1>=$AA120),0,O120) -> 8 | P122: =IF(AND(P$7-1<$Z120,P$7-1>=$AA120),0,P120) -> 2 | Q122: =IF(Q121=FALSE,"",Q120) -> 5 | R122: 4 | W122: =SUM(Q123:V123) -> 100
B123: =IF(C122>1,CONCATENATE(HLOOKUP(C123,$Q$7:$V$9,3,TRUE),"s"),HLOOKUP(C123,$Q$7:$V$9,3,TRUE)) -> centièmes | C123: =W122 -> 100 | Q123: =IF(AND(R122="",Q122<>""),Q$7,0) -> 0 | R123: =IF(AND(S122="",R122<>""),R$7,0) -> 100 | S123: =IF(AND(T122="",S122<>""),S$7,0) -> 0 | T123: =IF(AND(U122="",T122<>""),T$7,0) -> 0 | U123: =IF(AND(V122="",U122<>""),U$7,0) -> 0 | V123: =IF(AND(W123="",V122<>""),V$7,0) -> 0
B124: =IF($C$8="virgule",CONCATENATE(B121," virgule ",B122),CONCATENATE(B121," et ",B122," ",B123)) -> trois cent quarante milliards soixante millions huit cent quatre-vingt-douze mille six cent quatre-vingt-deux virgule cinquante-quatre
E125: =IF(X125>100000000000,INT(RIGHT($X125,12)/100000000000),0) -> 0 | F125: =IF(X125>10000000000,INT(RIGHT($X125,11)/10000000000),0) -> 8 | G125: =IF(X125>1000000000,INT(RIGHT($X125,10)/1000000000),0) -> 3 | H125: =IF(X125>100000000,INT(RIGHT($X125,9)/100000000),0) -> 6 | I125: =IF(X125>10000000,INT(RIGHT($X125,8)/10000000),0) -> 7 | J125: =IF(X125>1000000,INT(RIGHT($X125,7)/1000000),0) -> 4 | K125: =IF(X125>100000,INT(RIGHT($X125,6)/100000),0) -> 7 | L125: =IF(X125>10000,INT(RIGHT($X125,5)/10000),0) -> 7 | M125: =IF(X125>1000,INT(RIGHT($X125,4)/1000),0) -> 6 | N125: =IF(X125>100,INT(RIGHT($X125,3)/100),0) -> 1 | O125: =IF(X125>10,INT(RIGHT($X125,2)/10),0) -> 9 | P125: =INT(RIGHT($X125,1)/1) -> 2 | Q125: =INT(RIGHT($AC125,1)) -> 5 | R125: =INT(RIGHT($AC125,2)/10) -> 6 | S125: =INT(RIGHT($AC125,3)/100) -> 0 | T125: =INT(RIGHT($AC125,4)/1000) -> 0 | U125: =INT(RIGHT($AC125,5)/10000) -> 0 | V125: =INT(RIGHT($AC125,6)/100000) -> 0 | W125: =((Q125*100000)+(R125*10000)+(S125*1000)+(T125*100)+(U125*10)+V125) -> 560000 | X125: =C$3+INT(RAND()*(C$4-C$3+1)) -> 83674776192 | Y125: =LEN(X125) -> 11 | Z125: =INT(RAND()*(Y125-C$5))+C$5 -> 8 | AA125: =Z125-C$5 -> 6 | AC125: =INT(RAND()*(POWER(10,$C$7))+1) -> 65 | AD125: =LEN(AC125) -> 2 | AE125: =INT(RAND()*(AD125-H$5))+H$5 -> 0 | AF125: =AE125-H$5 -> 0 | AG125: =(Q125*10^Q$6)+(R125*10^R$6)+(S125*10^S$6)+(T125*10^T$6)+(U125*10^U$6)+(V125*10^V$6) -> 0.56
A126: 24 | B126: =convnumberletter(C126) -> quatre-vingt-trois milliards quatre millions sept cent soixante-seize mille cent quatre-vingt-douze | C126: =(E127*10^E$7)+(F127*10^F$7)+(G127*10^G$7)+(H127*10^H$7)+(I127*10^I$7)+(J127*10^J$7)+(K127*10^K$7)+(L127*10^L$7)+(M127*10^M$7)+(N127*10^N$7)+(O127*10^O$7)+(P127*10^P$7) -> 83004776192 | E126: =IF(Z125=12,TRUE,FALSE) -> FALSE | F126: =IF(Z125=11,TRUE,FALSE) -> FALSE | G126: =IF(Z125=10,TRUE,FALSE) -> FALSE | H126: =IF(Z125=9,TRUE,FALSE) -> FALSE | I126: =IF(Z125=8,TRUE,FALSE) -> TRUE | J126: =IF(Z125=7,TRUE,FALSE) -> FALSE | K126: =IF(Z125=6,TRUE,FALSE) -> FALSE | L126: =IF(Z125=5,TRUE,FALSE) -> FALSE | M126: =IF(Z125=4,TRUE,FALSE) -> FALSE | N126: =IF(Z125=3,TRUE,FALSE) -> FALSE | O126: =IF(Z125=2,TRUE,FALSE) -> FALSE | P126: =IF(Z125=1,TRUE,FALSE) -> FALSE | Q126: =IF(AND(Q125=0,R126=FALSE),FALSE,TRUE) -> TRUE | R126: =IF(AND(R125=0,S126=FALSE),FALSE,TRUE) -> TRUE | S126: =IF(AND(S125=0,T126=FALSE),FALSE,TRUE) -> FALSE | T126: =IF(AND(T125=0,U126=FALSE),FALSE,TRUE) -> FALSE | U126: =IF(AND(U125=0,V126=FALSE),FALSE,TRUE) -> FALSE | V126: =IF(V125=0,FALSE,TRUE) -> FALSE | W126: =W125/(1000000/W127) -> 56
B127: =convnumberletter(C127) -> cinquante-six | C127: =W126 -> 56 | E127: =IF(AND(E$7-1<$Z125,E$7-1>=$AA125),0,E125) -> 0 | F127: 8 | G127: 3 | H127: 0 | I127: 0 | J127: 4 | K127: 7 | L127: 7 | M127: =IF(AND(M$7-1<$Z125,M$7-1>=$AA125),0,M125) -> 6 | N127: =IF(AND(N$7-1<$Z125,N$7-1>=$AA125),0,N125) -> 1 | O127: =IF(AND(O$7-1<$Z125,O$7-1>=$AA125),0,O125) -> 9 | P127: =IF(AND(P$7-1<$Z125,P$7-1>=$AA125),0,P125) -> 2 | Q127: =IF(Q126=FALSE,"",Q125) -> 5 | R127: 6 | W127: =SUM(Q128:V128) -> 100
B128: =IF(C127>1,CONCATENATE(HLOOKUP(C128,$Q$7:$V$9,3,TRUE),"s"),HLOOKUP(C128,$Q$7:$V$9,3,TRUE)) -> centièmes | C128: =W127 -> 100 | Q128: =IF(AND(R127="",Q127<>""),Q$7,0) -> 0 | R128: =IF(AND(S127="",R127<>""),R$7,0) -> 100 | S128: =IF(AND(T127="",S127<>""),S$7,0) -> 0 | T128: =IF(AND(U127="",T127<>""),T$7,0) -> 0 | U128: =IF(AND(V127="",U127<>""),U$7,0) -> 0 | V128: =IF(AND(W128="",V127<>""),V$7,0) -> 0
B129: =IF($C$8="virgule",CONCATENATE(B126," virgule ",B127),CONCATENATE(B126," et ",B127," ",B128)) -> quatre-vingt-trois milliards quatre millions sept cent soixante-seize mille cent quatre-vingt-douze virgule cinquante-six
E130: =IF(X130>100000000000,INT(RIGHT($X130,12)/100000000000),0) -> 3 | F130: =IF(X130>10000000000,INT(RIGHT($X130,11)/10000000000),0) -> 7 | G130: =IF(X130>1000000000,INT(RIGHT($X130,10)/1000000000),0) -> 1 | H130: =IF(X130>100000000,INT(RIGHT($X130,9)/100000000),0) -> 3 | I130: =IF(X130>10000000,INT(RIGHT($X130,8)/10000000),0) -> 3 | J130: =IF(X130>1000000,INT(RIGHT($X130,7)/1000000),0) -> 3 | K130: =IF(X130>100000,INT(RIGHT($X130,6)/100000),0) -> 5 | L130: =IF(X130>10000,INT(RIGHT($X130,5)/10000),0) -> 7 | M130: =IF(X130>1000,INT(RIGHT($X130,4)/1000),0) -> 6 | N130: =IF(X130>100,INT(RIGHT($X130,3)/100),0) -> 3 | O130: =IF(X130>10,INT(RIGHT($X130,2)/10),0) -> 0 | P130: =INT(RIGHT($X130,1)/1) -> 4 | Q130: =INT(RIGHT($AC130,1)) -> 2 | R130: =INT(RIGHT($AC130,2)/10) -> 3 | S130: =INT(RIGHT($AC130,3)/100) -> 0 | T130: =INT(RIGHT($AC130,4)/1000) -> 0 | U130: =INT(RIGHT($AC130,5)/10000) -> 0 | V130: =INT(RIGHT($AC130,6)/100000) -> 0 | W130: =((Q130*100000)+(R130*10000)+(S130*1000)+(T130*100)+(U130*10)+V130) -> 230000 | X130: =C$3+INT(RAND()*(C$4-C$3+1)) -> 371333576304 | Y130: =LEN(X130) -> 12 | Z130: =INT(RAND()*(Y130-C$5))+C$5 -> 7 | AA130: =Z130-C$5 -> 5 | AC130: =INT(RAND()*(POWER(10,$C$7))+1) -> 32 | AD130: =LEN(AC130) -> 2 | AE130: =INT(RAND()*(AD130-H$5))+H$5 -> 1 | AF130: =AE130-H$5 -> 1 | AG130: =(Q130*10^Q$6)+(R130*10^R$6)+(S130*10^S$6)+(T130*10^T$6)+(U130*10^U$6)+(V130*10^V$6) -> 0.23
A131: 25 | B131: =convnumberletter(C131) -> trois cent soixante et onze milliards trois cents millions cinq cent soixante-seize mille trois cent quatre | C131: =(E132*10^E$7)+(F132*10^F$7)+(G132*10^G$7)+(H132*10^H$7)+(I132*10^I$7)+(J132*10^J$7)+(K132*10^K$7)+(L132*10^L$7)+(M132*10^M$7)+(N132*10^N$7)+(O132*10^O$7)+(P132*10^P$7) -> 371300576304 | E131: =IF(Z130=12,TRUE,FALSE) -> FALSE | F131: =IF(Z130=11,TRUE,FALSE) -> FALSE | G131: =IF(Z130=10,TRUE,FALSE) -> FALSE | H131: =IF(Z130=9,TRUE,FALSE) -> FALSE | I131: =IF(Z130=8,TRUE,FALSE) -> FALSE | J131: =IF(Z130=7,TRUE,FALSE) -> TRUE | K131: =IF(Z130=6,TRUE,FALSE) -> FALSE | L131: =IF(Z130=5,TRUE,FALSE) -> FALSE | M131: =IF(Z130=4,TRUE,FALSE) -> FALSE | N131: =IF(Z130=3,TRUE,FALSE) -> FALSE | O131: =IF(Z130=2,TRUE,FALSE) -> FALSE | P131: =IF(Z130=1,TRUE,FALSE) -> FALSE | Q131: =IF(AND(Q130=0,R131=FALSE),FALSE,TRUE) -> TRUE | R131: =IF(AND(R130=0,S131=FALSE),FALSE,TRUE) -> TRUE | S131: =IF(AND(S130=0,T131=FALSE),FALSE,TRUE) -> FALSE | T131: =IF(AND(T130=0,U131=FALSE),FALSE,TRUE) -> FALSE | U131: =IF(AND(U130=0,V131=FALSE),FALSE,TRUE) -> FALSE | V131: =IF(V130=0,FALSE,TRUE) -> FALSE | W131: =W130/(1000000/W132) -> 23
B132: =convnumberletter(C132) -> vingt-trois | C132: =W131 -> 23 | E132: =IF(AND(E$7-1<$Z130,E$7-1>=$AA130),0,E130) -> 3 | F132: 7 | G132: 1 | H132: 3 | I132: 0 | J132: 0 | K132: 5 | L132: 7 | M132: =IF(AND(M$7-1<$Z130,M$7-1>=$AA130),0,M130) -> 6 | N132: =IF(AND(N$7-1<$Z130,N$7-1>=$AA130),0,N130) -> 3 | O132: =IF(AND(O$7-1<$Z130,O$7-1>=$AA130),0,O130) -> 0 | P132: =IF(AND(P$7-1<$Z130,P$7-1>=$AA130),0,P130) -> 4 | Q132: =IF(Q131=FALSE,"",Q130) -> 2 | R132: 3 | W132: =SUM(Q133:V133) -> 100
B133: =IF(C132>1,CONCATENATE(HLOOKUP(C133,$Q$7:$V$9,3,TRUE),"s"),HLOOKUP(C133,$Q$7:$V$9,3,TRUE)) -> centièmes | C133: =W132 -> 100 | Q133: =IF(AND(R132="",Q132<>""),Q$7,0) -> 0 | R133: =IF(AND(S132="",R132<>""),R$7,0) -> 100 | S133: =IF(AND(T132="",S132<>""),S$7,0) -> 0 | T133: =IF(AND(U132="",T132<>""),T$7,0) -> 0 | U133: =IF(AND(V132="",U132<>""),U$7,0) -> 0 | V133: =IF(AND(W133="",V132<>""),V$7,0) -> 0
B134: =IF($C$8="virgule",CONCATENATE(B131," virgule ",B132),CONCATENATE(B131," et ",B132," ",B133)) -> trois cent soixante et onze milliards trois cents millions cinq cent soixante-seize mille trois cent quatre virgule vingt-trois
E135: =IF(X135>100000000000,INT(RIGHT($X135,12)/100000000000),0) -> 9 | F135: =IF(X135>10000000000,INT(RIGHT($X135,11)/10000000000),0) -> 0 | G135: =IF(X135>1000000000,INT(RIGHT($X135,10)/1000000000),0) -> 2 | H135: =IF(X135>100000000,INT(RIGHT($X135,9)/100000000),0) -> 7 | I135: =IF(X135>10000000,INT(RIGHT($X135,8)/10000000),0) -> 2 | J135: =IF(X135>1000000,INT(RIGHT($X135,7)/1000000),0) -> 3 | K135: =IF(X135>100000,INT(RIGHT($X135,6)/100000),0) -> 5 | L135: =IF(X135>10000,INT(RIGHT($X135,5)/10000),0) -> 8 | M135: =IF(X135>1000,INT(RIGHT($X135,4)/1000),0) -> 5 | N135: =IF(X135>100,INT(RIGHT($X135,3)/100),0) -> 1 | O135: =IF(X135>10,INT(RIGHT($X135,2)/10),0) -> 6 | P135: =INT(RIGHT($X135,1)/1) -> 5 | Q135: =INT(RIGHT($AC135,1)) -> 6 | R135: =INT(RIGHT($AC135,2)/10) -> 7 | S135: =INT(RIGHT($AC135,3)/100) -> 0 | T135: =INT(RIGHT($AC135,4)/1000) -> 0 | U135: =INT(RIGHT($AC135,5)/10000) -> 0 | V135: =INT(RIGHT($AC135,6)/100000) -> 0 | W135: =((Q135*100000)+(R135*10000)+(S135*1000)+(T135*100)+(U135*10)+V135) -> 670000 | X135: =C$3+INT(RAND()*(C$4-C$3+1)) -> 902723585165 | Y135: =LEN(X135) -> 12 | Z135: =INT(RAND()*(Y135-C$5))+C$5 -> 5 | AA135: =Z135-C$5 -> 3 | AC135: =INT(RAND()*(POWER(10,$C$7))+1) -> 76 | AD135: =LEN(AC135) -> 2 | AE135: =INT(RAND()*(AD135-H$5))+H$5 -> 1 | AF135: =AE135-H$5 -> 1 | AG135: =(Q135*10^Q$6)+(R135*10^R$6)+(S135*10^S$6)+(T135*10^T$6)+(U135*10^U$6)+(V135*10^V$6) -> 0.67
A136: 26 | B136: =convnumberletter(C136) -> neuf cent deux milliards sept cent vingt-trois millions cinq mille cent soixante-cinq | C136: =(E137*10^E$7)+(F137*10^F$7)+(G137*10^G$7)+(H137*10^H$7)+(I137*10^I$7)+(J137*10^J$7)+(K137*10^K$7)+(L137*10^L$7)+(M137*10^M$7)+(N137*10^N$7)+(O137*10^O$7)+(P137*10^P$7) -> 902723005165 | E136: =IF(Z135=12,TRUE,FALSE) -> FALSE | F136: =IF(Z135=11,TRUE,FALSE) -> FALSE | G136: =IF(Z135=10,TRUE,FALSE) -> FALSE | H136: =IF(Z135=9,TRUE,FALSE) -> FALSE | I136: =IF(Z135=8,TRUE,FALSE) -> FALSE | J136: =IF(Z135=7,TRUE,FALSE) -> FALSE | K136: =IF(Z135=6,TRUE,FALSE) -> FALSE | L136: =IF(Z135=5,TRUE,FALSE) -> TRUE | M136: =IF(Z135=4,TRUE,FALSE) -> FALSE | N136: =IF(Z135=3,TRUE,FALSE) -> FALSE | O136: =IF(Z135=2,TRUE,FALSE) -> FALSE | P136: =IF(Z135=1,TRUE,FALSE) -> FALSE | Q136: =IF(AND(Q135=0,R136=FALSE),FALSE,TRUE) -> TRUE | R136: =IF(AND(R135=0,S136=FALSE),FALSE,TRUE) -> TRUE | S136: =IF(AND(S135=0,T136=FALSE),FALSE,TRUE) -> FALSE | T136: =IF(AND(T135=0,U136=FALSE),FALSE,TRUE) -> FALSE | U136: =IF(AND(U135=0,V136=FALSE),FALSE,TRUE) -> FALSE | V136: =IF(V135=0,FALSE,TRUE) -> FALSE | W136: =W135/(1000000/W137) -> 67
B137: =convnumberletter(C137) -> soixante-sept | C137: =W136 -> 67 | E137: =IF(AND(E$7-1<$Z135,E$7-1>=$AA135),0,E135) -> 9 | F137: 0 | G137: 2 | H137: 7 | I137: 2 | J137: 3 | K137: 0 | L137: 0 | M137: =IF(AND(M$7-1<$Z135,M$7-1>=$AA135),0,M135) -> 5 | N137: =IF(AND(N$7-1<$Z135,N$7-1>=$AA135),0,N135) -> 1 | O137: =IF(AND(O$7-1<$Z135,O$7-1>=$AA135),0,O135) -> 6 | P137: =IF(AND(P$7-1<$Z135,P$7-1>=$AA135),0,P135) -> 5 | Q137: =IF(Q136=FALSE,"",Q135) -> 6 | R137: 7 | W137: =SUM(Q138:V138) -> 100
B138: =IF(C137>1,CONCATENATE(HLOOKUP(C138,$Q$7:$V$9,3,TRUE),"s"),HLOOKUP(C138,$Q$7:$V$9,3,TRUE)) -> centièmes | C138: =W137 -> 100 | Q138: =IF(AND(R137="",Q137<>""),Q$7,0) -> 0 | R138: =IF(AND(S137="",R137<>""),R$7,0) -> 100 | S138: =IF(AND(T137="",S137<>""),S$7,0) -> 0 | T138: =IF(AND(U137="",T137<>""),T$7,0) -> 0 | U138: =IF(AND(V137="",U137<>""),U$7,0) -> 0 | V138: =IF(AND(W138="",V137<>""),V$7,0) -> 0
B139: =IF($C$8="virgule",CONCATENATE(B136," virgule ",B137),CONCATENATE(B136," et ",B137," ",B138)) -> neuf cent deux milliards sept cent vingt-trois millions cinq mille cent soixante-cinq virgule soixante-sept
E140: =IF(X140>100000000000,INT(RIGHT($X140,12)/100000000000),0) -> 3 | F140: =IF(X140>10000000000,INT(RIGHT($X140,11)/10000000000),0) -> 9 | G140: =IF(X140>1000000000,INT(RIGHT($X140,10)/1000000000),0) -> 4 | H140: =IF(X140>100000000,INT(RIGHT($X140,9)/100000000),0) -> 8 | I140: =IF(X140>10000000,INT(RIGHT($X140,8)/10000000),0) -> 0 | J140: =IF(X140>1000000,INT(RIGHT($X140,7)/1000000),0) -> 1 | K140: =IF(X140>100000,INT(RIGHT($X140,6)/100000),0) -> 0 | L140: =IF(X140>10000,INT(RIGHT($X140,5)/10000),0) -> 3 | M140: =IF(X140>1000,INT(RIGHT($X140,4)/1000),0) -> 9 | N140: =IF(X140>100,INT(RIGHT($X140,3)/100),0) -> 2 | O140: =IF(X140>10,INT(RIGHT($X140,2)/10),0) -> 1 | P140: =INT(RIGHT($X140,1)/1) -> 3 | Q140: =INT(RIGHT($AC140,1)) -> 7 | R140: =INT(RIGHT($AC140,2)/10) -> 3 | S140: =INT(RIGHT($AC140,3)/100) -> 0 | T140: =INT(RIGHT($AC140,4)/1000) -> 0 | U140: =INT(RIGHT($AC140,5)/10000) -> 0 | V140: =INT(RIGHT($AC140,6)/100000) -> 0 | W140: =((Q140*100000)+(R140*10000)+(S140*1000)+(T140*100)+(U140*10)+V140) -> 730000 | X140: =C$3+INT(RAND()*(C$4-C$3+1)) -> 394801039213 | Y140: =LEN(X140) -> 12 | Z140: =INT(RAND()*(Y140-C$5))+C$5 -> 3 | AA140: =Z140-C$5 -> 1 | AC140: =INT(RAND()*(POWER(10,$C$7))+1) -> 37 | AD140: =LEN(AC140) -> 2 | AE140: =INT(RAND()*(AD140-H$5))+H$5 -> 1 | AF140: =AE140-H$5 -> 1 | AG140: =(Q140*10^Q$6)+(R140*10^R$6)+(S140*10^S$6)+(T140*10^T$6)+(U140*10^U$6)+(V140*10^V$6) -> 0.73
A141: 27 | B141: =convnumberletter(C141) -> trois cent quatre-vingt-quatorze milliards huit cent un millions trente mille treize | C141: =(E142*10^E$7)+(F142*10^F$7)+(G142*10^G$7)+(H142*10^H$7)+(I142*10^I$7)+(J142*10^J$7)+(K142*10^K$7)+(L142*10^L$7)+(M142*10^M$7)+(N142*10^N$7)+(O142*10^O$7)+(P142*10^P$7) -> 394801030013 | E141: =IF(Z140=12,TRUE,FALSE) -> FALSE | F141: =IF(Z140=11,TRUE,FALSE) -> FALSE | G141: =IF(Z140=10,TRUE,FALSE) -> FALSE | H141: =IF(Z140=9,TRUE,FALSE) -> FALSE | I141: =IF(Z140=8,TRUE,FALSE) -> FALSE | J141: =IF(Z140=7,TRUE,FALSE) -> FALSE | K141: =IF(Z140=6,TRUE,FALSE) -> FALSE | L141: =IF(Z140=5,TRUE,FALSE) -> FALSE | M141: =IF(Z140=4,TRUE,FALSE) -> FALSE | N141: =IF(Z140=3,TRUE,FALSE) -> TRUE | O141: =IF(Z140=2,TRUE,FALSE) -> FALSE | P141: =IF(Z140=1,TRUE,FALSE) -> FALSE | Q141: =IF(AND(Q140=0,R141=FALSE),FALSE,TRUE) -> TRUE | R141: =IF(AND(R140=0,S141=FALSE),FALSE,TRUE) -> TRUE | S141: =IF(AND(S140=0,T141=FALSE),FALSE,TRUE) -> FALSE | T141: =IF(AND(T140=0,U141=FALSE),FALSE,TRUE) -> FALSE | U141: =IF(AND(U140=0,V141=FALSE),FALSE,TRUE) -> FALSE | V141: =IF(V140=0,FALSE,TRUE) -> FALSE | W141: =W140/(1000000/W142) -> 73
B142: =convnumberletter(C142) -> soixante-treize | C142: =W141 -> 73 | E142: =IF(AND(E$7-1<$Z140,E$7-1>=$AA140),0,E140) -> 3 | F142: 9 | G142: 4 | H142: 8 | I142: 0 | J142: 1 | K142: 0 | L142: 3 | M142: =IF(AND(M$7-1<$Z140,M$7-1>=$AA140),0,M140) -> 0 | N142: =IF(AND(N$7-1<$Z140,N$7-1>=$AA140),0,N140) -> 0 | O142: =IF(AND(O$7-1<$Z140,O$7-1>=$AA140),0,O140) -> 1 | P142: =IF(AND(P$7-1<$Z140,P$7-1>=$AA140),0,P140) -> 3 | Q142: =IF(Q141=FALSE,"",Q140) -> 7 | R142: 3 | W142: =SUM(Q143:V143) -> 100
B143: =IF(C142>1,CONCATENATE(HLOOKUP(C143,$Q$7:$V$9,3,TRUE),"s"),HLOOKUP(C143,$Q$7:$V$9,3,TRUE)) -> centièmes | C143: =W142 -> 100 | Q143: =IF(AND(R142="",Q142<>""),Q$7,0) -> 0 | R143: =IF(AND(S142="",R142<>""),R$7,0) -> 100 | S143: =IF(AND(T142="",S142<>""),S$7,0) -> 0 | T143: =IF(AND(U142="",T142<>""),T$7,0) -> 0 | U143: =IF(AND(V142="",U142<>""),U$7,0) -> 0 | V143: =IF(AND(W143="",V142<>""),V$7,0) -> 0
B144: =IF($C$8="virgule",CONCATENATE(B141," virgule ",B142),CONCATENATE(B141," et ",B142," ",B143)) -> trois cent quatre-vingt-quatorze milliards huit cent un millions trente mille treize virgule soixante-treize
E145: =IF(X145>100000000000,INT(RIGHT($X145,12)/100000000000),0) -> 2 | F145: =IF(X145>10000000000,INT(RIGHT($X145,11)/10000000000),0) -> 0 | G145: =IF(X145>1000000000,INT(RIGHT($X145,10)/1000000000),0) -> 7 | H145: =IF(X145>100000000,INT(RIGHT($X145,9)/100000000),0) -> 4 | I145: =IF(X145>10000000,INT(RIGHT($X145,8)/10000000),0) -> 1 | J145: =IF(X145>1000000,INT(RIGHT($X145,7)/1000000),0) -> 5 | K145: =IF(X145>100000,INT(RIGHT($X145,6)/100000),0) -> 7 | L145: =IF(X145>10000,INT(RIGHT($X145,5)/10000),0) -> 2 | M145: =IF(X145>1000,INT(RIGHT($X145,4)/1000),0) -> 9 | N145: =IF(X145>100,INT(RIGHT($X145,3)/100),0) -> 9 | O145: =IF(X145>10,INT(RIGHT($X145,2)/10),0) -> 2 | P145: =INT(RIGHT($X145,1)/1) -> 8 | Q145: =INT(RIGHT($AC145,1)) -> 5 | R145: =INT(RIGHT($AC145,2)/10) -> 2 | S145: =INT(RIGHT($AC145,3)/100) -> 0 | T145: =INT(RIGHT($AC145,4)/1000) -> 0 | U145: =INT(RIGHT($AC145,5)/10000) -> 0 | V145: =INT(RIGHT($AC145,6)/100000) -> 0 | W145: =((Q145*100000)+(R145*10000)+(S145*1000)+(T145*100)+(U145*10)+V145) -> 520000 | X145: =C$3+INT(RAND()*(C$4-C$3+1)) -> 207415729928 | Y145: =LEN(X145) -> 12 | Z145: =INT(RAND()*(Y145-C$5))+C$5 -> 3 | AA145: =Z145-C$5 -> 1 | AC145: =INT(RAND()*(POWER(10,$C$7))+1) -> 25 | AD145: =LEN(AC145) -> 2 | AE145: =INT(RAND()*(AD145-H$5))+H$5 -> 0 | AF145: =AE145-H$5 -> 0 | AG145: =(Q145*10^Q$6)+(R145*10^R$6)+(S145*10^S$6)+(T145*10^T$6)+(U145*10^U$6)+(V145*10^V$6) -> 0.52
A146: 28 | B146: =convnumberletter(C146) -> deux cent sept milliards quatre cent quinze millions sept cent vingt mille vingt-huit | C146: =(E147*10^E$7)+(F147*10^F$7)+(G147*10^G$7)+(H147*10^H$7)+(I147*10^I$7)+(J147*10^J$7)+(K147*10^K$7)+(L147*10^L$7)+(M147*10^M$7)+(N147*10^N$7)+(O147*10^O$7)+(P147*10^P$7) -> 207415720028 | E146: =IF(Z145=12,TRUE,FALSE) -> FALSE | F146: =IF(Z145=11,TRUE,FALSE) -> FALSE | G146: =IF(Z145=10,TRUE,FALSE) -> FALSE | H146: =IF(Z145=9,TRUE,FALSE) -> FALSE | I146: =IF(Z145=8,TRUE,FALSE) -> FALSE | J146: =IF(Z145=7,TRUE,FALSE) -> FALSE | K146: =IF(Z145=6,TRUE,FALSE) -> FALSE | L146: =IF(Z145=5,TRUE,FALSE) -> FALSE | M146: =IF(Z145=4,TRUE,FALSE) -> FALSE | N146: =IF(Z145=3,TRUE,FALSE) -> TRUE | O146: =IF(Z145=2,TRUE,FALSE) -> FALSE | P146: =IF(Z145=1,TRUE,FALSE) -> FALSE | Q146: =IF(AND(Q145=0,R146=FALSE),FALSE,TRUE) -> TRUE | R146: =IF(AND(R145=0,S146=FALSE),FALSE,TRUE) -> TRUE | S146: =IF(AND(S145=0,T146=FALSE),FALSE,TRUE) -> FALSE | T146: =IF(AND(T145=0,U146=FALSE),FALSE,TRUE) -> FALSE | U146: =IF(AND(U145=0,V146=FALSE),FALSE,TRUE) -> FALSE | V146: =IF(V145=0,FALSE,TRUE) -> FALSE | W146: =W145/(1000000/W147) -> 52
B147: =convnumberletter(C147) -> cinquante-deux | C147: =W146 -> 52 | E147: =IF(AND(E$7-1<$Z145,E$7-1>=$AA145),0,E145) -> 2 | F147: 0 | G147: 7 | H147: 4 | I147: 1 | J147: 5 | K147: 7 | L147: 2 | M147: =IF(AND(M$7-1<$Z145,M$7-1>=$AA145),0,M145) -> 0 | N147: =IF(AND(N$7-1<$Z145,N$7-1>=$AA145),0,N145) -> 0 | O147: =IF(AND(O$7-1<$Z145,O$7-1>=$AA145),0,O145) -> 2 | P147: =IF(AND(P$7-1<$Z145,P$7-1>=$AA145),0,P145) -> 8 | Q147: =IF(Q146=FALSE,"",Q145) -> 5 | R147: 2 | W147: =SUM(Q148:V148) -> 100
B148: =IF(C147>1,CONCATENATE(HLOOKUP(C148,$Q$7:$V$9,3,TRUE),"s"),HLOOKUP(C148,$Q$7:$V$9,3,TRUE)) -> centièmes | C148: =W147 -> 100 | Q148: =IF(AND(R147="",Q147<>""),Q$7,0) -> 0 | R148: =IF(AND(S147="",R147<>""),R$7,0) -> 100 | S148: =IF(AND(T147="",S147<>""),S$7,0) -> 0 | T148: =IF(AND(U147="",T147<>""),T$7,0) -> 0 | U148: =IF(AND(V147="",U147<>""),U$7,0) -> 0 | V148: =IF(AND(W148="",V147<>""),V$7,0) -> 0
B149: =IF($C$8="virgule",CONCATENATE(B146," virgule ",B147),CONCATENATE(B146," et ",B147," ",B148)) -> deux cent sept milliards quatre cent quinze millions sept cent vingt mille vingt-huit virgule cinquante-deux
E150: =IF(X150>100000000000,INT(RIGHT($X150,12)/100000000000),0) -> 7 | F150: =IF(X150>10000000000,INT(RIGHT($X150,11)/10000000000),0) -> 1 | G150: =IF(X150>1000000000,INT(RIGHT($X150,10)/1000000000),0) -> 8 | H150: =IF(X150>100000000,INT(RIGHT($X150,9)/100000000),0) -> 0 | I150: =IF(X150>10000000,INT(RIGHT($X150,8)/10000000),0) -> 8 | J150: =IF(X150>1000000,INT(RIGHT($X150,7)/1000000),0) -> 2 | K150: =IF(X150>100000,INT(RIGHT($X150,6)/100000),0) -> 9 | L150: =IF(X150>10000,INT(RIGHT($X150,5)/10000),0) -> 6 | M150: =IF(X150>1000,INT(RIGHT($X150,4)/1000),0) -> 9 | N150: =IF(X150>100,INT(RIGHT($X150,3)/100),0) -> 4 | O150: =IF(X150>10,INT(RIGHT($X150,2)/10),0) -> 0 | P150: =INT(RIGHT($X150,1)/1) -> 4 | Q150: =INT(RIGHT($AC150,1)) -> 9 | R150: =INT(RIGHT($AC150,2)/10) -> 6 | S150: =INT(RIGHT($AC150,3)/100) -> 0 | T150: =INT(RIGHT($AC150,4)/1000) -> 0 | U150: =INT(RIGHT($AC150,5)/10000) -> 0 | V150: =INT(RIGHT($AC150,6)/100000) -> 0 | W150: =((Q150*100000)+(R150*10000)+(S150*1000)+(T150*100)+(U150*10)+V150) -> 960000 | X150: =C$3+INT(RAND()*(C$4-C$3+1)) -> 718082969404 | Y150: =LEN(X150) -> 12 | Z150: =INT(RAND()*(Y150-C$5))+C$5 -> 2 | AA150: =Z150-C$5 -> 0 | AC150: =INT(RAND()*(POWER(10,$C$7))+1) -> 69 | AD150: =LEN(AC150) -> 2 | AE150: =INT(RAND()*(AD150-H$5))+H$5 -> 1 | AF150: =AE150-H$5 -> 1 | AG150: =(Q150*10^Q$6)+(R150*10^R$6)+(S150*10^S$6)+(T150*10^T$6)+(U150*10^U$6)+(V150*10^V$6) -> 0.96
A151: 29 | B151: =convnumberletter(C151) -> sept cent dix-huit milliards quatre-vingt-deux millions neuf cent soixante-neuf mille quatre | C151: =(E152*10^E$7)+(F152*10^F$7)+(G152*10^G$7)+(H152*10^H$7)+(I152*10^I$7)+(J152*10^J$7)+(K152*10^K$7)+(L152*10^L$7)+(M152*10^M$7)+(N152*10^N$7)+(O152*10^O$7)+(P152*10^P$7) -> 718082969004 | E151: =IF(Z150=12,TRUE,FALSE) -> FALSE | F151: =IF(Z150=11,TRUE,FALSE) -> FALSE | G151: =IF(Z150=10,TRUE,FALSE) -> FALSE | H151: =IF(Z150=9,TRUE,FALSE) -> FALSE | I151: =IF(Z150=8,TRUE,FALSE) -> FALSE | J151: =IF(Z150=7,TRUE,FALSE) -> FALSE | K151: =IF(Z150=6,TRUE,FALSE) -> FALSE | L151: =IF(Z150=5,TRUE,FALSE) -> FALSE | M151: =IF(Z150=4,TRUE,FALSE) -> FALSE | N151: =IF(Z150=3,TRUE,FALSE) -> FALSE | O151: =IF(Z150=2,TRUE,FALSE) -> TRUE | P151: =IF(Z150=1,TRUE,FALSE) -> FALSE | Q151: =IF(AND(Q150=0,R151=FALSE),FALSE,TRUE) -> TRUE | R151: =IF(AND(R150=0,S151=FALSE),FALSE,TRUE) -> TRUE | S151: =IF(AND(S150=0,T151=FALSE),FALSE,TRUE) -> FALSE | T151: =IF(AND(T150=0,U151=FALSE),FALSE,TRUE) -> FALSE | U151: =IF(AND(U150=0,V151=FALSE),FALSE,TRUE) -> FALSE | V151: =IF(V150=0,FALSE,TRUE) -> FALSE | W151: =W150/(1000000/W152) -> 96
B152: =convnumberletter(C152) -> quatre-vingt-seize | C152: =W151 -> 96 | E152: =IF(AND(E$7-1<$Z150,E$7-1>=$AA150),0,E150) -> 7 | F152: 1 | G152: 8 | H152: 0 | I152: 8 | J152: 2 | K152: 9 | L152: 6 | M152: =IF(AND(M$7-1<$Z150,M$7-1>=$AA150),0,M150) -> 9 | N152: =IF(AND(N$7-1<$Z150,N$7-1>=$AA150),0,N150) -> 0 | O152: =IF(AND(O$7-1<$Z150,O$7-1>=$AA150),0,O150) -> 0 | P152: =IF(AND(P$7-1<$Z150,P$7-1>=$AA150),0,P150) -> 4 | Q152: =IF(Q151=FALSE,"",Q150) -> 9 | R152: 6 | W152: =SUM(Q153:V153) -> 100
B153: =IF(C152>1,CONCATENATE(HLOOKUP(C153,$Q$7:$V$9,3,TRUE),"s"),HLOOKUP(C153,$Q$7:$V$9,3,TRUE)) -> centièmes | C153: =W152 -> 100 | Q153: =IF(AND(R152="",Q152<>""),Q$7,0) -> 0 | R153: =IF(AND(S152="",R152<>""),R$7,0) -> 100 | S153: =IF(AND(T152="",S152<>""),S$7,0) -> 0 | T153: =IF(AND(U152="",T152<>""),T$7,0) -> 0 | U153: =IF(AND(V152="",U152<>""),U$7,0) -> 0 | V153: =IF(AND(W153="",V152<>""),V$7,0) -> 0
B154: =IF($C$8="virgule",CONCATENATE(B151," virgule ",B152),CONCATENATE(B151," et ",B152," ",B153)) -> sept cent dix-huit milliards quatre-vingt-deux millions neuf cent soixante-neuf mille quatre virgule quatre-vingt-seize
E155: =IF(X155>100000000000,INT(RIGHT($X155,12)/100000000000),0) -> 8 | F155: =IF(X155>10000000000,INT(RIGHT($X155,11)/10000000000),0) -> 8 | G155: =IF(X155>1000000000,INT(RIGHT($X155,10)/1000000000),0) -> 5 | H155: =IF(X155>100000000,INT(RIGHT($X155,9)/100000000),0) -> 5 | I155: =IF(X155>10000000,INT(RIGHT($X155,8)/10000000),0) -> 9 | J155: =IF(X155>1000000,INT(RIGHT($X155,7)/1000000),0) -> 3 | K155: =IF(X155>100000,INT(RIGHT($X155,6)/100000),0) -> 2 | L155: =IF(X155>10000,INT(RIGHT($X155,5)/10000),0) -> 3 | M155: =IF(X155>1000,INT(RIGHT($X155,4)/1000),0) -> 6 | N155: =IF(X155>100,INT(RIGHT($X155,3)/100),0) -> 4 | O155: =IF(X155>10,INT(RIGHT($X155,2)/10),0) -> 6 | P155: =INT(RIGHT($X155,1)/1) -> 3 | Q155: =INT(RIGHT($AC155,1)) -> 9 | R155: =INT(RIGHT($AC155,2)/10) -> 9 | S155: =INT(RIGHT($AC155,3)/100) -> 0 | T155: =INT(RIGHT($AC155,4)/1000) -> 0 | U155: =INT(RIGHT($AC155,5)/10000) -> 0 | V155: =INT(RIGHT($AC155,6)/100000) -> 0 | W155: =((Q155*100000)+(R155*10000)+(S155*1000)+(T155*100)+(U155*10)+V155) -> 990000 | X155: =C$3+INT(RAND()*(C$4-C$3+1)) -> 885593236463 | Y155: =LEN(X155) -> 12 | Z155: =INT(RAND()*(Y155-C$5))+C$5 -> 2 | AA155: =Z155-C$5 -> 0 | AC155: =INT(RAND()*(POWER(10,$C$7))+1) -> 99 | AD155: =LEN(AC155) -> 2 | AE155: =INT(RAND()*(AD155-H$5))+H$5 -> 0 | AF155: =AE155-H$5 -> 0 | AG155: =(Q155*10^Q$6)+(R155*10^R$6)+(S155*10^S$6)+(T155*10^T$6)+(U155*10^U$6)+(V155*10^V$6) -> 0.99
A156: 30 | B156: =convnumberletter(C156) -> huit cent quatre-vingt-cinq milliards cinq cent quatre-vingt-treize millions deux cent trente-six mille trois | C156: =(E157*10^E$7)+(F157*10^F$7)+(G157*10^G$7)+(H157*10^H$7)+(I157*10^I$7)+(J157*10^J$7)+(K157*10^K$7)+(L157*10^L$7)+(M157*10^M$7)+(N157*10^N$7)+(O157*10^O$7)+(P157*10^P$7) -> 885593236003 | E156: =IF(Z155=12,TRUE,FALSE) -> FALSE | F156: =IF(Z155=11,TRUE,FALSE) -> FALSE | G156: =IF(Z155=10,TRUE,FALSE) -> FALSE | H156: =IF(Z155=9,TRUE,FALSE) -> FALSE | I156: =IF(Z155=8,TRUE,FALSE) -> FALSE | J156: =IF(Z155=7,TRUE,FALSE) -> FALSE | K156: =IF(Z155=6,TRUE,FALSE) -> FALSE | L156: =IF(Z155=5,TRUE,FALSE) -> FALSE | M156: =IF(Z155=4,TRUE,FALSE) -> FALSE | N156: =IF(Z155=3,TRUE,FALSE) -> FALSE | O156: =IF(Z155=2,TRUE,FALSE) -> TRUE | P156: =IF(Z155=1,TRUE,FALSE) -> FALSE | Q156: =IF(AND(Q155=0,R156=FALSE),FALSE,TRUE) -> TRUE | R156: =IF(AND(R155=0,S156=FALSE),FALSE,TRUE) -> TRUE | S156: =IF(AND(S155=0,T156=FALSE),FALSE,TRUE) -> FALSE | T156: =IF(AND(T155=0,U156=FALSE),FALSE,TRUE) -> FALSE | U156: =IF(AND(U155=0,V156=FALSE),FALSE,TRUE) -> FALSE | V156: =IF(V155=0,FALSE,TRUE) -> FALSE | W156: =W155/(1000000/W157) -> 99
B157: =convnumberletter(C157) -> quatre-vingt-dix-neuf | C157: =W156 -> 99 | E157: =IF(AND(E$7-1<$Z155,E$7-1>=$AA155),0,E155) -> 8 | F157: 8 | G157: 5 | H157: 5 | I157: 9 | J157: 3 | K157: 2 | L157: 3 | M157: =IF(AND(M$7-1<$Z155,M$7-1>=$AA155),0,M155) -> 6 | N157: =IF(AND(N$7-1<$Z155,N$7-1>=$AA155),0,N155) -> 0 | O157: =IF(AND(O$7-1<$Z155,O$7-1>=$AA155),0,O155) -> 0 | P157: =IF(AND(P$7-1<$Z155,P$7-1>=$AA155),0,P155) -> 3 | Q157: =IF(Q156=FALSE,"",Q155) -> 9 | R157: 9 | W157: =SUM(Q158:V158) -> 100
B158: =IF(C157>1,CONCATENATE(HLOOKUP(C158,$Q$7:$V$9,3,TRUE),"s"),HLOOKUP(C158,$Q$7:$V$9,3,TRUE)) -> centièmes | C158: =W157 -> 100 | Q158: =IF(AND(R157="",Q157<>""),Q$7,0) -> 0 | R158: =IF(AND(S157="",R157<>""),R$7,0) -> 100 | S158: =IF(AND(T157="",S157<>""),S$7,0) -> 0 | T158: =IF(AND(U157="",T157<>""),T$7,0) -> 0 | U158: =IF(AND(V157="",U157<>""),U$7,0) -> 0 | V158: =IF(AND(W158="",V157<>""),V$7,0) -> 0
B159: =IF($C$8="virgule",CONCATENATE(B156," virgule ",B157),CONCATENATE(B156," et ",B157," ",B158)) -> huit cent quatre-vingt-cinq milliards cinq cent quatre-vingt-treize millions deux cent trente-six mille trois virgule quatre-vingt-dix-neuf
E160: =IF(X160>100000000000,INT(RIGHT($X160,12)/100000000000),0) -> 1 | F160: =IF(X160>10000000000,INT(RIGHT($X160,11)/10000000000),0) -> 3 | G160: =IF(X160>1000000000,INT(RIGHT($X160,10)/1000000000),0) -> 4 | H160: =IF(X160>100000000,INT(RIGHT($X160,9)/100000000),0) -> 0 | I160: =IF(X160>10000000,INT(RIGHT($X160,8)/10000000),0) -> 4 | J160: =IF(X160>1000000,INT(RIGHT($X160,7)/1000000),0) -> 6 | K160: =IF(X160>100000,INT(RIGHT($X160,6)/100000),0) -> 1 | L160: =IF(X160>10000,INT(RIGHT($X160,5)/10000),0) -> 0 | M160: =IF(X160>1000,INT(RIGHT($X160,4)/1000),0) -> 6 | N160: =IF(X160>100,INT(RIGHT($X160,3)/100),0) -> 7 | O160: =IF(X160>10,INT(RIGHT($X160,2)/10),0) -> 3 | P160: =INT(RIGHT($X160,1)/1) -> 2 | Q160: =INT(RIGHT($AC160,1)) -> 7 | R160: =INT(RIGHT($AC160,2)/10) -> 4 | S160: =INT(RIGHT($AC160,3)/100) -> 0 | T160: =INT(RIGHT($AC160,4)/1000) -> 0 | U160: =INT(RIGHT($AC160,5)/10000) -> 0 | V160: =INT(RIGHT($AC160,6)/100000) -> 0 | W160: =((Q160*100000)+(R160*10000)+(S160*1000)+(T160*100)+(U160*10)+V160) -> 740000 | X160: =C$3+INT(RAND()*(C$4-C$3+1)) -> 134046106732 | Y160: =LEN(X160) -> 12 | Z160: =INT(RAND()*(Y160-C$5))+C$5 -> 8 | AA160: =Z160-C$5 -> 6 | AC160: =INT(RAND()*(POWER(10,$C$7))+1) -> 47 | AD160: =LEN(AC160) -> 2 | AE160: =INT(RAND()*(AD160-H$5))+H$5 -> 0 | AF160: =AE160-H$5 -> 0 | AG160: =(Q160*10^Q$6)+(R160*10^R$6)+(S160*10^S$6)+(T160*10^T$6)+(U160*10^U$6)+(V160*10^V$6) -> 0.74
A161: 31 | B161: =convnumberletter(C161) -> cent trente-quatre milliards six millions cent six mille sept cent trente-deux | C161: =(E162*10^E$7)+(F162*10^F$7)+(G162*10^G$7)+(H162*10^H$7)+(I162*10^I$7)+(J162*10^J$7)+(K162*10^K$7)+(L162*10^L$7)+(M162*10^M$7)+(N162*10^N$7)+(O162*10^O$7)+(P162*10^P$7) -> 134006106732 | E161: =IF(Z160=12,TRUE,FALSE) -> FALSE | F161: =IF(Z160=11,TRUE,FALSE) -> FALSE | G161: =IF(Z160=10,TRUE,FALSE) -> FALSE | H161: =IF(Z160=9,TRUE,FALSE) -> FALSE | I161: =IF(Z160=8,TRUE,FALSE) -> TRUE | J161: =IF(Z160=7,TRUE,FALSE) -> FALSE | K161: =IF(Z160=6,TRUE,FALSE) -> FALSE | L161: =IF(Z160=5,TRUE,FALSE) -> FALSE | M161: =IF(Z160=4,TRUE,FALSE) -> FALSE | N161: =IF(Z160=3,TRUE,FALSE) -> FALSE | O161: =IF(Z160=2,TRUE,FALSE) -> FALSE | P161: =IF(Z160=1,TRUE,FALSE) -> FALSE | Q161: =IF(AND(Q160=0,R161=FALSE),FALSE,TRUE) -> TRUE | R161: =IF(AND(R160=0,S161=FALSE),FALSE,TRUE) -> TRUE | S161: =IF(AND(S160=0,T161=FALSE),FALSE,TRUE) -> FALSE | T161: =IF(AND(T160=0,U161=FALSE),FALSE,TRUE) -> FALSE | U161: =IF(AND(U160=0,V161=FALSE),FALSE,TRUE) -> FALSE | V161: =IF(V160=0,FALSE,TRUE) -> FALSE | W161: =W160/(1000000/W162) -> 74
B162: =convnumberletter(C162) -> soixante-quatorze | C162: =W161 -> 74 | E162: =IF(AND(E$7-1<$Z160,E$7-1>=$AA160),0,E160) -> 1 | F162: 3 | G162: 4 | H162: 0 | I162: 0 | J162: 6 | K162: 1 | L162: 0 | M162: =IF(AND(M$7-1<$Z160,M$7-1>=$AA160),0,M160) -> 6 | N162: =IF(AND(N$7-1<$Z160,N$7-1>=$AA160),0,N160) -> 7 | O162: =IF(AND(O$7-1<$Z160,O$7-1>=$AA160),0,O160) -> 3 | P162: =IF(AND(P$7-1<$Z160,P$7-1>=$AA160),0,P160) -> 2 | Q162: =IF(Q161=FALSE,"",Q160) -> 7 | R162: 4 | W162: =SUM(Q163:V163) -> 100
B163: =IF(C162>1,CONCATENATE(HLOOKUP(C163,$Q$7:$V$9,3,TRUE),"s"),HLOOKUP(C163,$Q$7:$V$9,3,TRUE)) -> centièmes | C163: =W162 -> 100 | Q163: =IF(AND(R162="",Q162<>""),Q$7,0) -> 0 | R163: =IF(AND(S162="",R162<>""),R$7,0) -> 100 | S163: =IF(AND(T162="",S162<>""),S$7,0) -> 0 | T163: =IF(AND(U162="",T162<>""),T$7,0) -> 0 | U163: =IF(AND(V162="",U162<>""),U$7,0) -> 0 | V163: =IF(AND(W163="",V162<>""),V$7,0) -> 0
B164: =IF($C$8="virgule",CONCATENATE(B161," virgule ",B162),CONCATENATE(B161," et ",B162," ",B163)) -> cent trente-quatre milliards six millions cent six mille sept cent trente-deux virgule soixante-quatorze
E165: =IF(X165>100000000000,INT(RIGHT($X165,12)/100000000000),0) -> 6 | F165: =IF(X165>10000000000,INT(RIGHT($X165,11)/10000000000),0) -> 8 | G165: =IF(X165>1000000000,INT(RIGHT($X165,10)/1000000000),0) -> 5 | H165: =IF(X165>100000000,INT(RIGHT($X165,9)/100000000),0) -> 5 | I165: =IF(X165>10000000,INT(RIGHT($X165,8)/10000000),0) -> 0 | J165: =IF(X165>1000000,INT(RIGHT($X165,7)/1000000),0) -> 9 | K165: =IF(X165>100000,INT(RIGHT($X165,6)/100000),0) -> 8 | L165: =IF(X165>10000,INT(RIGHT($X165,5)/10000),0) -> 4 | M165: =IF(X165>1000,INT(RIGHT($X165,4)/1000),0) -> 0 | N165: =IF(X165>100,INT(RIGHT($X165,3)/100),0) -> 3 | O165: =IF(X165>10,INT(RIGHT($X165,2)/10),0) -> 5 | P165: =INT(RIGHT($X165,1)/1) -> 8 | Q165: =INT(RIGHT($AC165,1)) -> 9 | R165: =INT(RIGHT($AC165,2)/10) -> 0 | S165: =INT(RIGHT($AC165,3)/100) -> 0 | T165: =INT(RIGHT($AC165,4)/1000) -> 0 | U165: =INT(RIGHT($AC165,5)/10000) -> 0 | V165: =INT(RIGHT($AC165,6)/100000) -> 0 | W165: =((Q165*100000)+(R165*10000)+(S165*1000)+(T165*100)+(U165*10)+V165) -> 900000 | X165: =C$3+INT(RAND()*(C$4-C$3+1)) -> 685509840358 | Y165: =LEN(X165) -> 12 | Z165: =INT(RAND()*(Y165-C$5))+C$5 -> 7 | AA165: =Z165-C$5 -> 5 | AC165: =INT(RAND()*(POWER(10,$C$7))+1) -> 9 | AD165: =LEN(AC165) -> 1 | AE165: =INT(RAND()*(AD165-H$5))+H$5 -> 0 | AF165: =AE165-H$5 -> 0 | AG165: =(Q165*10^Q$6)+(R165*10^R$6)+(S165*10^S$6)+(T165*10^T$6)+(U165*10^U$6)+(V165*10^V$6) -> 0.9
A166: 32 | B166: =convnumberletter(C166) -> six cent quatre-vingt-cinq milliards cinq cents millions huit cent quarante mille trois cent cinquante-huit | C166: =(E167*10^E$7)+(F167*10^F$7)+(G167*10^G$7)+(H167*10^H$7)+(I167*10^I$7)+(J167*10^J$7)+(K167*10^K$7)+(L167*10^L$7)+(M167*10^M$7)+(N167*10^N$7)+(O167*10^O$7)+(P167*10^P$7) -> 685500840358 | E166: =IF(Z165=12,TRUE,FALSE) -> FALSE | F166: =IF(Z165=11,TRUE,FALSE) -> FALSE | G166: =IF(Z165=10,TRUE,FALSE) -> FALSE | H166: =IF(Z165=9,TRUE,FALSE) -> FALSE | I166: =IF(Z165=8,TRUE,FALSE) -> FALSE | J166: =IF(Z165=7,TRUE,FALSE) -> TRUE | K166: =IF(Z165=6,TRUE,FALSE) -> FALSE | L166: =IF(Z165=5,TRUE,FALSE) -> FALSE | M166: =IF(Z165=4,TRUE,FALSE) -> FALSE | N166: =IF(Z165=3,TRUE,FALSE) -> FALSE | O166: =IF(Z165=2,TRUE,FALSE) -> FALSE | P166: =IF(Z165=1,TRUE,FALSE) -> FALSE | Q166: =IF(AND(Q165=0,R166=FALSE),FALSE,TRUE) -> TRUE | R166: =IF(AND(R165=0,S166=FALSE),FALSE,TRUE) -> FALSE | S166: =IF(AND(S165=0,T166=FALSE),FALSE,TRUE) -> FALSE | T166: =IF(AND(T165=0,U166=FALSE),FALSE,TRUE) -> FALSE | U166: =IF(AND(U165=0,V166=FALSE),FALSE,TRUE) -> FALSE | V166: =IF(V165=0,FALSE,TRUE) -> FALSE | W166: =W165/(1000000/W167) -> 9
B167: =convnumberletter(C167) -> neuf | C167: =W166 -> 9 | E167: =IF(AND(E$7-1<$Z165,E$7-1>=$AA165),0,E165) -> 6 | F167: 8 | G167: 5 | H167: 5 | I167: 0 | J167: 0 | K167: 8 | L167: 4 | M167: =IF(AND(M$7-1<$Z165,M$7-1>=$AA165),0,M165) -> 0 | N167: =IF(AND(N$7-1<$Z165,N$7-1>=$AA165),0,N165) -> 3 | O167: =IF(AND(O$7-1<$Z165,O$7-1>=$AA165),0,O165) -> 5 | P167: =IF(AND(P$7-1<$Z165,P$7-1>=$AA165),0,P165) -> 8 | Q167: =IF(Q166=FALSE,"",Q165) -> 9 | W167: =SUM(Q168:V168) -> 10
B168: =IF(C167>1,CONCATENATE(HLOOKUP(C168,$Q$7:$V$9,3,TRUE),"s"),HLOOKUP(C168,$Q$7:$V$9,3,TRUE)) -> dixièmes | C168: =W167 -> 10 | Q168: =IF(AND(R167="",Q167<>""),Q$7,0) -> 10 | R168: =IF(AND(S167="",R167<>""),R$7,0) -> 0 | S168: =IF(AND(T167="",S167<>""),S$7,0) -> 0 | T168: =IF(AND(U167="",T167<>""),T$7,0) -> 0 | U168: =IF(AND(V167="",U167<>""),U$7,0) -> 0 | V168: =IF(AND(W168="",V167<>""),V$7,0) -> 0
B169: =IF($C$8="virgule",CONCATENATE(B166," virgule ",B167),CONCATENATE(B166," et ",B167," ",B168)) -> six cent quatre-vingt-cinq milliards cinq cents millions huit cent quarante mille trois cent cinquante-huit virgule neuf
E170: =IF(X170>100000000000,INT(RIGHT($X170,12)/100000000000),0) -> 3 | F170: =IF(X170>10000000000,INT(RIGHT($X170,11)/10000000000),0) -> 8 | G170: =IF(X170>1000000000,INT(RIGHT($X170,10)/1000000000),0) -> 1 | H170: =IF(X170>100000000,INT(RIGHT($X170,9)/100000000),0) -> 2 | I170: =IF(X170>10000000,INT(RIGHT($X170,8)/10000000),0) -> 9 | J170: =IF(X170>1000000,INT(RIGHT($X170,7)/1000000),0) -> 5 | K170: =IF(X170>100000,INT(RIGHT($X170,6)/100000),0) -> 5 | L170: =IF(X170>10000,INT(RIGHT($X170,5)/10000),0) -> 4 | M170: =IF(X170>1000,INT(RIGHT($X170,4)/1000),0) -> 0 | N170: =IF(X170>100,INT(RIGHT($X170,3)/100),0) -> 9 | O170: =IF(X170>10,INT(RIGHT($X170,2)/10),0) -> 6 | P170: =INT(RIGHT($X170,1)/1) -> 6 | Q170: =INT(RIGHT($AC170,1)) -> 1 | R170: =INT(RIGHT($AC170,2)/10) -> 6 | S170: =INT(RIGHT($AC170,3)/100) -> 0 | T170: =INT(RIGHT($AC170,4)/1000) -> 0 | U170: =INT(RIGHT($AC170,5)/10000) -> 0 | V170: =INT(RIGHT($AC170,6)/100000) -> 0 | W170: =((Q170*100000)+(R170*10000)+(S170*1000)+(T170*100)+(U170*10)+V170) -> 160000 | X170: =C$3+INT(RAND()*(C$4-C$3+1)) -> 381295540966 | Y170: =LEN(X170) -> 12 | Z170: =INT(RAND()*(Y170-C$5))+C$5 -> 3 | AA170: =Z170-C$5 -> 1 | AC170: =INT(RAND()*(POWER(10,$C$7))+1) -> 61 | AD170: =LEN(AC170) -> 2 | AE170: =INT(RAND()*(AD170-H$5))+H$5 -> 1 | AF170: =AE170-H$5 -> 1 | AG170: =(Q170*10^Q$6)+(R170*10^R$6)+(S170*10^S$6)+(T170*10^T$6)+(U170*10^U$6)+(V170*10^V$6) -> 0.16
A171: 33 | B171: =convnumberletter(C171) -> trois cent quatre-vingt-un milliards deux cent quatre-vingt-quinze millions cinq cent quarante mille soixante-six | C171: =(E172*10^E$7)+(F172*10^F$7)+(G172*10^G$7)+(H172*10^H$7)+(I172*10^I$7)+(J172*10^J$7)+(K172*10^K$7)+(L172*10^L$7)+(M172*10^M$7)+(N172*10^N$7)+(O172*10^O$7)+(P172*10^P$7) -> 381295540066 | E171: =IF(Z170=12,TRUE,FALSE) -> FALSE | F171: =IF(Z170=11,TRUE,FALSE) -> FALSE | G171: =IF(Z170=10,TRUE,FALSE) -> FALSE | H171: =IF(Z170=9,TRUE,FALSE) -> FALSE | I171: =IF(Z170=8,TRUE,FALSE) -> FALSE | J171: =IF(Z170=7,TRUE,FALSE) -> FALSE | K171: =IF(Z170=6,TRUE,FALSE) -> FALSE | L171: =IF(Z170=5,TRUE,FALSE) -> FALSE | M171: =IF(Z170=4,TRUE,FALSE) -> FALSE | N171: =IF(Z170=3,TRUE,FALSE) -> TRUE | O171: =IF(Z170=2,TRUE,FALSE) -> FALSE | P171: =IF(Z170=1,TRUE,FALSE) -> FALSE | Q171: =IF(AND(Q170=0,R171=FALSE),FALSE,TRUE) -> TRUE | R171: =IF(AND(R170=0,S171=FALSE),FALSE,TRUE) -> TRUE | S171: =IF(AND(S170=0,T171=FALSE),FALSE,TRUE) -> FALSE | T171: =IF(AND(T170=0,U171=FALSE),FALSE,TRUE) -> FALSE | U171: =IF(AND(U170=0,V171=FALSE),FALSE,TRUE) -> FALSE | V171: =IF(V170=0,FALSE,TRUE) -> FALSE | W171: =W170/(1000000/W172) -> 16
B172: =convnumberletter(C172) -> seize | C172: =W171 -> 16 | E172: =IF(AND(E$7-1<$Z170,E$7-1>=$AA170),0,E170) -> 3 | F172: 8 | G172: 1 | H172: 2 | I172: 9 | J172: 5 | K172: 5 | L172: 4 | M172: =IF(AND(M$7-1<$Z170,M$7-1>=$AA170),0,M170) -> 0 | N172: =IF(AND(N$7-1<$Z170,N$7-1>=$AA170),0,N170) -> 0 | O172: =IF(AND(O$7-1<$Z170,O$7-1>=$AA170),0,O170) -> 6 | P172: =IF(AND(P$7-1<$Z170,P$7-1>=$AA170),0,P170) -> 6 | Q172: =IF(Q171=FALSE,"",Q170) -> 1 | R172: 6 | W172: =SUM(Q173:V173) -> 100
B173: =IF(C172>1,CONCATENATE(HLOOKUP(C173,$Q$7:$V$9,3,TRUE),"s"),HLOOKUP(C173,$Q$7:$V$9,3,TRUE)) -> centièmes | C173: =W172 -> 100 | Q173: =IF(AND(R172="",Q172<>""),Q$7,0) -> 0 | R173: =IF(AND(S172="",R172<>""),R$7,0) -> 100 | S173: =IF(AND(T172="",S172<>""),S$7,0) -> 0 | T173: =IF(AND(U172="",T172<>""),T$7,0) -> 0 | U173: =IF(AND(V172="",U172<>""),U$7,0) -> 0 | V173: =IF(AND(W173="",V172<>""),V$7,0) -> 0
B174: =IF($C$8="virgule",CONCATENATE(B171," virgule ",B172),CONCATENATE(B171," et ",B172," ",B173)) -> trois cent quatre-vingt-un milliards deux cent quatre-vingt-quinze millions cinq cent quarante mille soixante-six virgule seize
E175: =IF(X175>100000000000,INT(RIGHT($X175,12)/100000000000),0) -> 8 | F175: =IF(X175>10000000000,INT(RIGHT($X175,11)/10000000000),0) -> 4 | G175: =IF(X175>1000000000,INT(RIGHT($X175,10)/1000000000),0) -> 6 | H175: =IF(X175>100000000,INT(RIGHT($X175,9)/100000000),0) -> 4 | I175: =IF(X175>10000000,INT(RIGHT($X175,8)/10000000),0) -> 4 | J175: =IF(X175>1000000,INT(RIGHT($X175,7)/1000000),0) -> 6 | K175: =IF(X175>100000,INT(RIGHT($X175,6)/100000),0) -> 8 | L175: =IF(X175>10000,INT(RIGHT($X175,5)/10000),0) -> 1 | M175: =IF(X175>1000,INT(RIGHT($X175,4)/1000),0) -> 1 | N175: =IF(X175>100,INT(RIGHT($X175,3)/100),0) -> 4 | O175: =IF(X175>10,INT(RIGHT($X175,2)/10),0) -> 0 | P175: =INT(RIGHT($X175,1)/1) -> 5 | Q175: =INT(RIGHT($AC175,1)) -> 4 | R175: =INT(RIGHT($AC175,2)/10) -> 6 | S175: =INT(RIGHT($AC175,3)/100) -> 0 | T175: =INT(RIGHT($AC175,4)/1000) -> 0 | U175: =INT(RIGHT($AC175,5)/10000) -> 0 | V175: =INT(RIGHT($AC175,6)/100000) -> 0 | W175: =((Q175*100000)+(R175*10000)+(S175*1000)+(T175*100)+(U175*10)+V175) -> 460000 | X175: =C$3+INT(RAND()*(C$4-C$3+1)) -> 846446811405 | Y175: =LEN(X175) -> 12 | Z175: =INT(RAND()*(Y175-C$5))+C$5 -> 11 | AA175: =Z175-C$5 -> 9 | AC175: =INT(RAND()*(POWER(10,$C$7))+1) -> 64 | AD175: =LEN(AC175) -> 2 | AE175: =INT(RAND()*(AD175-H$5))+H$5 -> 1 | AF175: =AE175-H$5 -> 1
A176: 34 | B176: =convnumberletter(C176) -> six milliards quatre cent quarante-six millions huit cent onze mille quatre cent cinq | C176: =(E177*10^E$7)+(F177*10^F$7)+(G177*10^G$7)+(H177*10^H$7)+(I177*10^I$7)+(J177*10^J$7)+(K177*10^K$7)+(L177*10^L$7)+(M177*10^M$7)+(N177*10^N$7)+(O177*10^O$7)+(P177*10^P$7) -> 6446811405 | E176: =IF(Z175=12,TRUE,FALSE) -> FALSE | F176: =IF(Z175=11,TRUE,FALSE) -> TRUE | G176: =IF(Z175=10,TRUE,FALSE) -> FALSE | H176: =IF(Z175=9,TRUE,FALSE) -> FALSE | I176: =IF(Z175=8,TRUE,FALSE) -> FALSE | J176: =IF(Z175=7,TRUE,FALSE) -> FALSE | K176: =IF(Z175=6,TRUE,FALSE) -> FALSE | L176: =IF(Z175=5,TRUE,FALSE) -> FALSE | M176: =IF(Z175=4,TRUE,FALSE) -> FALSE | N176: =IF(Z175=3,TRUE,FALSE) -> FALSE | O176: =IF(Z175=2,TRUE,FALSE) -> FALSE | P176: =IF(Z175=1,TRUE,FALSE) -> FALSE | Q176: =IF(AND(Q175=0,R176=FALSE),FALSE,TRUE) -> TRUE | R176: =IF(AND(R175=0,S176=FALSE),FALSE,TRUE) -> TRUE | S176: =IF(AND(S175=0,T176=FALSE),FALSE,TRUE) -> FALSE | T176: =IF(AND(T175=0,U176=FALSE),FALSE,TRUE) -> FALSE | U176: =IF(AND(U175=0,V176=FALSE),FALSE,TRUE) -> FALSE | V176: =IF(V175=0,FALSE,TRUE) -> FALSE | W176: =W175/(1000000/W177) -> 46
B177: =convnumberletter(C177) -> quarante-six | C177: =W176 -> 46 | E177: =IF(AND(E$7-1<$Z175,E$7-1>=$AA175),0,E175) -> 0 | F177: 0 | G177: 6 | H177: 4 | I177: 4 | J177: 6 | K177: 8 | L177: 1 | M177: =IF(AND(M$7-1<$Z175,M$7-1>=$AA175),0,M175) -> 1 | N177: =IF(AND(N$7-1<$Z175,N$7-1>=$AA175),0,N175) -> 4 | O177: =IF(AND(O$7-1<$Z175,O$7-1>=$AA175),0,O175) -> 0 | P177: =IF(AND(P$7-1<$Z175,P$7-1>=$AA175),0,P175) -> 5 | Q177: =IF(Q176=FALSE,"",Q175) -> 4 | R177: 6 | W177: =SUM(Q178:V178) -> 100
B178: =IF(C177>1,CONCATENATE(HLOOKUP(C178,$Q$7:$V$9,3,TRUE),"s"),HLOOKUP(C178,$Q$7:$V$9,3,TRUE)) -> centièmes | C178: =W177 -> 100 | Q178: =IF(AND(R177="",Q177<>""),Q$7,0) -> 0 | R178: =IF(AND(S177="",R177<>""),R$7,0) -> 100 | S178: =IF(AND(T177="",S177<>""),S$7,0) -> 0 | T178: =IF(AND(U177="",T177<>""),T$7,0) -> 0 | U178: =IF(AND(V177="",U177<>""),U$7,0) -> 0 | V178: =IF(AND(W178="",V177<>""),V$7,0) -> 0
B179: =IF($C$8="virgule",CONCATENATE(B176," virgule ",B177),CONCATENATE(B176," et ",B177," ",B178)) -> six milliards quatre cent quarante-six millions huit cent onze mille quatre cent cinq virgule quarante-six
E180: =IF(X180>100000000000,INT(RIGHT($X180,12)/100000000000),0) -> 4 | F180: =IF(X180>10000000000,INT(RIGHT($X180,11)/10000000000),0) -> 1 | G180: =IF(X180>1000000000,INT(RIGHT($X180,10)/1000000000),0) -> 3 | H180: =IF(X180>100000000,INT(RIGHT($X180,9)/100000000),0) -> 1 | I180: =IF(X180>10000000,INT(RIGHT($X180,8)/10000000),0) -> 3 | J180: =IF(X180>1000000,INT(RIGHT($X180,7)/1000000),0) -> 6 | K180: =IF(X180>100000,INT(RIGHT($X180,6)/100000),0) -> 8 | L180: =IF(X180>10000,INT(RIGHT($X180,5)/10000),0) -> 4 | M180: =IF(X180>1000,INT(RIGHT($X180,4)/1000),0) -> 8 | N180: =IF(X180>100,INT(RIGHT($X180,3)/100),0) -> 1 | O180: =IF(X180>10,INT(RIGHT($X180,2)/10),0) -> 8 | P180: =INT(RIGHT($X180,1)/1) -> 5 | Q180: =INT(RIGHT($AC180,1)) -> 6 | R180: =INT(RIGHT($AC180,2)/10) -> 5 | S180: =INT(RIGHT($AC180,3)/100) -> 0 | T180: =INT(RIGHT($AC180,4)/1000) -> 0 | U180: =INT(RIGHT($AC180,5)/10000) -> 0 | V180: =INT(RIGHT($AC180,6)/100000) -> 0 | W180: =((Q180*100000)+(R180*10000)+(S180*1000)+(T180*100)+(U180*10)+V180) -> 650000 | X180: =C$3+INT(RAND()*(C$4-C$3+1)) -> 413136848185 | Y180: =LEN(X180) -> 12 | Z180: =INT(RAND()*(Y180-C$5))+C$5 -> 7 | AA180: =Z180-C$5 -> 5 | AC180: =INT(RAND()*(POWER(10,$C$7))+1) -> 56 | AD180: =LEN(AC180) -> 2 | AE180: =INT(RAND()*(AD180-H$5))+H$5 -> 0 | AF180: =AE180-H$5 -> 0
A181: 35 | B181: =convnumberletter(C181) -> quatre cent treize milliards cent millions huit cent quarante-huit mille cent quatre-vingt-cinq | C181: =(E182*10^E$7)+(F182*10^F$7)+(G182*10^G$7)+(H182*10^H$7)+(I182*10^I$7)+(J182*10^J$7)+(K182*10^K$7)+(L182*10^L$7)+(M182*10^M$7)+(N182*10^N$7)+(O182*10^O$7)+(P182*10^P$7) -> 413100848185 | E181: =IF(Z180=12,TRUE,FALSE) -> FALSE | F181: =IF(Z180=11,TRUE,FALSE) -> FALSE | G181: =IF(Z180=10,TRUE,FALSE) -> FALSE | H181: =IF(Z180=9,TRUE,FALSE) -> FALSE | I181: =IF(Z180=8,TRUE,FALSE) -> FALSE | J181: =IF(Z180=7,TRUE,FALSE) -> TRUE | K181: =IF(Z180=6,TRUE,FALSE) -> FALSE | L181: =IF(Z180=5,TRUE,FALSE) -> FALSE | M181: =IF(Z180=4,TRUE,FALSE) -> FALSE | N181: =IF(Z180=3,TRUE,FALSE) -> FALSE | O181: =IF(Z180=2,TRUE,FALSE) -> FALSE | P181: =IF(Z180=1,TRUE,FALSE) -> FALSE | Q181: =IF(AND(Q180=0,R181=FALSE),FALSE,TRUE) -> TRUE | R181: =IF(AND(R180=0,S181=FALSE),FALSE,TRUE) -> TRUE | S181: =IF(AND(S180=0,T181=FALSE),FALSE,TRUE) -> FALSE | T181: =IF(AND(T180=0,U181=FALSE),FALSE,TRUE) -> FALSE | U181: =IF(AND(U180=0,V181=FALSE),FALSE,TRUE) -> FALSE | V181: =IF(V180=0,FALSE,TRUE) -> FALSE | W181: =W180/(1000000/W182) -> 65
B182: =convnumberletter(C182) -> soixante-cinq | C182: =W181 -> 65 | E182: =IF(AND(E$7-1<$Z180,E$7-1>=$AA180),0,E180) -> 4 | F182: 1 | G182: 3 | H182: 1 | I182: 0 | J182: 0 | K182: 8 | L182: 4 | M182: =IF(AND(M$7-1<$Z180,M$7-1>=$AA180),0,M180) -> 8 | N182: =IF(AND(N$7-1<$Z180,N$7-1>=$AA180),0,N180) -> 1 | O182: =IF(AND(O$7-1<$Z180,O$7-1>=$AA180),0,O180) -> 8 | P182: =IF(AND(P$7-1<$Z180,P$7-1>=$AA180),0,P180) -> 5 | Q182: =IF(Q181=FALSE,"",Q180) -> 6 | R182: 5 | W182: =SUM(Q183:V183) -> 100
B183: =IF(C182>1,CONCATENATE(HLOOKUP(C183,$Q$7:$V$9,3,TRUE),"s"),HLOOKUP(C183,$Q$7:$V$9,3,TRUE)) -> centièmes | C183: =W182 -> 100 | Q183: =IF(AND(R182="",Q182<>""),Q$7,0) -> 0 | R183: =IF(AND(S182="",R182<>""),R$7,0) -> 100 | S183: =IF(AND(T182="",S182<>""),S$7,0) -> 0 | T183: =IF(AND(U182="",T182<>""),T$7,0) -> 0 | U183: =IF(AND(V182="",U182<>""),U$7,0) -> 0 | V183: =IF(AND(W183="",V182<>""),V$7,0) -> 0
B184: =IF($C$8="virgule",CONCATENATE(B181," virgule ",B182),CONCATENATE(B181," et ",B182," ",B183)) -> quatre cent treize milliards cent millions huit cent quarante-huit mille cent quatre-vingt-cinq virgule soixante-cinq
E185: =IF(X185>100000000000,INT(RIGHT($X185,12)/100000000000),0) -> 0 | F185: =IF(X185>10000000000,INT(RIGHT($X185,11)/10000000000),0) -> 1 | G185: =IF(X185>1000000000,INT(RIGHT($X185,10)/1000000000),0) -> 3 | H185: =IF(X185>100000000,INT(RIGHT($X185,9)/100000000),0) -> 1 | I185: =IF(X185>10000000,INT(RIGHT($X185,8)/10000000),0) -> 1 | J185: =IF(X185>1000000,INT(RIGHT($X185,7)/1000000),0) -> 4 | K185: =IF(X185>100000,INT(RIGHT($X185,6)/100000),0) -> 7 | L185: =IF(X185>10000,INT(RIGHT($X185,5)/10000),0) -> 6 | M185: =IF(X185>1000,INT(RIGHT($X185,4)/1000),0) -> 5 | N185: =IF(X185>100,INT(RIGHT($X185,3)/100),0) -> 3 | O185: =IF(X185>10,INT(RIGHT($X185,2)/10),0) -> 6 | P185: =INT(RIGHT($X185,1)/1) -> 8 | Q185: =INT(RIGHT($AC185,1)) -> 9 | R185: =INT(RIGHT($AC185,2)/10) -> 8 | S185: =INT(RIGHT($AC185,3)/100) -> 0 | T185: =INT(RIGHT($AC185,4)/1000) -> 0 | U185: =INT(RIGHT($AC185,5)/10000) -> 0 | V185: =INT(RIGHT($AC185,6)/100000) -> 0 | W185: =((Q185*100000)+(R185*10000)+(S185*1000)+(T185*100)+(U185*10)+V185) -> 980000 | X185: =C$3+INT(RAND()*(C$4-C$3+1)) -> 13114765368 | Y185: =LEN(X185) -> 11 | Z185: =INT(RAND()*(Y185-C$5))+C$5 -> 4 | AA185: =Z185-C$5 -> 2 | AC185: =INT(RAND()*(POWER(10,$C$7))+1) -> 89 | AD185: =LEN(AC185) -> 2 | AE185: =INT(RAND()*(AD185-H$5))+H$5 -> 1 | AF185: =AE185-H$5 -> 1
A186: 36 | B186: =convnumberletter(C186) -> treize milliards cent quatorze millions sept cents mille trois cent soixante-huit | C186: =(E187*10^E$7)+(F187*10^F$7)+(G187*10^G$7)+(H187*10^H$7)+(I187*10^I$7)+(J187*10^J$7)+(K187*10^K$7)+(L187*10^L$7)+(M187*10^M$7)+(N187*10^N$7)+(O187*10^O$7)+(P187*10^P$7) -> 13114700368 | E186: =IF(Z185=12,TRUE,FALSE) -> FALSE | F186: =IF(Z185=11,TRUE,FALSE) -> FALSE | G186: =IF(Z185=10,TRUE,FALSE) -> FALSE | H186: =IF(Z185=9,TRUE,FALSE) -> FALSE | I186: =IF(Z185=8,TRUE,FALSE) -> FALSE | J186: =IF(Z185=7,TRUE,FALSE) -> FALSE | K186: =IF(Z185=6,TRUE,FALSE) -> FALSE | L186: =IF(Z185=5,TRUE,FALSE) -> FALSE | M186: =IF(Z185=4,TRUE,FALSE) -> TRUE | N186: =IF(Z185=3,TRUE,FALSE) -> FALSE | O186: =IF(Z185=2,TRUE,FALSE) -> FALSE | P186: =IF(Z185=1,TRUE,FALSE) -> FALSE | Q186: =IF(AND(Q185=0,R186=FALSE),FALSE,TRUE) -> TRUE | R186: =IF(AND(R185=0,S186=FALSE),FALSE,TRUE) -> TRUE | S186: =IF(AND(S185=0,T186=FALSE),FALSE,TRUE) -> FALSE | T186: =IF(AND(T185=0,U186=FALSE),FALSE,TRUE) -> FALSE | U186: =IF(AND(U185=0,V186=FALSE),FALSE,TRUE) -> FALSE | V186: =IF(V185=0,FALSE,TRUE) -> FALSE | W186: =W185/(1000000/W187) -> 98
B187: =convnumberletter(C187) -> quatre-vingt-dix-huit | C187: =W186 -> 98 | E187: =IF(AND(E$7-1<$Z185,E$7-1>=$AA185),0,E185) -> 0 | F187: 1 | G187: 3 | H187: 1 | I187: 1 | J187: 4 | K187: 7 | L187: 0 | M187: =IF(AND(M$7-1<$Z185,M$7-1>=$AA185),0,M185) -> 0 | N187: =IF(AND(N$7-1<$Z185,N$7-1>=$AA185),0,N185) -> 3 | O187: =IF(AND(O$7-1<$Z185,O$7-1>=$AA185),0,O185) -> 6 | P187: =IF(AND(P$7-1<$Z185,P$7-1>=$AA185),0,P185) -> 8 | Q187: =IF(Q186=FALSE,"",Q185) -> 9 | R187: 8 | W187: =SUM(Q188:V188) -> 100
B188: =IF(C187>1,CONCATENATE(HLOOKUP(C188,$Q$7:$V$9,3,TRUE),"s"),HLOOKUP(C188,$Q$7:$V$9,3,TRUE)) -> centièmes | C188: =W187 -> 100 | Q188: =IF(AND(R187="",Q187<>""),Q$7,0) -> 0 | R188: =IF(AND(S187="",R187<>""),R$7,0) -> 100 | S188: =IF(AND(T187="",S187<>""),S$7,0) -> 0 | T188: =IF(AND(U187="",T187<>""),T$7,0) -> 0 | U188: =IF(AND(V187="",U187<>""),U$7,0) -> 0 | V188: =IF(AND(W188="",V187<>""),V$7,0) -> 0
B189: =IF($C$8="virgule",CONCATENATE(B186," virgule ",B187),CONCATENATE(B186," et ",B187," ",B188)) -> treize milliards cent quatorze millions sept cents mille trois cent soixante-huit virgule quatre-vingt-dix-huit
E190: =IF(X190>100000000000,INT(RIGHT($X190,12)/100000000000),0) -> 3 | F190: =IF(X190>10000000000,INT(RIGHT($X190,11)/10000000000),0) -> 3 | G190: =IF(X190>1000000000,INT(RIGHT($X190,10)/1000000000),0) -> 4 | H190: =IF(X190>100000000,INT(RIGHT($X190,9)/100000000),0) -> 5 | I190: =IF(X190>10000000,INT(RIGHT($X190,8)/10000000),0) -> 1 | J190: =IF(X190>1000000,INT(RIGHT($X190,7)/1000000),0) -> 9 | K190: =IF(X190>100000,INT(RIGHT($X190,6)/100000),0) -> 0 | L190: =IF(X190>10000,INT(RIGHT($X190,5)/10000),0) -> 5 | M190: =IF(X190>1000,INT(RIGHT($X190,4)/1000),0) -> 1 | N190: =IF(X190>100,INT(RIGHT($X190,3)/100),0) -> 4 | O190: =IF(X190>10,INT(RIGHT($X190,2)/10),0) -> 6 | P190: =INT(RIGHT($X190,1)/1) -> 0 | Q190: =INT(RIGHT($AC190,1)) -> 3 | R190: =INT(RIGHT($AC190,2)/10) -> 7 | S190: =INT(RIGHT($AC190,3)/100) -> 0 | T190: =INT(RIGHT($AC190,4)/1000) -> 0 | U190: =INT(RIGHT($AC190,5)/10000) -> 0 | V190: =INT(RIGHT($AC190,6)/100000) -> 0 | W190: =((Q190*100000)+(R190*10000)+(S190*1000)+(T190*100)+(U190*10)+V190) -> 370000 | X190: =C$3+INT(RAND()*(C$4-C$3+1)) -> 334519051460 | Y190: =LEN(X190) -> 12 | Z190: =INT(RAND()*(Y190-C$5))+C$5 -> 2 | AA190: =Z190-C$5 -> 0 | AC190: =INT(RAND()*(POWER(10,$C$7))+1) -> 73 | AD190: =LEN(AC190) -> 2 | AE190: =INT(RAND()*(AD190-H$5))+H$5 -> 1 | AF190: =AE190-H$5 -> 1
A191: 37 | B191: =convnumberletter(C191) -> trois cent trente-quatre milliards cinq cent dix-neuf millions cinquante et un mille | C191: =(E192*10^E$7)+(F192*10^F$7)+(G192*10^G$7)+(H192*10^H$7)+(I192*10^I$7)+(J192*10^J$7)+(K192*10^K$7)+(L192*10^L$7)+(M192*10^M$7)+(N192*10^N$7)+(O192*10^O$7)+(P192*10^P$7) -> 334519051000 | E191: =IF(Z190=12,TRUE,FALSE) -> FALSE | F191: =IF(Z190=11,TRUE,FALSE) -> FALSE | G191: =IF(Z190=10,TRUE,FALSE) -> FALSE | H191: =IF(Z190=9,TRUE,FALSE) -> FALSE | I191: =IF(Z190=8,TRUE,FALSE) -> FALSE | J191: =IF(Z190=7,TRUE,FALSE) -> FALSE | K191: =IF(Z190=6,TRUE,FALSE) -> FALSE | L191: =IF(Z190=5,TRUE,FALSE) -> FALSE | M191: =IF(Z190=4,TRUE,FALSE) -> FALSE | N191: =IF(Z190=3,TRUE,FALSE) -> FALSE | O191: =IF(Z190=2,TRUE,FALSE) -> TRUE | P191: =IF(Z190=1,TRUE,FALSE) -> FALSE | Q191: =IF(AND(Q190=0,R191=FALSE),FALSE,TRUE) -> TRUE | R191: =IF(AND(R190=0,S191=FALSE),FALSE,TRUE) -> TRUE | S191: =IF(AND(S190=0,T191=FALSE),FALSE,TRUE) -> FALSE | T191: =IF(AND(T190=0,U191=FALSE),FALSE,TRUE) -> FALSE | U191: =IF(AND(U190=0,V191=FALSE),FALSE,TRUE) -> FALSE | V191: =IF(V190=0,FALSE,TRUE) -> FALSE | W191: =W190/(1000000/W192) -> 37
B192: =convnumberletter(C192) -> trente-sept | C192: =W191 -> 37 | E192: =IF(AND(E$7-1<$Z190,E$7-1>=$AA190),0,E190) -> 3 | F192: 3 | G192: 4 | H192: 5 | I192: 1 | J192: 9 | K192: 0 | L192: 5 | M192: =IF(AND(M$7-1<$Z190,M$7-1>=$AA190),0,M190) -> 1 | N192: =IF(AND(N$7-1<$Z190,N$7-1>=$AA190),0,N190) -> 0 | O192: =IF(AND(O$7-1<$Z190,O$7-1>=$AA190),0,O190) -> 0 | P192: =IF(AND(P$7-1<$Z190,P$7-1>=$AA190),0,P190) -> 0 | Q192: =IF(Q191=FALSE,"",Q190) -> 3 | R192: 7 | W192: =SUM(Q193:V193) -> 100
B193: =IF(C192>1,CONCATENATE(HLOOKUP(C193,$Q$7:$V$9,3,TRUE),"s"),HLOOKUP(C193,$Q$7:$V$9,3,TRUE)) -> centièmes | C193: =W192 -> 100 | Q193: =IF(AND(R192="",Q192<>""),Q$7,0) -> 0 | R193: =IF(AND(S192="",R192<>""),R$7,0) -> 100 | S193: =IF(AND(T192="",S192<>""),S$7,0) -> 0 | T193: =IF(AND(U192="",T192<>""),T$7,0) -> 0 | U193: =IF(AND(V192="",U192<>""),U$7,0) -> 0 | V193: =IF(AND(W193="",V192<>""),V$7,0) -> 0
B194: =IF($C$8="virgule",CONCATENATE(B191," virgule ",B192),CONCATENATE(B191," et ",B192," ",B193)) -> trois cent trente-quatre milliards cinq cent dix-neuf millions cinquante et un mille virgule trente-sept
E195: =IF(X195>100000000000,INT(RIGHT($X195,12)/100000000000),0) -> 5 | F195: =IF(X195>10000000000,INT(RIGHT($X195,11)/10000000000),0) -> 4 | G195: =IF(X195>1000000000,INT(RIGHT($X195,10)/1000000000),0) -> 7 | H195: =IF(X195>100000000,INT(RIGHT($X195,9)/100000000),0) -> 2 | I195: =IF(X195>10000000,INT(RIGHT($X195,8)/10000000),0) -> 6 | J195: =IF(X195>1000000,INT(RIGHT($X195,7)/1000000),0) -> 7 | K195: =IF(X195>100000,INT(RIGHT($X195,6)/100000),0) -> 9 | L195: =IF(X195>10000,INT(RIGHT($X195,5)/10000),0) -> 5 | M195: =IF(X195>1000,INT(RIGHT($X195,4)/1000),0) -> 3 | N195: =IF(X195>100,INT(RIGHT($X195,3)/100),0) -> 7 | O195: =IF(X195>10,INT(RIGHT($X195,2)/10),0) -> 4 | P195: =INT(RIGHT($X195,1)/1) -> 0 | Q195: =INT(RIGHT($AC195,1)) -> 9 | R195: =INT(RIGHT($AC195,2)/10) -> 9 | S195: =INT(RIGHT($AC195,3)/100) -> 0 | T195: =INT(RIGHT($AC195,4)/1000) -> 0 | U195: =INT(RIGHT($AC195,5)/10000) -> 0 | V195: =INT(RIGHT($AC195,6)/100000) -> 0 | W195: =((Q195*100000)+(R195*10000)+(S195*1000)+(T195*100)+(U195*10)+V195) -> 990000 | X195: =C$3+INT(RAND()*(C$4-C$3+1)) -> 547267953740 | Y195: =LEN(X195) -> 12 | Z195: =INT(RAND()*(Y195-C$5))+C$5 -> 2 | AA195: =Z195-C$5 -> 0 | AC195: =INT(RAND()*(POWER(10,$C$7))+1) -> 99 | AD195: =LEN(AC195) -> 2 | AE195: =INT(RAND()*(AD195-H$5))+H$5 -> 0 | AF195: =AE195-H$5 -> 0
A196: 38 | B196: =convnumberletter(C196) -> cinq cent quarante-sept milliards deux cent soixante-sept millions neuf cent cinquante-trois mille | C196: =(E197*10^E$7)+(F197*10^F$7)+(G197*10^G$7)+(H197*10^H$7)+(I197*10^I$7)+(J197*10^J$7)+(K197*10^K$7)+(L197*10^L$7)+(M197*10^M$7)+(N197*10^N$7)+(O197*10^O$7)+(P197*10^P$7) -> 547267953000 | E196: =IF(Z195=12,TRUE,FALSE) -> FALSE | F196: =IF(Z195=11,TRUE,FALSE) -> FALSE | G196: =IF(Z195=10,TRUE,FALSE) -> FALSE | H196: =IF(Z195=9,TRUE,FALSE) -> FALSE | I196: =IF(Z195=8,TRUE,FALSE) -> FALSE | J196: =IF(Z195=7,TRUE,FALSE) -> FALSE | K196: =IF(Z195=6,TRUE,FALSE) -> FALSE | L196: =IF(Z195=5,TRUE,FALSE) -> FALSE | M196: =IF(Z195=4,TRUE,FALSE) -> FALSE | N196: =IF(Z195=3,TRUE,FALSE) -> FALSE | O196: =IF(Z195=2,TRUE,FALSE) -> TRUE | P196: =IF(Z195=1,TRUE,FALSE) -> FALSE | Q196: =IF(AND(Q195=0,R196=FALSE),FALSE,TRUE) -> TRUE | R196: =IF(AND(R195=0,S196=FALSE),FALSE,TRUE) -> TRUE | S196: =IF(AND(S195=0,T196=FALSE),FALSE,TRUE) -> FALSE | T196: =IF(AND(T195=0,U196=FALSE),FALSE,TRUE) -> FALSE | U196: =IF(AND(U195=0,V196=FALSE),FALSE,TRUE) -> FALSE | V196: =IF(V195=0,FALSE,TRUE) -> FALSE | W196: =W195/(1000000/W197) -> 99
B197: =convnumberletter(C197) -> quatre-vingt-dix-neuf | C197: =W196 -> 99 | E197: =IF(AND(E$7-1<$Z195,E$7-1>=$AA195),0,E195) -> 5 | F197: 4 | G197: 7 | H197: 2 | I197: 6 | J197: 7 | K197: 9 | L197: 5 | M197: =IF(AND(M$7-1<$Z195,M$7-1>=$AA195),0,M195) -> 3 | N197: =IF(AND(N$7-1<$Z195,N$7-1>=$AA195),0,N195) -> 0 | O197: =IF(AND(O$7-1<$Z195,O$7-1>=$AA195),0,O195) -> 0 | P197: =IF(AND(P$7-1<$Z195,P$7-1>=$AA195),0,P195) -> 0 | Q197: =IF(Q196=FALSE,"",Q195) -> 9 | R197: 9 | W197: =SUM(Q198:V198) -> 100
B198: =IF(C197>1,CONCATENATE(HLOOKUP(C198,$Q$7:$V$9,3,TRUE),"s"),HLOOKUP(C198,$Q$7:$V$9,3,TRUE)) -> centièmes | C198: =W197 -> 100 | Q198: =IF(AND(R197="",Q197<>""),Q$7,0) -> 0 | R198: =IF(AND(S197="",R197<>""),R$7,0) -> 100 | S198: =IF(AND(T197="",S197<>""),S$7,0) -> 0 | T198: =IF(AND(U197="",T197<>""),T$7,0) -> 0 | U198: =IF(AND(V197="",U197<>""),U$7,0) -> 0 | V198: =IF(AND(W198="",V197<>""),V$7,0) -> 0
B199: =IF($C$8="virgule",CONCATENATE(B196," virgule ",B197),CONCATENATE(B196," et ",B197," ",B198)) -> cinq cent quarante-sept milliards deux cent soixante-sept millions neuf cent cinquante-trois mille virgule quatre-vingt-dix-neuf
E200: =IF(X200>100000000000,INT(RIGHT($X200,12)/100000000000),0) -> 8 | F200: =IF(X200>10000000000,INT(RIGHT($X200,11)/10000000000),0) -> 0 | G200: =IF(X200>1000000000,INT(RIGHT($X200,10)/1000000000),0) -> 9 | H200: =IF(X200>100000000,INT(RIGHT($X200,9)/100000000),0) -> 6 | I200: =IF(X200>10000000,INT(RIGHT($X200,8)/10000000),0) -> 6 | J200: =IF(X200>1000000,INT(RIGHT($X200,7)/1000000),0) -> 4 | K200: =IF(X200>100000,INT(RIGHT($X200,6)/100000),0) -> 7 | L200: =IF(X200>10000,INT(RIGHT($X200,5)/10000),0) -> 7 | M200: =IF(X200>1000,INT(RIGHT($X200,4)/1000),0) -> 4 | N200: =IF(X200>100,INT(RIGHT($X200,3)/100),0) -> 2 | O200: =IF(X200>10,INT(RIGHT($X200,2)/10),0) -> 1 | P200: =INT(RIGHT($X200,1)/1) -> 5 | Q200: =INT(RIGHT($AC200,1)) -> 0 | R200: =INT(RIGHT($AC200,2)/10) -> 7 | S200: =INT(RIGHT($AC200,3)/100) -> 0 | T200: =INT(RIGHT($AC200,4)/1000) -> 0 | U200: =INT(RIGHT($AC200,5)/10000) -> 0 | V200: =INT(RIGHT($AC200,6)/100000) -> 0 | W200: =((Q200*100000)+(R200*10000)+(S200*1000)+(T200*100)+(U200*10)+V200) -> 70000 | X200: =C$3+INT(RAND()*(C$4-C$3+1)) -> 809664774215 | Y200: =LEN(X200) -> 12 | Z200: =INT(RAND()*(Y200-C$5))+C$5 -> 4 | AA200: =Z200-C$5 -> 2 | AC200: =INT(RAND()*(POWER(10,$C$7))+1) -> 70 | AD200: =LEN(AC200) -> 2 | AE200: =INT(RAND()*(AD200-H$5))+H$5 -> 0 | AF200: =AE200-H$5 -> 0
... 289 more rows
